Workbook

Sheet Change Log
C1: EDPR16 JEN SCS Distribution - Opex Forecast Model
C2: Change Log
B6: Copyright Jemena Limited. All rights reserved. Jemena is not liable for any loss caused by reliance on this document.
B8: Model change log
C10: Starting model name ----> | D10: AER - Preliminary decision Jemena - Opex model - October 2015
C12: Model changes to above model
C14: Model sheet | D14: Reference | E14: Cell reference | F14: Type | G14: Legend | H14: Comments
C16: Input | Inflation | D16: Change 1 | E16: E43 | F16: Assumption | H16: Updated inflation assumption to reflect actual data from ABS
D17: Change 2 | E17: E44 | F17: Assumption | H17: Update estimate from RBA statement on monetary policy (Nov 15) - page 67 (under CPI inflation)
D18: Change 3 | E18: F6:F44 | F18: Labelling | H18: Include a column to outline the type of information for inflation (e.g. actual or forecast)
C21: Model sheet | D21: Reference | E21: Cell reference | F21: Type | G21: Legend | H21: Comments
C23: Input | Reported opex | D23: Change 4 | E23: Columns J:K | F23: Structure | H23: Added two additional columns to include information for 2009 and 2010 data
D24: Change 5 | E24: Rows 10:74 | F24: Structure | H24: Updated the reported opex section to report opex for both (1) trending and (2) EBSS purposes
D25: Change 6 | E25: Rows 10:74 | F25: Structure | H25: Separated the actual 'raw' opex amount and the relevant exclusions for both (1) trending and (2) EBSS purposes
D26: Change 7 | E26: P84 | F26: Assumption | H26: Updated the inputs for service reclassification to include metering services opex
D27: Change 8 | E27: S84:T84 | F27: Structure | H27: Include a summary of a breakdown of the service reclassification adjustment (metering and supply abolishment)
D28: Change 9 | E28: Rows 83:145 | F28: Structure | H28: Include workings for service reclassification for metering costs re-classified to distribution services
C31: Model sheet | D31: Reference | E31: Cell reference | F31: Type | G31: Legend | H31: Comments
C33: Input | Rate of change | D33: Change 10 | E33: Column J | F33: Structure | H33: Added an additional column to include a conversion index for 2009
D34: Change 11 | E34: P64:U64 | F34: Assumption | H34: Updated the customer number forecasts based on ACIL Allen report (2015)
D35: Change 12 | E35: P66:U66 | F35: Assumption | H35: Updated the ratcheted peak demand forecast based on ACIL Allen report (2015)
C38: Model sheet | D38: Reference | E38: Cell reference | F38: Type | G38: Legend | H38: Comments
C40: Input | Step changes | D40: Change 13 | E40: Rows 14:25 | F40: Assumption | H40: Added additional step changes from AER's preliminary decision (inserted two rows)
D41: Change 14 | E41: O32:S32 | F41: Assumption | H41: Updated debt raising cost inputs based on updates to PTRM
C44: Model sheet | D44: Reference | E44: Cell reference | F44: Type | G44: Legend | H44: Comments
C46: Calc | Opex Forecast | D46: Change 16 | E46: Rows 60:61 | F46: Structure | H46: Inserted two rows to take into account additional step changes
D47: Change 17 | E47: Rows 65:72 | F47: Structure | H47: Included a section to summarise specific forecasts
D48: Change 18 | E48: O78:S79 | F48: Structure | H48: Amended 'sum' formula to take into account additional 'specific forecast' section
C51: Model sheet | D51: Reference | E51: Cell reference | F51: Type | G51: Legend | H51: Comments
C53: Calc | EBSS | D53: Change 19 | E53: Whole sheet | F53: Structure | H53: Inserted new sheet to calculate EBSS penalty/gain over 2016 regulatory period
C56: Model sheet | D56: Reference | E56: Cell reference | F56: Type | G56: Legend | H56: Comments
C58: Output | Models | D58: Change 20 | E58: Rows 15:62 | F58: Structure | H58: Inserted additonal outputs for (1) EBSS, (2) opex forecast for EBSS purposes and (3) opex summary by base, step, trend, etc.
C61: Changes since 6 January 2016 Submission
C63: Model sheet | D63: Reference | E63: Cell reference | F63: Type | G63: Legend | H63: Comments
C65: Input | Reported opex | D65: Change 1 | E65: A147:V238 | F65: Structure | H65: JEN added drivers for splits between ACS and SCS by opex category
B67: End

Sheet Model Diagram
C1: EDPR16 JEN SCS Distribution - Opex Forecast Model
C2: Index
B6: Copyright Jemena Limited. All rights reserved. Jemena is not liable for any loss caused by reliance on this document.
B8: Where does this model fit into our submission model suite?
B52: End

Sheet Index
B1: JEN opex model - Distribution services
B2: Index
B4: Model index
C6: Sheet Name | D6: Sheet Description
C7: Input | General | D7: Inputs NSP name, regulatory years for the prior and forecast regulatory control period etc.
C8: Input | Inflation | D8: Inputs inflation data.
C9: Input | Reported opex | D9: Inputs the reported operating expenditure (opex) from the prior regulatory control period.
C10: Input | Rate of change | D10: Inputs the cost escalation weights, cost escalation forecast, and inflation actuals and forecast
C11: Input | Step changes | D11: Inputs the operating expenditure (opex) data, including historical opex by category, one-off costs, step changes, demand forecasts, carbon costs, self insurance, network growth, and partial factor productivity
C12: Calc | Opex Forecast | D12: Calculates the opex forecast from RY2014 to RY2020
C13: Calc | EBSS | D13: Calulates the EBSS benefit/penalty over RY2016-20 period
C14: Output | Models | D14: Outputs the opex forecast needed as a post tax revenue model input (which excludes debt raising costs).
C15: Lookup | Tables | D15: Includes the lookup tables used within this opex model.
C16: Check | List | D16: Shows checks on the calculations within the model
B18: End

Sheet Input|General
B1: =Index!$B$1 -> JEN opex model - Distribution services | J1: Back to Index | L1: Key: | M1: Input | N1: External Link | O1: Internal Link | R1: Worksheet check: | S1: =IF(COUNTA($S$5:$S$13)=COUNTIF($S5:$S14,"OK"),"OK","Check") -> OK | U1: Overall Check: | V1: ='Check|List'!$S$1 -> Ok
B2: =Index!$C$7 -> Input | General
B4: Input | General inputs
C6: Inputs | D6: Source | G6: Value
C7: NSP name | D7: NSP | G7: Jemena | S7: =IF(COUNTBLANK($G7),"Check","Ok") -> Ok
C8: Prior regulatory control period, first year | D8: NSP | G8: 2011 | S8: =IF(COUNTBLANK($G8),"Check","Ok") -> Ok
C9: Forecast base year | D9: NSP | G9: 2014 | S9: Ok
C10: Prior regulatory control period, last year | D10: NSP | G10: 2015 | S10: Ok
C11: Forecast regulatory control period, first year | D11: NSP | G11: 2016 | S11: Ok
C12: Forecast regulatory control period, last year | D12: NSP | G12: 2020 | S12: Ok
B14: End

Sheet Input|Inflation
B1: =Index!$B$1 -> JEN opex model - Distribution services | J1: Back to Index | L1: Key: | M1: Input | N1: External Link | O1: Internal Link | R1: Worksheet check: | S1: =IF(COUNTA($S$5:$S$45)=COUNTIF($S5:$S46,"OK"),"OK","Check") -> OK | U1: Overall Check: | V1: ='Check|List'!$S$1 -> Ok
B2: =Index!$C$8 -> Input | Inflation
B4: Input | General inputs
D6: Index value, old base | E6: Index value, new base | F6: Infomration type
C7: Source | D7: ABS | E7: ABS | F7: ABS
C8: Unit | D8: index | E8: index | F8: Actual/Fcast
C9: 2007-03-31 | D9: 155.6 | F9: ='Lookup|Tables'!$G$19 -> Actual | S9: =IF(COUNTBLANK($D9),"Check","Ok") -> Ok
C10: 2007-06-30 | D10: 157.5 | F10: ='Lookup|Tables'!$G$19 -> Actual | S10: Ok
C11: 2007-09-30 | D11: 158.6 | F11: ='Lookup|Tables'!$G$19 -> Actual | S11: Ok
C12: 2007-12-31 | D12: 160.1 | F12: ='Lookup|Tables'!$G$19 -> Actual | S12: Ok
C13: 2008-03-31 | D13: 162.2 | F13: ='Lookup|Tables'!$G$19 -> Actual | S13: Ok
C14: 2008-06-30 | D14: 164.6 | F14: ='Lookup|Tables'!$G$19 -> Actual | S14: Ok
C15: 2008-09-30 | D15: 166.5 | F15: ='Lookup|Tables'!$G$19 -> Actual | S15: Ok
C16: 2008-12-31 | D16: 166 | F16: ='Lookup|Tables'!$G$19 -> Actual | S16: Ok
C17: 2009-03-31 | D17: 166.2 | F17: ='Lookup|Tables'!$G$19 -> Actual | S17: Ok
C18: 2009-06-30 | D18: 167 | F18: ='Lookup|Tables'!$G$19 -> Actual | S18: Ok
C19: 2009-09-30 | D19: 168.6 | F19: ='Lookup|Tables'!$G$19 -> Actual | S19: Ok
C20: 2009-12-31 | D20: 169.5 | F20: ='Lookup|Tables'!$G$19 -> Actual | S20: Ok
C21: 2010-03-31 | D21: 171 | E21: 95.2 | F21: ='Lookup|Tables'!$G$19 -> Actual | S21: =IF(COUNTBLANK($D21:$E21),"Check","Ok") -> Ok
C22: 2010-06-30 | D22: 172.1 | E22: 95.8 | F22: ='Lookup|Tables'!$G$19 -> Actual | S22: Ok
C23: 2010-09-30 | D23: 173.3 | E23: 96.5 | F23: ='Lookup|Tables'!$G$19 -> Actual | S23: Ok
C24: 2010-12-31 | D24: 174 | E24: 96.9 | F24: ='Lookup|Tables'!$G$19 -> Actual | S24: Ok
C25: 2011-03-31 | D25: 176.7 | E25: 98.3 | F25: ='Lookup|Tables'!$G$19 -> Actual | S25: Ok
C26: 2011-06-30 | D26: 178.3 | E26: 99.2 | F26: ='Lookup|Tables'!$G$19 -> Actual | S26: Ok
C27: 2011-09-30 | D27: 179.4 | E27: 99.8 | F27: ='Lookup|Tables'!$G$19 -> Actual | S27: Ok
C28: 2011-12-31 | D28: 179.4 | E28: 99.8 | F28: ='Lookup|Tables'!$G$19 -> Actual | S28: Ok
C29: 2012-03-31 | D29: 179.5 | E29: 99.9 | F29: ='Lookup|Tables'!$G$19 -> Actual | S29: =IF(COUNTBLANK($E29),"Check","Ok") -> Ok
C30: 2012-06-30 | E30: 100.4 | F30: ='Lookup|Tables'!$G$19 -> Actual | S30: =IF(COUNTBLANK($E30),"Check","Ok") -> Ok
C31: 2012-09-30 | E31: 101.8 | F31: ='Lookup|Tables'!$G$19 -> Actual | S31: =IF(COUNTBLANK($E31),"Check","Ok") -> Ok
C32: 2012-12-31 | E32: 102 | F32: ='Lookup|Tables'!$G$19 -> Actual | S32: =IF(COUNTBLANK($E32),"Check","Ok") -> Ok
C33: 2013-03-31 | E33: 102.4 | F33: ='Lookup|Tables'!$G$19 -> Actual | S33: =IF(COUNTBLANK($E33),"Check","Ok") -> Ok
C34: 2013-06-30 | E34: 102.8 | F34: ='Lookup|Tables'!$G$19 -> Actual | S34: Ok
C35: 2013-09-30 | E35: 104 | F35: ='Lookup|Tables'!$G$19 -> Actual | S35: Ok
C36: 2013-12-31 | E36: 104.8 | F36: ='Lookup|Tables'!$G$19 -> Actual | S36: Ok
C37: 2014-03-31 | E37: 105.4 | F37: ='Lookup|Tables'!$G$19 -> Actual | S37: Ok
C38: 2014-06-30 | E38: 105.9 | F38: ='Lookup|Tables'!$G$19 -> Actual | S38: Ok
C39: 2014-09-30 | E39: 106.4 | F39: ='Lookup|Tables'!$G$19 -> Actual | S39: Ok
C40: 2014-12-31 | E40: 106.6 | F40: ='Lookup|Tables'!$G$19 -> Actual | S40: Ok
C41: 2015-03-31 | E41: 106.8 | F41: ='Lookup|Tables'!$G$19 -> Actual | S41: Ok
C42: 2015-06-30 | E42: 107.5 | F42: ='Lookup|Tables'!$G$19 -> Actual | S42: Ok
C43: 2015-09-30 | E43: 108 | F43: ='Lookup|Tables'!$G$19 -> Actual | S43: Ok
C44: 2015-12-31 | E44: =1.0175*E40 -> 108.4655 | F44: ='Lookup|Tables'!$G$20 -> Estimate | G44: Estimate from RBA statement on monetary policy (Nov 15) - page 67 (under CPI inflation) | S44: Ok
B46: End

Sheet Input|Reported opex
C1: =Index!$B$1 -> JEN opex model - Distribution services | L1: Back to Index | N1: Key: | O1: Input | P1: External Link | Q1: Internal Link | T1: Worksheet check: | U1: =IF(COUNTA($Y$47:$Y$314)=COUNTIF($Y$47:$Y$314,"OK"),"OK","Check") -> OK | W1: Overall Check: | X1: ='Check|List'!$S$1 -> Ok
C2: =Index!$C$9 -> Input | Reported opex
D4: Source | E4: Unit | F4: Basis | J4: =K4-1 -> 2009 | K4: =L4-1 -> 2010 | L4: ='Input|General'!$G$8 -> 2011 | M4: =IF(OFFSET('Lookup|Tables'!$G$26:$G$43,MATCH('Input|General'!$G$8,'Lookup|Tables'!$G$26:$G$42,0),0,1,1)<='Input|General'!$G$12,OFFSET('Lookup|Tables'!$G$26:$G$43,MATCH('Input|General'!$G$8,'Lookup|Tables'!$G$26:$G$42,0),0,1,1),"") -> 2012 | N4: =IF(OFFSET('Lookup|Tables'!$G$28:$G$43,MATCH('Input|General'!$G$8,'Lookup|Tables'!$G$28:$G$42,0)+1,0,1,1)<='Input|General'!$G$12,OFFSET('Lookup|Tables'!$G$28:$G$43,MATCH('Input|General'!$G$8,'Lookup|Tables'!$G$28:$G$42,0)+1,0,1,1),"") -> 2013 | O4: =IF(OFFSET('Lookup|Tables'!$G$28:$G$43,MATCH('Input|General'!$G$8,'Lookup|Tables'!$G$28:$G$42,0)+2,0,1,1)<='Input|General'!$G$12,OFFSET('Lookup|Tables'!$G$28:$G$43,MATCH('Input|General'!$G$8,'Lookup|Tables'!$G$28:$G$42,0)+2,0,1,1),"") -> 2014 | P4: =IF(OFFSET('Lookup|Tables'!$G$28:$G$43,MATCH('Input|General'!$G$8,'Lookup|Tables'!$G$28:$G$42,0)+3,0,1,1)<='Input|General'!$G$12,OFFSET('Lookup|Tables'!$G$28:$G$43,MATCH('Input|General'!$G$8,'Lookup|Tables'!$G$28:$G$42,0)+3,0,1,1),"") -> 2015 | Q4: =IF(OFFSET('Lookup|Tables'!$G$28:$G$43,MATCH('Input|General'!$G$8,'Lookup|Tables'!$G$28:$G$42,0)+4,0,1,1)<='Input|General'!$G$12,OFFSET('Lookup|Tables'!$G$28:$G$43,MATCH('Input|General'!$G$8,'Lookup|Tables'!$G$28:$G$42,0)+4,0,1,1),"") -> 2016 | R4: =IF(OFFSET('Lookup|Tables'!$G$28:$G$43,MATCH('Input|General'!$G$8,'Lookup|Tables'!$G$28:$G$42,0)+5,0,1,1)<='Input|General'!$G$12,OFFSET('Lookup|Tables'!$G$28:$G$43,MATCH('Input|General'!$G$8,'Lookup|Tables'!$G$28:$G$42,0)+5,0,1,1),"") -> 2017 | S4: =IF(OFFSET('Lookup|Tables'!$G$28:$G$43,MATCH('Input|General'!$G$8,'Lookup|Tables'!$G$28:$G$42,0)+6,0,1,1)<='Input|General'!$G$12,OFFSET('Lookup|Tables'!$G$28:$G$43,MATCH('Input|General'!$G$8,'Lookup|Tables'!$G$28:$G$42,0)+6,0,1,1),"") -> 2018 | T4: =IF(OFFSET('Lookup|Tables'!$G$28:$G$43,MATCH('Input|General'!$G$8,'Lookup|Tables'!$G$28:$G$42,0)+7,0,1,1)<='Input|General'!$G$12,OFFSET('Lookup|Tables'!$G$28:$G$43,MATCH('Input|General'!$G$8,'Lookup|Tables'!$G$28:$G$42,0)+7,0,1,1),"") -> 2019 | U4: =IF(OFFSET('Lookup|Tables'!$G$28:$G$43,MATCH('Input|General'!$G$8,'Lookup|Tables'!$G$28:$G$42,0)+8,0,1,1)<='Input|General'!$G$12,OFFSET('Lookup|Tables'!$G$28:$G$43,MATCH('Input|General'!$G$8,'Lookup|Tables'!$G$28:$G$42,0)+8,0,1,1),"") -> 2020
B8: Input | Opex allowances
C10: Cost category | D10: Source | E10: Unit | F10: Basis | J10: =IF(RIGHT(J$4,2)<=RIGHT('Input|General'!$G$10,2),'Input|Reported opex'!J$4,"") -> 2009 | K10: =IF(RIGHT(K$4,2)<=RIGHT('Input|General'!$G$10,2),'Input|Reported opex'!K$4,"") -> 2010 | L10: =IF(RIGHT(L$4,2)<=RIGHT('Input|General'!$G$10,2),'Input|Reported opex'!L$4,"") -> 2011 | M10: =IF(RIGHT(M$4,2)<=RIGHT('Input|General'!$G$10,2),'Input|Reported opex'!M$4,"") -> 2012 | N10: =IF(RIGHT(N$4,2)<=RIGHT('Input|General'!$G$10,2),'Input|Reported opex'!N$4,"") -> 2013 | O10: =IF(RIGHT(O$4,2)<=RIGHT('Input|General'!$G$10,2),'Input|Reported opex'!O$4,"") -> 2014 | P10: =IF(RIGHT(P$4,2)<=RIGHT('Input|General'!$G$10,2),'Input|Reported opex'!P$4,"") -> 2015 | Q10: =IF(RIGHT(Q$4,2)<=RIGHT('Input|General'!$G$10,2),'Input|Reported opex'!Q$4,"") ->  | R10: =IF(RIGHT(R$4,2)<=RIGHT('Input|General'!$G$10,2),'Input|Reported opex'!R$4,"") ->  | S10: =IF(RIGHT(S$4,2)<=RIGHT('Input|General'!$G$10,2),'Input|Reported opex'!S$4,"") ->  | T10: =IF(RIGHT(T$4,2)<=RIGHT('Input|General'!$G$10,2),'Input|Reported opex'!T$4,"") ->  | U10: =IF(RIGHT(U$4,2)<=RIGHT('Input|General'!$G$10,2),'Input|Reported opex'!U$4,"") ->  | V10: Notes
C13: Total opex, excluding DRC and DMIA | D13: AER | E13: =$E$25 -> $millions | F13: 2010 | J13: 62.92367006 | K13: 64.38160354 | L13: 58.20986101 | M13: 57.114709 | N13: 57.33498005 | O13: 62.3125222 | P13: 61.33954822 | V13: Tribunal varied PTRM
C15: Remove non-recurrent costs:
C16: Debt raising costs | D16: AER | E16: =$E$25 -> $millions | F16: 2010 | L16: -0.4470079335 | M16: -0.4762229785 | N16: -0.4995316107 | O16: -0.5201586851 | P16: -0.5410170689
C17: DMIA expenditure | D17: AER | E17: $millions | F17: 2010 | L17: -0.2 | M17: -0.2 | N17: -0.2 | O17: -0.2 | P17: -0.2
D18: AER | E18: $millions | F18: 2010
D19: AER | E19: $millions | F19: 2010
D20: AER | E20: $millions | F20: 2010
D21: AER | E21: $millions | F21: 2010
D22: AER | E22: $millions | F22: 2010
D23: AER | E23: $millions | F23: 2010
C25: Total opex allowances - for trending | D25: Calculated | E25: $millions | F25: 2010 | J25: =SUM(J13,J16:J23) -> 62.92367006 | K25: 64.38160354 | L25: =SUM(L13,L16:L23) -> 57.56285307 | M25: =SUM(M13,M16:M23) -> 56.43848602 | N25: 56.63544844 | O25: 61.59236351 | P25: 60.59853115 | Q25: 0 | R25: 0 | S25: 0 | T25: 0 | U25: 0
C27: Remove approved excludable costs:
C28: Debt raising costs | D28: AER | E28: =$E$25 -> $millions | F28: 2010 | J28: 0 | K28: 0 | L28: -0.4470079335 | M28: -0.4762229785 | N28: -0.4995316107 | O28: -0.5201586851 | P28: -0.5410170689
C29: Self insurance | D29: AER | E29: $millions | F29: 2010 | J29: 0 | K29: 0 | L29: -0.1043 | M29: -0.1043 | N29: -0.1043 | O29: -0.1043 | P29: -0.1043
C30: Defined benefit superannuation | D30: AER | E30: $millions | F30: 2010 | J30: 0 | K30: 0 | L30: 0 | M30: 0 | N30: 0 | O30: 0 | P30: 0
C31: Non-network alternatives | D31: AER | E31: $millions | F31: 2010 | J31: 0 | K31: 0 | L31: 0 | M31: 0 | N31: 0 | O31: 0 | P31: 0
C32: DMIA | D32: AER | E32: $millions | F32: 2010 | J32: 0 | K32: 0 | L32: -0.2 | M32: -0.2 | N32: -0.2 | O32: -0.2 | P32: -0.2
C33: GSL payments | D33: AER | E33: $millions | F33: 2010 | J33: 0 | K33: 0 | L33: -0.0184177655 | M33: -0.01795543542 | N33: -0.01750471093 | O33: -0.01706530071 | P33: -0.01663692074
C34: Capitalisation policy changes | D34: AER | E34: $millions | F34: 2010 | J34: 4.610455233 | K34: 4.610455233 | L34: 0 | M34: 0 | N34: 0 | O34: 0 | P34: 0
C35: Network growth adjustment | D35: AER | E35: $millions | F35: 2010 | J35: 0.4118399897 | K35: 0.515274539 | L35: -0.01139798762 | M35: -0.01732494117 | N35: -0.02633391059 | O35: -0.04002754409 | P35: -0.06084186702
C36: Other adjustments or exclusions required by the EBSS | D36: AER | E36: $millions | F36: 2010 | J36: 0 | K36: 0 | L36: 0 | M36: 0 | N36: 0 | O36: 0 | P36: 0
D37: AER | E37: $millions | F37: 2010
D38: AER | E38: $millions | F38: 2010
C40: Total opex allowances - for EBSS | D40: Calculated | E40: $millions | F40: 2010 | J40: =SUM(J13,J28:J38) -> 67.94596528 | K40: =SUM(K13,K28:K38) -> 69.50733331 | L40: 57.42873732 | M40: 56.29890564 | N40: 56.48730982 | O40: 61.43097067 | P40: 60.41675237 | Q40: 0 | R40: 0 | S40: 0 | T40: 0 | U40: 0
B42: Input | Reported opex
J44: Actual | K44: Actual | L44: Actual | M44: Actual | N44: Actual | O44: Actual | P44: Estimate
C45: Cost category | D45: Source | E45: Unit | F45: Basis | J45: =IF(RIGHT(J4,2)<=RIGHT('Input|General'!$G$10,2),'Input|Reported opex'!J4,"") -> 2009 | K45: =IF(RIGHT(K4,2)<=RIGHT('Input|General'!$G$10,2),'Input|Reported opex'!K4,"") -> 2010 | L45: =IF(RIGHT(L4,2)<=RIGHT('Input|General'!$G$10,2),'Input|Reported opex'!L4,"") -> 2011 | M45: =IF(RIGHT(M4,2)<=RIGHT('Input|General'!$G$10,2),'Input|Reported opex'!M4,"") -> 2012 | N45: =IF(RIGHT(N4,2)<=RIGHT('Input|General'!$G$10,2),'Input|Reported opex'!N4,"") -> 2013 | O45: =IF(RIGHT(O4,2)<=RIGHT('Input|General'!$G$10,2),'Input|Reported opex'!O4,"") -> 2014 | P45: =IF(RIGHT(P4,2)<=RIGHT('Input|General'!$G$10,2),'Input|Reported opex'!P4,"") -> 2015 | Q45: =IF(RIGHT(Q4,2)<=RIGHT('Input|General'!$G$10,2),'Input|Reported opex'!Q4,"") ->  | R45: =IF(RIGHT(R4,2)<=RIGHT('Input|General'!$G$10,2),'Input|Reported opex'!R4,"") ->  | S45: =IF(RIGHT(S4,2)<=RIGHT('Input|General'!$G$10,2),'Input|Reported opex'!S4,"") ->  | T45: =IF(RIGHT(T4,2)<=RIGHT('Input|General'!$G$10,2),'Input|Reported opex'!T4,"") ->  | U45: =IF(RIGHT(U4,2)<=RIGHT('Input|General'!$G$10,2),'Input|Reported opex'!U4,"") ->  | V45: Notes
C47: Total opex (as per RIN) | D47: RIN | E47: =$E$58 -> $millions | F47: =$F$58 -> nominal | J47: 50.44451827 | K47: 61.24178095 | L47: 62.62086391 | M47: 73.64223029 | N47: 72.62021594 | O47: 72.38338272
C49: Remove non-recurrent costs:
C50: Debt raising costs | D50: RIN | E50: =$E$58 -> $millions | F50: =$F$58 -> nominal | K50: 0 | L50: 0 | M50: 0 | N50: 0 | O50: 0
C51: Movements in provisions related to opex | D51: RIN | E51: $millions | F51: nominal | K51: 0.31340113 | L51: 0.0043882 | M51: -0.24676912 | N51: 0.17539438 | O51: -0.01198713
C52: DMIA expenditure | D52: RIN | E52: $millions | F52: nominal | K52: 0 | L52: 0 | M52: 0 | N52: -0.04835607 | O52: -0.063864
C53: GSL expenditure | D53: RIN | E53: $millions | F53: nominal | K53: -0.0708 | L53: -0.0282 | M53: -0.00881 | N53: -0.06693 | O53: -0.06797461
C54: Losses on scrapping of assets | D54: RIN | E54: $millions | F54: nominal | O54: -0.39
D55: RIN | E55: $millions | F55: nominal
D56: RIN | E56: $millions | F56: nominal
C58: Total reported opex - for trending | D58: Calculated | E58: $millions | F58: nominal | J58: =SUM(J47,J50:J56) -> 50.44451827 | K58: 61.48438208 | L58: 62.59705211 | M58: 73.38665117 | N58: 72.68032425 | O58: 71.84955698 | P58: 0 | Q58: 0 | R58: 0 | S58: 0 | T58: 0 | U58: 0
C60: Remove approved excludable costs:
C61: Debt raising costs | D61: RIN | E61: =$E$58 -> $millions | F61: =$F$58 -> nominal | L61: 0 | M61: 0 | N61: 0 | O61: 0 | P61: 0
C62: Self insurance | D62: RIN | E62: $millions | F62: nominal | L62: -0.26254066 | M62: -0.80554526 | N62: -0.56675198 | O62: -0.37890019
C63: Defined benefit superannuation | D63: RIN | E63: $millions | F63: nominal | L63: 0 | M63: 0 | N63: 0 | O63: 0
C64: Non-network alternatives | D64: RIN | E64: $millions | F64: nominal | L64: 0 | M64: 0 | N64: 0 | O64: 0
C65: DMIA expenditure | D65: RIN | E65: $millions | F65: nominal | L65: 0 | M65: 0 | N65: -0.04835607 | O65: -0.063864 | P65: 0
C66: GSL expenditure | D66: RIN | E66: $millions | F66: nominal | L66: -0.0282 | M66: -0.00881 | N66: -0.06693 | O66: -0.06797461 | P66: 0
C67: Opex associated with approved cost pass through | D67: RIN | E67: $millions | F67: nominal | L67: 0 | M67: 0 | N67: 0 | O67: 0
C68: Capitalisation policy changes | D68: RIN | E68: $millions | F68: nominal | L68: 0 | M68: 0 | N68: 0 | O68: 0
C69: Movements in provisions related to opex | D69: RIN | E69: $millions | F69: nominal | K69: =K51 -> 0.31340113 | L69: 0.0043882 | M69: -0.24676912 | N69: 0.17539438 | O69: -0.01198713 | P69: 0
C70: Other adjustments or exclusions required by the EBSS | D70: RIN | E70: $millions | F70: nominal | L70: 0 | M70: 0 | N70: 0 | O70: -0.801
D71: RIN | E71: $millions | F71: nominal
D72: RIN | E72: $millions | F72: nominal
C74: Total reported opex - for EBSS | D74: Calculated | E74: $millions | F74: nominal | J74: =SUM(J47,J61:J72) -> 50.44451827 | K74: =SUM(K47,K61:K72) -> 61.55518208 | L74: 62.33451145 | M74: 72.58110591 | N74: 72.11357227 | O74: 71.05965679 | P74: 0 | Q74: 0 | R74: 0 | S74: 0 | T74: 0 | U74: 0
B76: Input | CAM adjustment
C78: CAM adjustment | D78: Source | E78: Unit | F78: Basis | J78: =IF(RIGHT(J4,2)=RIGHT('Input|General'!$G$10,2),'Input|Reported opex'!J4,"") ->  | K78: =IF(RIGHT(K4,2)=RIGHT('Input|General'!$G$10,2),'Input|Reported opex'!K4,"") ->  | L78: =IF(RIGHT(L4,2)=RIGHT('Input|General'!$G$10,2),'Input|Reported opex'!L4,"") ->  | M78: =IF(RIGHT(M4,2)=RIGHT('Input|General'!$G$10,2),'Input|Reported opex'!M4,"") ->  | N78: =IF(RIGHT(N4,2)=RIGHT('Input|General'!$G$10,2),'Input|Reported opex'!N4,"") ->  | O78: =IF(RIGHT(O4,2)=RIGHT('Input|General'!$G$10,2),'Input|Reported opex'!O4,"") ->  | P78: =IF(RIGHT(P$4,2)=RIGHT('Input|General'!$G$10,2),P$4,"") -> 2015
C79: =C78 -> CAM adjustment | D79: External | E79: =$E$58 -> $millions | F79: 2015 | P79: 0
B81: Input | Service classification adjustment
C83: Service classification adjustment | D83: Source | E83: Unit | F83: Basis | J83: =IF(RIGHT(J9,2)=RIGHT('Input|General'!$G$10,2),'Input|Reported opex'!J9,"") ->  | K83: =IF(RIGHT(K9,2)=RIGHT('Input|General'!$G$10,2),'Input|Reported opex'!K9,"") ->  | L83: =IF(RIGHT(L9,2)=RIGHT('Input|General'!$G$10,2),'Input|Reported opex'!L9,"") ->  | M83: =IF(RIGHT(M9,2)=RIGHT('Input|General'!$G$10,2),'Input|Reported opex'!M9,"") ->  | N83: =IF(RIGHT(N9,2)=RIGHT('Input|General'!$G$10,2),'Input|Reported opex'!N9,"") ->  | O83: =IF(RIGHT(O9,2)=RIGHT('Input|General'!$G$10,2),'Input|Reported opex'!O9,"") ->  | P83: =IF(RIGHT(P$4,2)=RIGHT('Input|General'!$G$10,2),P$4,"") -> 2015 | S83: Metering | T83: Supply abolishment
C84: =C83 -> Service classification adjustment | D84: External | E84: =$E$58 -> $millions | F84: 2015 | P84: =SUM(S84:T84) -> 9.198802051 | S84: =$P$145-$P$109 -> 8.660587607 | T84: =0.5244728*'Input|Rate of change'!O32 -> 0.5382144442
B86: Input | Efficiency adjustment
C88: Efficiency adjustment | D88: Source | E88: Unit | J88: =IF(RIGHT(J14,2)=RIGHT('Input|General'!$G$10,2),'Input|Reported opex'!J14,"") ->  | K88: =IF(RIGHT(K14,2)=RIGHT('Input|General'!$G$10,2),'Input|Reported opex'!K14,"") ->  | L88: =IF(RIGHT(L14,2)=RIGHT('Input|General'!$G$10,2),'Input|Reported opex'!L14,"") ->  | M88: =IF(RIGHT(M14,2)=RIGHT('Input|General'!$G$10,2),'Input|Reported opex'!M14,"") ->  | N88: =IF(RIGHT(N14,2)=RIGHT('Input|General'!$G$10,2),'Input|Reported opex'!N14,"") ->  | O88: =IF(RIGHT(O14,2)=RIGHT('Input|General'!$G$10,2),'Input|Reported opex'!O14,"") ->  | P88: =IF(RIGHT(P$4,2)=RIGHT('Input|General'!$G$10,2),P$4,"") -> 2015
C89: Efficiency adjustment | D89: External | E89: Per cent | P89: 0
B91: Input | Service classification adjustment - workings | S91: Base year split - quoted in Nominal 2014 dollars
C93: Opex activity - current classification | D93: Source | E93: Unit | F93: Basis | J93: =IF(RIGHT(J19,2)=RIGHT('Input|General'!$G$10,2),'Input|Reported opex'!J19,"") ->  | K93: =IF(RIGHT(K19,2)=RIGHT('Input|General'!$G$10,2),'Input|Reported opex'!K19,"") ->  | L93: =IF(RIGHT(L19,2)=RIGHT('Input|General'!$G$10,2),'Input|Reported opex'!L19,"") ->  | M93: =IF(RIGHT(M19,2)=RIGHT('Input|General'!$G$10,2),'Input|Reported opex'!M19,"") ->  | N93: =IF(RIGHT(N19,2)=RIGHT('Input|General'!$G$10,2),'Input|Reported opex'!N19,"") ->  | O93: =IF(RIGHT(O19,2)=RIGHT('Input|General'!$G$10,2),'Input|Reported opex'!O19,"") ->  | P93: =IF(RIGHT(P$4,2)=RIGHT('Input|General'!$G$10,2),P$4,"") -> 2015 | S93: Metering | T93: Distribution | U93: Fee based | V93: Total
C94: Customer support (a) to (e) | D94: JEN | E94: =$E$58 -> $millions | F94: 2015 | P94: =T94*'Input|Rate of change'!$O$32 -> 1.279624901 | S94: 0.5170147788 | T94: 1.24695363 | U94: 0 | V94: =SUM(S94:U94) -> 1.763968409
C95: Reporting and finance (a), (b) & (c) | D95: JEN | E95: =$E$58 -> $millions | F95: 2015 | P95: =T95*'Input|Rate of change'!$O$32 -> 0 | S95: 1.2343764 | T95: 0 | U95: 0 | V95: =SUM(S95:U95) -> 1.2343764
C96: Compliance and industry representation | D96: JEN | E96: $millions | F96: 2015 | P96: =T96*'Input|Rate of change'!$O$32 -> 0 | S96: 0.20584859 | T96: 0 | U96: 0 | V96: 0.20584859
C97: Network systems IT | D97: JEN | E97: $millions | F97: 2015 | P97: =T97*'Input|Rate of change'!$O$32 -> 0 | S97: 10.21859303 | T97: 0 | U97: 0 | V97: 10.21859303
C98: Network billing | D98: JEN | E98: $millions | F98: 2015 | P98: =T98*'Input|Rate of change'!$O$32 -> 0.7140989418 | S98: 0.35478634 | T98: 0.69586663 | U98: 0.54856367 | V98: 1.59921664
C99: Connection point management | D99: JEN | E99: $millions | F99: 2015 | P99: =T99*'Input|Rate of change'!$O$32 -> -7.466594041e-18 | S99: 0.61197466 | T99: -7.275957614e-18 | U99: 0.04837521 | V99: =SUM(S99:U99) -> 0.66034987
C100: Technology and communications | D100: JEN | E100: $millions | F100: 2015 | P100: =T100*'Input|Rate of change'!$O$32 -> 0 | S100: 0 | T100: 0 | U100: 0 | V100: 0
C101: AMI Network operations | D101: JEN | E101: $millions | F101: 2015 | P101: =T101*'Input|Rate of change'!$O$32 -> 0 | S101: 1.33477554 | T101: 0 | U101: 0 | V101: 1.33477554
C102: Metering operations | D102: JEN | E102: $millions | F102: 2015 | P102: =T102*'Input|Rate of change'!$O$32 -> 0 | S102: 0.36643347 | T102: 0 | U102: 0.0097434 | V102: 0.37617687
C103: Meter data management | D103: JEN | E103: $millions | F103: 2015 | P103: =T103*'Input|Rate of change'!$O$32 -> 0.1368100644 | S103: 0.7643930125 | T103: 0.1333170417 | U103: 0 | V103: 0.8977100542
C104: Metering communications, strategy & planning | D104: JEN | E104: $millions | F104: 2015 | P104: =T104*'Input|Rate of change'!$O$32 -> 0 | S104: 0.76159627 | T104: 0 | U104: 0 | V104: 0.76159627
C105: Regulated meter testing & replacement | D105: JEN | E105: $millions | F105: 2015 | P105: =T105*'Input|Rate of change'!$O$32 -> 0 | S105: 0.94887127 | T105: 0 | U105: 0 | V105: 0.94887127
C106: Regulatory compliance | D106: JEN | E106: $millions | F106: 2015 | P106: =T106*'Input|Rate of change'!$O$32 -> 0 | S106: 0.40437168 | T106: 0 | U106: 0 | V106: 0.40437168
C107: Corporate overhead (CAM) | D107: JEN | E107: $millions | F107: 2015 | P107: =T107*'Input|Rate of change'!$O$32 -> 0 | S107: 1.98742612 | T107: 0 | U107: 0 | V107: 1.98742612
C109: Total reported opex - for EBSS | D109: Calculated | E109: $millions | F109: 2015 | P109: =SUM(P94:P107) -> 2.130533907 | S109: =SUM(S94:S107) -> 19.71046116 | T109: =SUM(T94:T107) -> 2.076137302 | U109: =SUM(U94:U107) -> 0.60668228 | V109: =SUM(V94:V107) -> 22.39328074
C111: Opex activity - reclassification | D111: Source | E111: Unit | F111: Basis | S111: Metering | T111: Distribution | U111: Fee based | V111: Total
C112: =C94 -> Customer support (a) to (e) | D112: JEN | E112: =$E$58 -> $millions | F112: 2015 | S112: =S155 -> 0 | T112: =T155 -> 1 | U112: 0 | V112: 1
C113: Reporting and finance (a), (b) & (c) | D113: JEN | E113: =$E$58 -> $millions | F113: 2015 | S113: =S161 -> 0 | T113: =T161 -> 1 | U113: 0 | V113: 1
C114: Compliance and industry representation | D114: JEN | E114: $millions | F114: 2015 | S114: =S166 -> 0 | T114: =T166 -> 1 | U114: 0 | V114: 1
C115: Network systems IT | D115: JEN | E115: $millions | F115: 2015 | S115: =S175 -> 0.441 | T115: =T175 -> 0.559 | U115: 0 | V115: 1
C116: Network billing | D116: JEN | E116: $millions | F116: 2015 | S116: =S179 -> 0 | T116: =T179 -> 1 | U116: 0 | V116: 1
C117: Connection point management | D117: JEN | E117: $millions | F117: 2015 | S117: =S196 -> 0 | T117: =T196 -> 0 | U117: 1 | V117: 1
C118: =C100 -> Technology and communications | D118: JEN | E118: $millions | F118: 2015 | S118: =S202 -> 1 | T118: =T202 -> 0 | U118: 0 | V118: 1
C119: AMI Network operations | D119: JEN | E119: $millions | F119: 2015 | S119: =S209 -> 1 | T119: =T209 -> 0 | U119: 0 | V119: 1
C120: Metering operations | D120: JEN | E120: $millions | F120: 2015 | S120: =S213 -> 1 | T120: =T213 -> 0 | U120: 0 | V120: 1
C121: Meter data management | D121: JEN | E121: $millions | F121: 2015 | S121: =S217 -> 1 | T121: =T217 -> 0 | U121: 0 | V121: 1
C122: Metering communications, strategy & planning | D122: JEN | E122: $millions | F122: 2015 | S122: =S224 -> 1 | T122: =T224 -> 0 | U122: 0 | V122: 1
C123: Regulated meter testing & replacement | D123: JEN | E123: $millions | F123: 2015 | S123: =S228 -> 1 | T123: =T228 -> 0 | U123: 0 | V123: 1
C124: Regulatory compliance | D124: JEN | E124: $millions | F124: 2015 | S124: =S232 -> 1 | T124: =T232 -> 0 | U124: 0 | V124: 1
C125: Corporate overhead (CAM) | D125: JEN | E125: $millions | F125: 2015 | S125: =S236 -> 1 | T125: =T236 -> 0 | U125: 0 | V125: 1
C127: Total reported opex - for EBSS | D127: Calculated | E127: $millions | F127: 2015 | S127: 0 | T127: 0 | U127: 0 | V127: 0
C129: Opex activity - proposed reclassification | D129: Source | E129: Unit | F129: Basis | P129: =IF(RIGHT(P$4,2)=RIGHT('Input|General'!$G$10,2),P$4,"") -> 2015 | S129: Metering | T129: Distribution | U129: Fee based | V129: Total
C130: =C94 -> Customer support (a) to (e) | D130: JEN | E130: =$E$58 -> $millions | F130: 2015 | P130: =T130*'Input|Rate of change'!$O$32 -> 1.810185917 | S130: =S112*$V94 -> 0 | T130: =T112*$V94 -> 1.763968409 | U130: 0 | V130: =SUM(S130:U130) -> 1.763968409
C131: Reporting and finance (a), (b) & (c) | D131: JEN | E131: =$E$58 -> $millions | F131: 2015 | P131: =T131*'Input|Rate of change'!$O$32 -> 1.266718137 | S131: =S113*$V95 -> 0 | T131: 1.2343764 | U131: 0 | V131: =SUM(S131:U131) -> 1.2343764
C132: Compliance and industry representation | D132: JEN | E132: $millions | F132: 2015 | P132: =T132*'Input|Rate of change'!$O$32 -> 0.2112420023 | S132: =S114*$V96 -> 0 | T132: 0.20584859 | U132: 0 | V132: 0.20584859
C133: Network systems IT | D133: JEN | E133: $millions | F133: 2015 | P133: =T133*'Input|Rate of change'!$O$32 -> 5.861857949 | S133: =S115*$V97 -> 4.506399526 | T133: 5.712193504 | U133: 0 | V133: 10.21859303
C134: Network billing | D134: JEN | E134: $millions | F134: 2015 | P134: =T134*'Input|Rate of change'!$O$32 -> 1.641117509 | S134: =S116*$V98 -> 0 | T134: 1.59921664 | U134: 0 | V134: 1.59921664
C135: Connection point management | D135: JEN | E135: $millions | F135: 2015 | P135: =T135*'Input|Rate of change'!$O$32 -> 0 | S135: =S117*$V99 -> 0 | T135: 0 | U135: 0.66034987 | V135: =SUM(S135:U135) -> 0.66034987
C136: =C100 -> Technology and communications | D136: JEN | E136: $millions | F136: 2015 | P136: =T136*'Input|Rate of change'!$O$32 -> 0 | S136: =S118*$V100 -> 0 | T136: 0 | U136: 0 | V136: 0
C137: AMI Network operations | D137: JEN | E137: $millions | F137: 2015 | P137: =T137*'Input|Rate of change'!$O$32 -> 0 | S137: =S119*$V101 -> 1.33477554 | T137: 0 | U137: 0 | V137: 1.33477554
C138: Metering operations | D138: JEN | E138: $millions | F138: 2015 | P138: =T138*'Input|Rate of change'!$O$32 -> 0 | S138: =S120*$V102 -> 0.37617687 | T138: 0 | U138: 0 | V138: 0.37617687
C139: Meter data management | D139: JEN | E139: $millions | F139: 2015 | P139: =T139*'Input|Rate of change'!$O$32 -> 0 | S139: =S121*$V103 -> 0.8977100542 | T139: 0 | U139: 0 | V139: 0.8977100542
C140: Metering communications, strategy & planning | D140: JEN | E140: $millions | F140: 2015 | P140: =T140*'Input|Rate of change'!$O$32 -> 0 | S140: =S122*$V104 -> 0.76159627 | T140: 0 | U140: 0 | V140: 0.76159627
C141: Regulated meter testing & replacement | D141: JEN | E141: $millions | F141: 2015 | P141: =T141*'Input|Rate of change'!$O$32 -> 0 | S141: =S123*$V105 -> 0.94887127 | T141: 0 | U141: 0 | V141: 0.94887127
C142: Regulatory compliance | D142: JEN | E142: $millions | F142: 2015 | P142: =T142*'Input|Rate of change'!$O$32 -> 0 | S142: =S124*$V106 -> 0.40437168 | T142: 0 | U142: 0 | V142: 0.40437168
C143: Corporate overhead (CAM) | D143: JEN | E143: $millions | F143: 2015 | P143: =T143*'Input|Rate of change'!$O$32 -> 0 | S143: =S125*$V107 -> 1.98742612 | T143: 0 | U143: 0 | V143: 1.98742612
C145: Total reported opex - for EBSS | D145: Calculated | E145: $millions | F145: 2015 | P145: =SUM(P130:P143) -> 10.79112151 | S145: =SUM(S130:S143) -> 11.21732733 | T145: =SUM(T130:T143) -> 10.51560354 | U145: =SUM(U130:U143) -> 0.66034987 | V145: =SUM(V130:V143) -> 22.39328074
B147: Input | Drivers of ACS and SCS splits
C149: =C94 -> Customer support (a) to (e) | D149: Source | E149: Unit | F149: Basis | S149: Metering | T149: Distribution | U149: Fee based | V149: Total
C150: Claims and Complaints - % of FTE | D150: JEN | E150: Per cent | F150: n.m. | S150: =2/5 -> 0.4 | T150: =3/5 -> 0.6 | U150: 0 | V150: =SUM(S150:U150) -> 1
C151: Staff Management - % of Activity | D151: JEN | E151: Per cent | F151: n.m. | S151: 0 | T151: 1 | U151: 0 | V151: 1
C152: Faults and Emergency Call Centre - % of Base Year Costs | D152: JEN | E152: Per cent | F152: n.m. | S152: 0 | T152: 1 | U152: 0 | V152: 1
C153: Manage Customer Contract and Back Office - % of Activity | D153: JEN | E153: Per cent | F153: n.m. | S153: 0 | T153: 1 | U153: 0 | V153: 1
C154: Service Desk - % of Service Orders | D154: JEN | E154: Per cent | F154: n.m. | S154: =364926.466666667/1111386.98666667 -> 0.3283522941 | T154: =133943.333333333/1111386.98666667 -> 0.1205190766 | U154: =612517.186666667/1111386.98666667 -> 0.5511286294 | V154: 1
C155: Total | D155: Calculated | E155: Per cent | F155: n.m. | S155: =IF(SUM(S150:S154)/SUM(V150:V154)<50%,0,1) -> 0 | T155: =IF(SUM(T150:T154)/SUM(V150:V154)<50%,0,1) -> 1 | U155: =IF(SUM(U150:U154)/SUM(V150:V154)<50%,0,1) -> 0 | V155: 1
C157: =C95 -> Reporting and finance (a), (b) & (c) | D157: Source | E157: Unit | F157: Basis | S157: Metering | T157: Distribution | U157: Fee based | V157: Total
C158: Finance - % of FTE | D158: JEN | E158: Per cent | F158: n.m. | S158: 0 | T158: =3/3 -> 1 | U158: 0 | V158: =SUM(S158:U158) -> 1
C159: Performance - % of Activity | D159: JEN | E159: Per cent | F159: n.m. | S159: 0 | T159: 1 | U159: 0 | V159: 1
C160: Contract management and procurement - % of number of contracts | D160: JEN | E160: Per cent | F160: n.m. | S160: =7/17 -> 0.4117647059 | T160: =6/17 -> 0.3529411765 | U160: =1-SUM(S160:T160) -> 0.2352941176 | V160: 1
C161: Total | D161: Calculated | E161: Per cent | F161: n.m. | S161: =IF(SUM(S158:S160)/SUM(V158:V160)<50%,0,1) -> 0 | T161: =IF(SUM(T158:T160)/SUM(V158:V160)<50%,0,1) -> 1 | U161: =IF(SUM(U158:U160)/SUM(V158:V160)<50%,0,1) -> 0 | V161: 1
C163: Compliance and industry representation | D163: Source | E163: Unit | F163: Basis | S163: Metering | T163: Distribution | U163: Fee based | V163: Total
C164: Metering Compliance | D164: JEN | E164: Utilisation | F164: n.m. | S164: =6890/92561 -> 0.07443739804 | T164: 0 | U164: 0 | V164: =SUM(S164:U164) -> 0.07443739804
C165: Network Industry Representation | D165: JEN | E165: Utilisation | F165: n.m. | S165: 0 | T165: =1-S164 -> 0.925562602 | U165: 0 | V165: 0.925562602
C166: Total | D166: Calculated | E166: Per cent | F166: n.m. | S166: =IF(SUM(S164:S165)/SUM(V164:V165)<50%,0,1) -> 0 | T166: =IF(SUM(T164:T165)/SUM(V164:V165)<50%,0,1) -> 1 | U166: =IF(SUM(U164:U165)/SUM(V164:V165)<50%,0,1) -> 0 | V166: 1
C168: Network systems IT | D168: Source | E168: Unit | F168: Basis | R168: Weighting | S168: Metering | T168: Distribution | U168: Fee based | V168: Total
C169: Meter Data Management System (Itron) | D169: JEN | E169: FTE | F169: n.m. | R169: 0.2142857143 | S169: 4 | T169: 2 | U169: 0 | V169: =SUM(S169:U169) -> 6
C170: Meter Network Management Systems (SSN) | D170: JEN | E170: FTE | F170: n.m. | R170: 0.1071428571 | S170: 1 | T170: 2 | U170: 0 | V170: 3
C171: Enterprise Service Bus / Business to Business Market Gateway (Web Methods) | D171: JEN | E171: FTE | F171: n.m. | R171: 0.1071428571 | S171: 1 | T171: 2 | U171: 0 | V171: =SUM(S171:U171) -> 3
C172: Business Intelligence Data Warehouse / Reporting (Cognos) | D172: JEN | E172: FTE | F172: n.m. | R172: 0.1071428571 | S172: 1 | T172: 2 | U172: 0 | V172: 3
C173: Connection Point Management System (SAP-ISU) | D173: JEN | E173: FTE | F173: n.m. | R173: 0.2857142857 | S173: 3 | T173: 5 | U173: 0 | V173: 8
C174: Infrastructure Support | D174: JEN | E174: FTE | F174: n.m. | R174: 0.1785714286 | S174: 2 | T174: 3 | U174: 0 | V174: 5
C175: Total | D175: Calculated | E175: Per cent | F175: n.m. | S175: =ROUND(SUMPRODUCT($R$169:$R$174,S169:S174)/SUMPRODUCT($R$169:$R$174,$V$169:$V$174),3) -> 0.441 | T175: =ROUND(SUMPRODUCT($R$169:$R$174,T169:T174)/SUMPRODUCT($R$169:$R$174,$V$169:$V$174),3) -> 0.559 | U175: 0 | V175: 1
C177: Network billing | D177: Source | E177: Unit | F177: Basis | S177: Metering | T177: Distribution | U177: Fee based | V177: Total
C178: Share of base year expenditure | D178: JEN | E178: Per cent | F178: n.m. | S178: 0 | T178: =1-S178 -> 1 | U178: 0 | V178: =SUM(S178:U178) -> 1
C179: Total | D179: Calculated | E179: Per cent | F179: n.m. | S179: =IF(SUM(S178:S178)/SUM(V178:V178)<50%,0,1) -> 0 | T179: =IF(SUM(T178:T178)/SUM(V178:V178)<50%,0,1) -> 1 | U179: =IF(SUM(U178:U178)/SUM(V178:V178)<50%,0,1) -> 0 | V179: 1
C181: Connection point management | D181: Source | E181: Unit | F181: Basis | S181: Metering | T181: Distribution | U181: Fee based | V181: Total
C182: Abolishments - Volume of activity x time per activity | D182: JEN | E182: Number | F182: n.m. | S182: 0 | T182: 0 | U182: 11133.2 | V182: =SUM(S182:U182) -> 11133.2
C183: Adds/Alts - Volume of activity x time per activity | D183: JEN | E183: Number | F183: n.m. | S183: 0 | T183: 0 | U183: 35375.6 | V183: 35375.6
C184: CATS Manual Task List - Volume of activity x time per activity | D184: JEN | E184: Number | F184: n.m. | S184: 0 | T184: 0 | U184: 31200 | V184: =SUM(S184:U184) -> 31200
C185: Complex Metering - Volume of activity x time per activity | D185: JEN | E185: Number | F185: n.m. | S185: 0 | T185: 0 | U185: 26327.6 | V185: 26327.6
C186: Enquiry - Volume of activity x time per activity | D186: JEN | E186: Number | F186: n.m. | S186: 0 | T186: 0 | U186: 12480 | V186: 12480
C187: Fixing - Volume of activity x time per activity | D187: JEN | E187: Number | F187: n.m. | S187: 0 | T187: 0 | U187: 23400 | V187: 23400
C188: New Connections - Volume of activity x time per activity | D188: JEN | E188: Number | F188: n.m. | S188: 0 | T188: 0 | U188: 142818 | V188: 142818
C189: Paperwork - Volume of activity x time per activity | D189: JEN | E189: Number | F189: n.m. | S189: 0 | T189: 0 | U189: 3785.6 | V189: 3785.6
C190: Phone Calls - Volume of activity x time per activity | D190: JEN | E190: Number | F190: n.m. | S190: 0 | T190: 0 | U190: 560898 | V190: 560898
C191: Solar - Volume of activity x time per activity | D191: JEN | E191: Number | F191: n.m. | S191: 0 | T191: 0 | U191: 150715.76 | V191: 150715.76
C192: Underground/Pits - Volume of activity x time per activity | D192: JEN | E192: Number | F192: n.m. | S192: 0 | T192: 0 | U192: 50974.56 | V192: 50974.56
C193: Unmetered - Volume of activity x time per activity | D193: JEN | E193: Number | F193: n.m. | S193: 0 | T193: 0 | U193: 1120.08 | V193: 1120.08
C194: Workflow Work item - Volume of activity x time per activity | D194: JEN | E194: Number | F194: n.m. | S194: 0 | T194: 0 | U194: 9360 | V194: 9360
C195: ACS Metering - Volume of activity x time per activity | D195: JEN | E195: Number | F195: n.m. | S195: 203295.04 | T195: 0 | U195: 0 | V195: 203295.04
C196: Total | D196: Calculated | E196: Per cent | F196: n.m. | S196: =IF(SUM(S182:S195)/SUM(V182:V195)<50%,0,1) -> 0 | T196: =IF(SUM(T182:T195)/SUM(V182:V195)<50%,0,1) -> 0 | U196: =IF(SUM(U182:U195)/SUM(V182:V195)<50%,0,1) -> 1 | V196: 1
C198: Technology and communications | D198: Source | E198: Unit | F198: Basis | S198: Metering | T198: Distribution | U198: Fee based | V198: Total
C199: Meter Data - Volume of activity x time per activity | D199: JEN | E199: Utilisation | F199: n.m. | S199: 0.625 | T199: =1-S199 -> 0.375 | U199: 0 | V199: =SUM(S199:U199) -> 1
C200: Event Data (Meter & Network) - Volume of activity x time per activity | D200: JEN | E200: Utilisation | F200: n.m. | S200: =S199 -> 0.625 | T200: =T199 -> 0.375 | U200: 0 | V200: 1
C201: Electricity Network Management - Volume of activity x time per activity | D201: JEN | E201: Utilisation | F201: n.m. | S201: =S200 -> 0.625 | T201: 0.375 | U201: 0 | V201: 1
C202: Total | D202: Calculated | E202: Per cent | F202: n.m. | S202: =IF(SUM(S199:S201)/SUM(V199:V201)<50%,0,1) -> 1 | T202: =IF(SUM(T199:T201)/SUM(V199:V201)<50%,0,1) -> 0 | U202: =IF(SUM(U199:U201)/SUM(V199:V201)<50%,0,1) -> 0 | V202: 1
C204: AMI Network operations | D204: Source | E204: Unit | F204: Basis | S204: Metering | T204: Distribution | U204: Fee based | V204: Total
C205: Communication Infrastructure Planning - Volume of activity x time per activity | D205: JEN | E205: Utilisation | F205: n.m. | S205: 1 | T205: 0 | U205: 0 | V205: =SUM(S205:U205) -> 1
C206: Investigation - Volume of activity x time per activity | D206: JEN | E206: Utilisation | F206: n.m. | S206: 1 | T206: 0 | U206: 0 | V206: 1
C207: Meter Exchange - Volume of activity x time per activity | D207: JEN | E207: Utilisation | F207: n.m. | S207: 1 | T207: 0 | U207: 0 | V207: 1
C208: Meter Reading - Volume of activity x time per activity | D208: JEN | E208: Utilisation | F208: n.m. | S208: 1 | T208: 0 | U208: 0 | V208: 1
C209: Total | D209: Calculated | E209: Per cent | F209: n.m. | S209: =IF(SUM(S205:S208)/SUM(V205:V208)<50%,0,1) -> 1 | T209: =IF(SUM(T205:T208)/SUM(V205:V208)<50%,0,1) -> 0 | U209: =IF(SUM(U205:U208)/SUM(V205:V208)<50%,0,1) -> 0 | V209: 1
C211: Metering operations | D211: Source | E211: Unit | F211: Basis | S211: Metering | T211: Distribution | U211: Fee based | V211: Total
C212: Share of base year expenditure | D212: JEN | E212: Per cent | F212: n.m. | S212: 1 | T212: =1-S212 -> 0 | U212: 0 | V212: =SUM(S212:U212) -> 1
C213: Total | D213: Calculated | E213: Per cent | F213: n.m. | S213: =IF(SUM(S212:S212)/SUM(V212:V212)<50%,0,1) -> 1 | T213: =IF(SUM(T212:T212)/SUM(V212:V212)<50%,0,1) -> 0 | U213: =IF(SUM(U212:U212)/SUM(V212:V212)<50%,0,1) -> 0 | V213: =SUM(S213:U213) -> 1
C215: Meter data management | D215: Source | E215: Unit | F215: Basis | S215: Metering | T215: Distribution | U215: Fee based | V215: Total
C216: Share of base year expenditure | D216: JEN | E216: Per cent | F216: n.m. | S216: 1 | T216: =1-S216 -> 0 | U216: 0 | V216: =SUM(S216:U216) -> 1
C217: Total | D217: Calculated | E217: Per cent | F217: n.m. | S217: =IF(SUM(S216:S216)/SUM(V216:V216)<50%,0,1) -> 1 | T217: =IF(SUM(T216:T216)/SUM(V216:V216)<50%,0,1) -> 0 | U217: =IF(SUM(U216:U216)/SUM(V216:V216)<50%,0,1) -> 0 | V217: 1
C219: Metering communications, strategy & planning | D219: Source | E219: Unit | F219: Basis | S219: Metering | T219: Distribution | U219: Fee based | V219: Total
C220: Regulatory Compliance | D220: JEN | E220: Activity Rating | F220: n.m. | S220: 5 | T220: 0 | U220: 0 | V220: =SUM(S220:U220) -> 5
C221: Meter Asset Management | D221: JEN | E221: Activity Rating | F221: n.m. | S221: 10 | T221: 0 | U221: 0 | V221: 10
C222: Communications Asset Management | D222: JEN | E222: Activity Rating | F222: n.m. | S222: 5 | T222: 5 | V222: 10
C223: AMI Network Benefits Realisation | D223: JEN | E223: Activity Rating | F223: n.m. | S223: 0 | T223: 10 | U223: 0 | V223: 10
C224: Total | D224: Calculated | E224: Per cent | F224: n.m. | S224: =IF(SUM(S220:S223)/SUM(V220:V223)<50%,0,1) -> 1 | T224: =IF(SUM(T220:T223)/SUM(V220:V223)<50%,0,1) -> 0 | U224: =IF(SUM(U220:U223)/SUM(V220:V223)<50%,0,1) -> 0 | V224: 1
C226: Regulated meter testing & replacement | D226: Source | E226: Unit | F226: Basis | S226: Metering | T226: Distribution | U226: Fee based | V226: Total
C227: Share of base year expenditure | D227: JEN | E227: Per cent | F227: n.m. | S227: 1 | T227: =1-S227 -> 0 | U227: 0 | V227: =SUM(S227:U227) -> 1
C228: Total | D228: Calculated | E228: Per cent | F228: n.m. | S228: =IF(SUM(S227:S227)/SUM(V227:V227)<50%,0,1) -> 1 | T228: =IF(SUM(T227:T227)/SUM(V227:V227)<50%,0,1) -> 0 | U228: =IF(SUM(U227:U227)/SUM(V227:V227)<50%,0,1) -> 0 | V228: 1
C230: Regulatory compliance | D230: Source | E230: Unit | F230: Basis | S230: Metering | T230: Distribution | U230: Fee based | V230: Total
C231: Regulatory Compliance - Volume of activity x time per activity | D231: JEN | E231: Number | F231: n.m. | S231: 13000 | T231: 2964 | U231: 4446 | V231: =SUM(S231:U231) -> 20410
C232: Total | D232: Calculated | E232: Per cent | F232: n.m. | S232: =IF(SUM(S231:S231)/SUM(V231:V231)<50%,0,1) -> 1 | T232: =IF(SUM(T231:T231)/SUM(V231:V231)<50%,0,1) -> 0 | U232: =IF(SUM(U231:U231)/SUM(V231:V231)<50%,0,1) -> 0 | V232: 1
C234: Corporate overhead (CAM) | D234: Source | E234: Unit | F234: Basis | S234: Metering | T234: Distribution | U234: Fee based | V234: Total
C235: Share of base year expenditure | D235: JEN | E235: Per cent | F235: n.m. | S235: 1 | T235: =1-S235 -> 0 | U235: 0 | V235: =SUM(S235:U235) -> 1
C236: Total | D236: Calculated | E236: Per cent | F236: n.m. | S236: =IF(SUM(S235:S235)/SUM(V235:V235)<50%,0,1) -> 1 | T236: =IF(SUM(T235:T235)/SUM(V235:V235)<50%,0,1) -> 0 | U236: =IF(SUM(U235:U235)/SUM(V235:V235)<50%,0,1) -> 0 | V236: 1
B238: End

Sheet Input|Rate of change
B1: =Index!$B$1 -> JEN opex model - Distribution services | L1: Back to Index | N1: Key: | O1: Input | P1: External Link | Q1: Internal Link | T1: Worksheet check: | U1: =IF(COUNTIF(X5:X96,"Check")=0,"Ok","Check") -> Ok | W1: Overall Check: | X1: ='Check|List'!$S$1 -> Ok
B2: =Index!$C$10 -> Input | Rate of change
D4: Source | E4: Unit | F4: Basis | J4: =K4-1 -> 2009 | K4: =IF(OFFSET('Lookup|Tables'!$G$26:$G$43,MATCH('Input|General'!$G$8,'Lookup|Tables'!$G$26:$G$42,0)-2,0,1,1)<='Input|General'!$G$12,OFFSET('Lookup|Tables'!$G$26:$G$43,MATCH('Input|General'!$G$8,'Lookup|Tables'!$G$26:$G$42,0)-2,0,1,1),"") -> 2010 | L4: ='Input|General'!$G$8 -> 2011 | M4: =IF(OFFSET('Lookup|Tables'!$G$26:$G$43,MATCH('Input|General'!$G$8,'Lookup|Tables'!$G$26:$G$42,0),0,1,1)<='Input|General'!$G$12,OFFSET('Lookup|Tables'!$G$26:$G$43,MATCH('Input|General'!$G$8,'Lookup|Tables'!$G$26:$G$42,0),0,1,1),"") -> 2012 | N4: =IF(OFFSET('Lookup|Tables'!$G$26:$G$43,MATCH('Input|General'!$G$8,'Lookup|Tables'!$G$26:$G$42,0)+1,0,1,1)<='Input|General'!$G$12,OFFSET('Lookup|Tables'!$G$26:$G$43,MATCH('Input|General'!$G$8,'Lookup|Tables'!$G$26:$G$42,0)+1,0,1,1),"") -> 2013 | O4: =IF(OFFSET('Lookup|Tables'!$G$26:$G$43,MATCH('Input|General'!$G$8,'Lookup|Tables'!$G$26:$G$42,0)+2,0,1,1)<='Input|General'!$G$12,OFFSET('Lookup|Tables'!$G$26:$G$43,MATCH('Input|General'!$G$8,'Lookup|Tables'!$G$26:$G$42,0)+2,0,1,1),"") -> 2014 | P4: =IF(OFFSET('Lookup|Tables'!$G$26:$G$43,MATCH('Input|General'!$G$8,'Lookup|Tables'!$G$26:$G$42,0)+3,0,1,1)<='Input|General'!$G$12,OFFSET('Lookup|Tables'!$G$26:$G$43,MATCH('Input|General'!$G$8,'Lookup|Tables'!$G$26:$G$42,0)+3,0,1,1),"") -> 2015 | Q4: =IF(OFFSET('Lookup|Tables'!$G$26:$G$43,MATCH('Input|General'!$G$8,'Lookup|Tables'!$G$26:$G$42,0)+4,0,1,1)<='Input|General'!$G$12,OFFSET('Lookup|Tables'!$G$26:$G$43,MATCH('Input|General'!$G$8,'Lookup|Tables'!$G$26:$G$42,0)+4,0,1,1),"") -> 2016 | R4: =IF(OFFSET('Lookup|Tables'!$G$26:$G$43,MATCH('Input|General'!$G$8,'Lookup|Tables'!$G$26:$G$42,0)+5,0,1,1)<='Input|General'!$G$12,OFFSET('Lookup|Tables'!$G$26:$G$43,MATCH('Input|General'!$G$8,'Lookup|Tables'!$G$26:$G$42,0)+5,0,1,1),"") -> 2017 | S4: =IF(OFFSET('Lookup|Tables'!$G$26:$G$43,MATCH('Input|General'!$G$8,'Lookup|Tables'!$G$26:$G$42,0)+6,0,1,1)<='Input|General'!$G$12,OFFSET('Lookup|Tables'!$G$26:$G$43,MATCH('Input|General'!$G$8,'Lookup|Tables'!$G$26:$G$42,0)+6,0,1,1),"") -> 2018 | T4: =IF(OFFSET('Lookup|Tables'!$G$26:$G$43,MATCH('Input|General'!$G$8,'Lookup|Tables'!$G$26:$G$42,0)+7,0,1,1)<='Input|General'!$G$12,OFFSET('Lookup|Tables'!$G$26:$G$43,MATCH('Input|General'!$G$8,'Lookup|Tables'!$G$26:$G$42,0)+7,0,1,1),"") -> 2019 | U4: =IF(OFFSET('Lookup|Tables'!$G$28:$G$43,MATCH('Input|General'!$G$8,'Lookup|Tables'!$G$28:$G$42,0)+8,0,1,1)<='Input|General'!$G$12,OFFSET('Lookup|Tables'!$G$28:$G$43,MATCH('Input|General'!$G$8,'Lookup|Tables'!$G$28:$G$42,0)+8,0,1,1),"") -> 2020
B8: Input | Inflation
C10: Inflation | J10: =J$4 -> 2009 | K10: =K$4 -> 2010 | L10: =L$4 -> 2011 | M10: =M$4 -> 2012 | N10: 2013 | O10: 2014 | P10: 2015 | Q10: 2016 | R10: 2017 | S10: 2018 | T10: 2019 | U10: 2020
C12: Inflation | D12: calculated | E12: =percent -> Per cent | J12: ='Input|Inflation'!D20/'Input|Inflation'!D16-1 -> 0.02108433735 | K12: ='Input|Inflation'!D24/'Input|Inflation'!D20-1 -> 0.02654867257 | L12: ='Input|Inflation'!$E28/'Input|Inflation'!$E24-1 -> 0.02992776058 | M12: ='Input|Inflation'!E32/'Input|Inflation'!E28-1 -> 0.02204408818 | N12: ='Input|Inflation'!E36/'Input|Inflation'!E32-1 -> 0.02745098039 | O12: ='Input|Inflation'!E40/'Input|Inflation'!E36-1 -> 0.01717557252 | P12: ='Input|Inflation'!E44/'Input|Inflation'!E40-1 -> 0.0175
C14: CPI indexes (real to real) | J14: =J$4 -> 2009 | K14: =K$4 -> 2010 | L14: =L$4 -> 2011 | M14: =M4 -> 2012 | N14: =N4 -> 2013 | O14: =O4 -> 2014 | P14: =P4 -> 2015
C16: ='Lookup|Tables'!C27 -> 2009 | D16: calculated | E16: index | J16: 1 | K16: =(1+K$12) -> 1.026548673 | L16: =K16*(1+L$12) -> 1.057270975 | M16: 1.08057755 | N16: 1.110240463 | O16: 1.129309479 | P16: =O16*(1+P$12) -> 1.149072395
C17: ='Lookup|Tables'!C28 -> 2010 | D17: calculated | E17: index | J17: =K17/(1+K$12) -> 0.974137931 | K17: 1 | L17: =K17*(1+L$12) -> 1.029927761 | M17: 1.052631579 | N17: 1.081527348 | O17: 1.100103199 | P17: =O17*(1+P$12) -> 1.119355005
C18: ='Lookup|Tables'!C29 -> 2011 | D18: calculated | E18: index | J18: =K18/(1+K$12) -> 0.9458313178 | K18: =L18/(1+L$12) -> 0.9709418838 | L18: 1 | M18: =L18*(1+M$12) -> 1.022044088 | N18: =M18*(1+N$12) -> 1.0501002 | O18: 1.068136273 | P18: 1.086828657
C19: ='Lookup|Tables'!C30 -> 2012 | D19: calculated | E19: index | J19: =K19/(1+K$12) -> 0.9254310345 | K19: =L19/(1+L$12) -> 0.95 | L19: =M19/(1+M$12) -> 0.9784313725 | M19: 1 | N19: =M19*(1+N$12) -> 1.02745098 | O19: 1.045098039 | P19: 1.063387255
C20: ='Lookup|Tables'!C31 -> 2013 | D20: calculated | E20: index | J20: =K20/(1+K$12) -> 0.9007057778 | K20: 0.9246183206 | L20: 0.9522900763 | M20: 0.9732824427 | N20: 1 | O20: =N20*(1+O$12) -> 1.017175573 | P20: 1.034976145
C21: ='Lookup|Tables'!C32 -> 2014 | D21: calculated | E21: index | J21: 0.8854968623 | K21: 0.9090056285 | L21: 0.9362101313 | M21: 0.95684803 | N21: 0.9831144465 | O21: 1 | P21: =O21*(1+P$12) -> 1.0175
C22: ='Lookup|Tables'!C33 -> 2015 | D22: calculated | E22: index | J22: 0.8702671865 | K22: 0.8933716251 | L22: 0.9201082372 | M22: 0.9403911843 | N22: 0.9662058443 | O22: 0.9828009828 | P22: 1
C24: CPI indexes (nominal to real) | J24: =J10 -> 2009 | K24: =K10 -> 2010 | L24: 2011 | M24: 2012 | N24: 2013 | O24: 2014 | P24: 2015
C26: =C16 -> 2009 | D26: calculated | E26: index | J26: =1/J16*(1+J$12)^0.5 -> 1.010487178 | K26: =1/K16*(1+K$12)^0.5 -> 0.9869842608 | L26: 0.9598802858 | M26: 0.9355755741 | N26: 0.9129847095 | O26: 0.8930689448 | P26: 0.8778489978
C27: 2010 | D27: calculated | E27: index | J27: =1/J17*(1+J$12)^0.5 -> 1.037314271 | K27: 1.013187383 | L27: 0.9853638332 | M27: 0.9604138637 | N27: 0.9372232416 | O27: 0.9167787398 | P27: 0.9011547234
C28: 2011 | D28: calculated | E28: index | J28: =1/J18*(1+J$12)^0.5 -> 1.068358765 | K28: 1.043509812 | L28: 1.014853566 | M28: 0.9891568999 | N28: 0.9652722344 | O28: 0.9442158744 | P28: 0.9281242662
C29: 2012 | D29: calculated | E29: index | J29: =1/J19*(1+J$12)^0.5 -> 1.091909759 | K29: 1.066513034 | L29: 1.037225088 | M29: 1.010961962 | N29: 0.9865507806 | O29: 0.9650302524 | P29: 0.9485839194
C30: 2013 | D30: calculated | E30: index | J30: =1/J20*(1+J$12)^0.5 -> 1.121883753 | K30: 1.095789863 | L30: 1.065697933 | M30: 1.038713859 | N30: 1.013632567 | O30: 0.9915212789 | P30: 0.974623478
C31: 2014 | D31: calculated | E31: index | J31: =1/J21*(1+J$12)^0.5 -> 1.141152749 | K31: 1.114610681 | L31: 1.084001905 | M31: 1.056554364 | N31: 1.031042286 | O31: 1.008551225 | P31: 0.9913631942
C32: 2015 | D32: calculated | E32: index | J32: =1/J22*(1+J$12)^0.5 -> 1.161122922 | K32: 1.134116368 | L32: 1.102971939 | M32: 1.075044065 | N32: 1.049085526 | O32: 1.026200871 | P32: 1.00871205
B34: Input | Forecast price change
C36: Forecast price change | D36: Source | E36: Unit | J36: =IF(J$4>='Input|General'!$G$11,IF(J$4<='Input|General'!$G$12,J$4,""),"") ->  | K36: =IF(K$4>='Input|General'!$G$11,IF(K$4<='Input|General'!$G$12,K$4,""),"") ->  | L36: =IF(L$4>='Input|General'!$G$11,IF(L$4<='Input|General'!$G$12,L$4,""),"") ->  | M36: =IF(M$4>='Input|General'!$G$11,IF(M$4<='Input|General'!$G$12,M$4,""),"") ->  | N36: =IF(N$4>='Input|General'!$G$11,IF(N$4<='Input|General'!$G$12,N$4,""),"") ->  | O36: =IF(O$4>='Input|General'!$G$11,IF(O$4<='Input|General'!$G$12,O$4,""),"") ->  | P36: =IF(P$4>='Input|General'!$G$11,IF(P$4<='Input|General'!$G$12,P$4,""),"") ->  | Q36: =IF(Q$4>='Input|General'!$G$11,IF(Q$4<='Input|General'!$G$12,Q$4,""),"") -> 2016 | R36: =IF(R$4>='Input|General'!$G$11,IF(R$4<='Input|General'!$G$12,R$4,""),"") -> 2017 | S36: =IF(S$4>='Input|General'!$G$11,IF(S$4<='Input|General'!$G$12,S$4,""),"") -> 2018 | T36: =IF(T$4>='Input|General'!$G$11,IF(T$4<='Input|General'!$G$12,T$4,""),"") -> 2019 | U36: =IF(U$4>='Input|General'!$G$11,IF(U$4<='Input|General'!$G$12,U$4,""),"") -> 2020
C38: WPI | D38: external | E38: =percent -> Per cent | Q38: 0.003626636602 | R38: 0.008022635789 | S38: 0.01279632922 | T38: 0.01479639634 | U38: 0.01368165279
D39: external | E39: Per cent
D40: external | E40: Per cent
D41: external | E41: Per cent
D42: external | E42: Per cent
D43: external | E43: Per cent
D44: external | E44: Per cent
C45: CPI | D45: external | E45: Per cent | Q45: 0 | R45: 0 | S45: 0 | T45: 0 | U45: 0
C47: Weights | D47: Source | E47: Unit | J47: =IF(J$4>='Input|General'!$G$11,IF(J$4<='Input|General'!$G$12,J$4,""),"") ->  | K47: =IF(K$4>='Input|General'!$G$11,IF(K$4<='Input|General'!$G$12,K$4,""),"") ->  | L47: =IF(L$4>='Input|General'!$G$11,IF(L$4<='Input|General'!$G$12,L$4,""),"") ->  | M47: =IF(M$4>='Input|General'!$G$11,IF(M$4<='Input|General'!$G$12,M$4,""),"") ->  | N47: =IF(N$4>='Input|General'!$G$11,IF(N$4<='Input|General'!$G$12,N$4,""),"") ->  | O47: =IF(O$4>='Input|General'!$G$11,IF(O$4<='Input|General'!$G$12,O$4,""),"") ->  | P47: =IF(P$4>='Input|General'!$G$11,IF(P$4<='Input|General'!$G$12,P$4,""),"") ->  | Q47: =IF(Q$4>='Input|General'!$G$11,IF(Q$4<='Input|General'!$G$12,Q$4,""),"") -> 2016 | R47: =IF(R$4>='Input|General'!$G$11,IF(R$4<='Input|General'!$G$12,R$4,""),"") -> 2017 | S47: =IF(S$4>='Input|General'!$G$11,IF(S$4<='Input|General'!$G$12,S$4,""),"") -> 2018 | T47: =IF(T$4>='Input|General'!$G$11,IF(T$4<='Input|General'!$G$12,T$4,""),"") -> 2019 | U47: =IF(U$4>='Input|General'!$G$11,IF(U$4<='Input|General'!$G$12,U$4,""),"") -> 2020
C49: =C38 -> WPI | D49: external | E49: =percent -> Per cent | Q49: 0.62 | R49: 0.62 | S49: 0.62 | T49: 0.62 | U49: 0.62
C50: =C39 -> 0 | D50: external | E50: Per cent
C51: 0 | D51: external | E51: Per cent
C52: 0 | D52: external | E52: Per cent
C53: 0 | D53: external | E53: Per cent
C54: 0 | D54: external | E54: Per cent
C55: 0 | D55: external | E55: Per cent
C56: CPI | D56: external | E56: Per cent | Q56: =1-Q49 -> 0.38 | R56: =1-R49 -> 0.38 | S56: 0.38 | T56: 0.38 | U56: 0.38
C58: Check | D58: calculated | E58: Ok/Check | F58: n/a | Q58: =IF(SUM(Q49:Q56)=1,"Ok","Check") -> Ok | R58: =IF(SUM(R49:R56)=1,"Ok","Check") -> Ok | S58: Ok | T58: Ok | U58: Ok | X58: =IF(COUNTIF(L58:U58,"Check")=0,"Ok","Check") -> Ok
B60: Input | Forecast output growth
C62: Output measure | D62: Source | E62: Unit | F62: Basis | J62: =IF(J$4>='Input|General'!$G$10,IF(J$4<='Input|General'!$G$12,J$4,""),"") ->  | K62: =IF(K$4>='Input|General'!$G$10,IF(K$4<='Input|General'!$G$12,K$4,""),"") ->  | L62: =IF(L$4>='Input|General'!$G$10,IF(L$4<='Input|General'!$G$12,L$4,""),"") ->  | M62: =IF(M$4>='Input|General'!$G$10,IF(M$4<='Input|General'!$G$12,M$4,""),"") ->  | N62: =IF(N$4>='Input|General'!$G$10,IF(N$4<='Input|General'!$G$12,N$4,""),"") ->  | O62: =IF(O$4>='Input|General'!$G$10,IF(O$4<='Input|General'!$G$12,O$4,""),"") ->  | P62: =IF(P$4>='Input|General'!$G$10,IF(P$4<='Input|General'!$G$12,P$4,""),"") -> 2015 | Q62: =IF(Q$4>='Input|General'!$G$10,IF(Q$4<='Input|General'!$G$12,Q$4,""),"") -> 2016 | R62: =IF(R$4>='Input|General'!$G$10,IF(R$4<='Input|General'!$G$12,R$4,""),"") -> 2017 | S62: =IF(S$4>='Input|General'!$G$10,IF(S$4<='Input|General'!$G$12,S$4,""),"") -> 2018 | T62: =IF(T$4>='Input|General'!$G$10,IF(T$4<='Input|General'!$G$12,T$4,""),"") -> 2019 | U62: =IF(U$4>='Input|General'!$G$10,IF(U$4<='Input|General'!$G$12,U$4,""),"") -> 2020
C64: Customer numbers | D64: external | E64: number | F64: n/a | P64: 323311 | Q64: 329982 | R64: 336295 | S64: 342748 | T64: 349244 | U64: 355597
C65: Circuit Length | D65: external | E65: number | F65: n/a | P65: 6291.553556 | Q65: 6418.337603 | R65: 6577.130876 | S65: 6708.251326 | T65: 6841.307264 | U65: 6961.700215
C66: Ratcheted Maximum Demand | D66: external | E66: number | F66: n/a | P66: 957.9 | Q66: 980 | R66: 988.9 | S66: 999.7 | T66: 1008 | U66: 1021.2
D67: external | E67: number | F67: n/a
D68: external | E68: number | F68: n/a
D69: external | E69: number | F69: n/a
C71: Growth rate | D71: Source | E71: Unit | F71: Basis | J71: =IF(J$4>='Input|General'!$G$11,IF(J$4<='Input|General'!$G$12,J$4,""),"") ->  | K71: =IF(K$4>='Input|General'!$G$11,IF(K$4<='Input|General'!$G$12,K$4,""),"") ->  | L71: =IF(L$4>='Input|General'!$G$11,IF(L$4<='Input|General'!$G$12,L$4,""),"") ->  | M71: =IF(M$4>='Input|General'!$G$11,IF(M$4<='Input|General'!$G$12,M$4,""),"") ->  | N71: =IF(N$4>='Input|General'!$G$11,IF(N$4<='Input|General'!$G$12,N$4,""),"") ->  | O71: =IF(O$4>='Input|General'!$G$11,IF(O$4<='Input|General'!$G$12,O$4,""),"") ->  | P71: =IF(P$4>='Input|General'!$G$11,IF(P$4<='Input|General'!$G$12,P$4,""),"") ->  | Q71: =IF(Q$4>='Input|General'!$G$11,IF(Q$4<='Input|General'!$G$12,Q$4,""),"") -> 2016 | R71: =IF(R$4>='Input|General'!$G$11,IF(R$4<='Input|General'!$G$12,R$4,""),"") -> 2017 | S71: =IF(S$4>='Input|General'!$G$11,IF(S$4<='Input|General'!$G$12,S$4,""),"") -> 2018 | T71: =IF(T$4>='Input|General'!$G$11,IF(T$4<='Input|General'!$G$12,T$4,""),"") -> 2019 | U71: =IF(U$4>='Input|General'!$G$11,IF(U$4<='Input|General'!$G$12,U$4,""),"") -> 2020 | V71: =IF(RIGHT(V$4,2)>=RIGHT('Input|General'!$G$11,2),IF(RIGHT(V$4,2)<='Input|General'!$G$12,'Input|Reported opex'!V$4,""),"") -> 
C73: =C64 -> Customer numbers | D73: calculated | E73: number | F73: n/a | J73: =IF(ISBLANK(I64),"",LN(J64)-LN(I64)) ->  | K73: =IF(ISBLANK(J64),"",LN(K64)-LN(J64)) ->  | L73: =IF(ISBLANK(K64),"",LN(L64)-LN(K64)) ->  | P73: =IF(ISBLANK(O64),"",LN(P64)-LN(O64)) ->  | Q73: =IF(ISBLANK(P64),"",LN(Q64)-LN(P64)) -> 0.02042339924 | R73: =IF(ISBLANK(Q64),"",LN(R64)-LN(Q64)) -> 0.01895064344 | S73: 0.01900673231 | T73: 0.01877533505 | U73: 0.01802724884
C74: =C65 -> Circuit Length | D74: calculated | E74: number | F74: n/a | L74: =IF(ISBLANK(K65),"",LN(L65)-LN(K65)) ->  | P74: =IF(ISBLANK(O65),"",LN(P65)-LN(O65)) ->  | Q74: 0.01995111536 | R74: =IF(ISBLANK(Q65),"",LN(R65)-LN(Q65)) -> 0.0244394693 | S74: 0.0197396968 | T74: 0.01964052395 | U74: 0.01744489435
C75: Ratcheted Maximum Demand | D75: calculated | E75: number | F75: n/a | L75: =IF(ISBLANK(K66),"",LN(L66)-LN(K66)) ->  | Q75: 0.02280918328 | R75: =IF(ISBLANK(Q66),"",LN(R66)-LN(Q66)) -> 0.009040642611 | S75: 0.0108620197 | T75: 0.008268214658 | U75: 0.01301023674
C76: 0 | D76: calculated | E76: number | F76: n/a | Q76: =IF(ISBLANK(Q67),"",LN(Q67)-LN(P67)) -> 
C77: 0 | D77: calculated | E77: number | F77: n/a | Q77: =IF(ISBLANK(Q68),"",LN(Q68)-LN(P68)) -> 
C78: 0 | D78: calculated | E78: number | F78: n/a | Q78: =IF(ISBLANK(Q69),"",LN(Q69)-LN(P69)) -> 
C80: Weights
C82: =C64 -> Customer numbers | D82: external | E82: number | F82: n/a | Q82: 0.6760829496
C83: =C65 -> Circuit Length | D83: external | E83: number | F83: n/a | Q83: 0.1070273345
C84: Ratcheted Maximum Demand | D84: external | E84: number | F84: n/a | Q84: 0.2168897159
C85: 0 | D85: external | E85: number | F85: n/a
C86: 0 | D86: external | E86: number | F86: n/a
C87: 0 | D87: external | E87: number | F87: n/a
C89: Check | D89: calculated | E89: Ok/Check | F89: n/a | Q89: =IF(SUM(Q82:Q87)=1,"Ok","Check") -> Ok | X89: =IF(COUNTIF(L89:U89,"Check")=0,"Ok","Check") -> Ok
B91: Input | Forecast productivity
C93: Partial factor productivity | D93: Source | E93: Unit | F93: Basis | J93: =IF(J$4>='Input|General'!$G$11,IF(J$4<='Input|General'!$G$12,J$4,""),"") ->  | K93: =IF(K$4>='Input|General'!$G$11,IF(K$4<='Input|General'!$G$12,K$4,""),"") ->  | L93: =IF(L$4>='Input|General'!$G$11,IF(L$4<='Input|General'!$G$12,L$4,""),"") ->  | M93: =IF(M$4>='Input|General'!$G$11,IF(M$4<='Input|General'!$G$12,M$4,""),"") ->  | N93: =IF(N$4>='Input|General'!$G$11,IF(N$4<='Input|General'!$G$12,N$4,""),"") ->  | O93: =IF(O$4>='Input|General'!$G$11,IF(O$4<='Input|General'!$G$12,O$4,""),"") ->  | P93: =IF(P$4>='Input|General'!$G$11,IF(P$4<='Input|General'!$G$12,P$4,""),"") ->  | Q93: =IF(Q$4>='Input|General'!$G$11,IF(Q$4<='Input|General'!$G$12,Q$4,""),"") -> 2016 | R93: =IF(R$4>='Input|General'!$G$11,IF(R$4<='Input|General'!$G$12,R$4,""),"") -> 2017 | S93: =IF(S$4>='Input|General'!$G$11,IF(S$4<='Input|General'!$G$12,S$4,""),"") -> 2018 | T93: =IF(T$4>='Input|General'!$G$11,IF(T$4<='Input|General'!$G$12,T$4,""),"") -> 2019 | U93: =IF(U$4>='Input|General'!$G$11,IF(U$4<='Input|General'!$G$12,U$4,""),"") -> 2020
C95: Partial factor productivity | D95: external | E95: =percent -> Per cent | F95: n/a | Q95: 0 | R95: 0 | S95: 0 | T95: 0 | U95: 0
B97: End

Sheet Input|Step changes
B1: =Index!$B$1 -> JEN opex model - Distribution services | J1: Back to Index | L1: Key: | M1: Input | N1: External Link | O1: Internal Link | R1: Worksheet check: | S1: =IF(COUNTA($W$8:$W$227)=COUNTIF($W$8:$W$227,"OK"),"OK","Check") -> OK | U1: Overall Check: | V1: ='Check|List'!$S$1 -> Ok
B2: =Index!$C$11 -> Input | Step changes
D4: Source | E4: Unit | F4: Basis | J4: ='Input|General'!$G$8 -> 2011 | K4: =IF(OFFSET('Lookup|Tables'!$G$26:$G$43,MATCH('Input|General'!$G$8,'Lookup|Tables'!$G$26:$G$42,0),0,1,1)<='Input|General'!$G$12,OFFSET('Lookup|Tables'!$G$26:$G$43,MATCH('Input|General'!$G$8,'Lookup|Tables'!$G$26:$G$42,0),0,1,1),"") -> 2012 | L4: =IF(OFFSET('Lookup|Tables'!$G$28:$G$43,MATCH('Input|General'!$G$8,'Lookup|Tables'!$G$28:$G$42,0)+1,0,1,1)<='Input|General'!$G$12,OFFSET('Lookup|Tables'!$G$28:$G$43,MATCH('Input|General'!$G$8,'Lookup|Tables'!$G$28:$G$42,0)+1,0,1,1),"") -> 2013 | M4: =IF(OFFSET('Lookup|Tables'!$G$28:$G$43,MATCH('Input|General'!$G$8,'Lookup|Tables'!$G$28:$G$42,0)+2,0,1,1)<='Input|General'!$G$12,OFFSET('Lookup|Tables'!$G$28:$G$43,MATCH('Input|General'!$G$8,'Lookup|Tables'!$G$28:$G$42,0)+2,0,1,1),"") -> 2014 | N4: =IF(OFFSET('Lookup|Tables'!$G$28:$G$43,MATCH('Input|General'!$G$8,'Lookup|Tables'!$G$28:$G$42,0)+3,0,1,1)<='Input|General'!$G$12,OFFSET('Lookup|Tables'!$G$28:$G$43,MATCH('Input|General'!$G$8,'Lookup|Tables'!$G$28:$G$42,0)+3,0,1,1),"") -> 2015 | O4: =IF(OFFSET('Lookup|Tables'!$G$28:$G$43,MATCH('Input|General'!$G$8,'Lookup|Tables'!$G$28:$G$42,0)+4,0,1,1)<='Input|General'!$G$12,OFFSET('Lookup|Tables'!$G$28:$G$43,MATCH('Input|General'!$G$8,'Lookup|Tables'!$G$28:$G$42,0)+4,0,1,1),"") -> 2016 | P4: =IF(OFFSET('Lookup|Tables'!$G$28:$G$43,MATCH('Input|General'!$G$8,'Lookup|Tables'!$G$28:$G$42,0)+5,0,1,1)<='Input|General'!$G$12,OFFSET('Lookup|Tables'!$G$28:$G$43,MATCH('Input|General'!$G$8,'Lookup|Tables'!$G$28:$G$42,0)+5,0,1,1),"") -> 2017 | Q4: =IF(OFFSET('Lookup|Tables'!$G$28:$G$43,MATCH('Input|General'!$G$8,'Lookup|Tables'!$G$28:$G$42,0)+6,0,1,1)<='Input|General'!$G$12,OFFSET('Lookup|Tables'!$G$28:$G$43,MATCH('Input|General'!$G$8,'Lookup|Tables'!$G$28:$G$42,0)+6,0,1,1),"") -> 2018 | R4: =IF(OFFSET('Lookup|Tables'!$G$28:$G$43,MATCH('Input|General'!$G$8,'Lookup|Tables'!$G$28:$G$42,0)+7,0,1,1)<='Input|General'!$G$12,OFFSET('Lookup|Tables'!$G$28:$G$43,MATCH('Input|General'!$G$8,'Lookup|Tables'!$G$28:$G$42,0)+7,0,1,1),"") -> 2019 | S4: =IF(OFFSET('Lookup|Tables'!$G$28:$G$43,MATCH('Input|General'!$G$8,'Lookup|Tables'!$G$28:$G$42,0)+8,0,1,1)<='Input|General'!$G$12,OFFSET('Lookup|Tables'!$G$28:$G$43,MATCH('Input|General'!$G$8,'Lookup|Tables'!$G$28:$G$42,0)+8,0,1,1),"") -> 2020
B8: Input |Step changes
C10: Step change | D10: Source | E10: Unit | F10: Basis | J10: =IF(J$4>='Input|General'!$G$11,IF(J$4<='Input|General'!$G$12,'Input|Reported opex'!L$4,""),"") ->  | K10: =IF(K$4>='Input|General'!$G$11,IF(K$4<='Input|General'!$G$12,'Input|Reported opex'!M$4,""),"") ->  | L10: =IF(L$4>='Input|General'!$G$11,IF(L$4<='Input|General'!$G$12,'Input|Reported opex'!N$4,""),"") ->  | M10: =IF(M$4>='Input|General'!$G$11,IF(M$4<='Input|General'!$G$12,'Input|Reported opex'!O$4,""),"") ->  | N10: =IF(N$4>='Input|General'!$G$11,IF(N$4<='Input|General'!$G$12,'Input|Reported opex'!P$4,""),"") ->  | O10: =IF(O$4>='Input|General'!$G$11,IF(O$4<='Input|General'!$G$12,'Input|Reported opex'!Q$4,""),"") -> 2016 | P10: =IF(P$4>='Input|General'!$G$11,IF(P$4<='Input|General'!$G$12,'Input|Reported opex'!R$4,""),"") -> 2017 | Q10: =IF(Q$4>='Input|General'!$G$11,IF(Q$4<='Input|General'!$G$12,'Input|Reported opex'!S$4,""),"") -> 2018 | R10: =IF(R$4>='Input|General'!$G$11,IF(R$4<='Input|General'!$G$12,'Input|Reported opex'!T$4,""),"") -> 2019 | S10: =IF(S$4>='Input|General'!$G$11,IF(S$4<='Input|General'!$G$12,'Input|Reported opex'!U$4,""),"") -> 2020
C12: Demand management | D12: JEN | E12: $millions | F12: 2015 | O12: 0.11 | P12: 0.15 | Q12: 0.15 | R12: 0.15 | S12: 0.15
C13: New tariff implementation | D13: JEN | E13: $millions | F13: 2015 | O13: 1.23 | P13: 0.47 | Q13: 0.25 | R13: 0.25 | S13: 0.25
C14: GSL payments (new ESC obligations) | D14: JEN | E14: $millions | F14: 2015 | O14: ='[14]Calc|Summary'!O$31/10^6 -> 0.1783613 | P14: ='[14]Calc|Summary'!P$31/10^6 -> 0.1783613 | Q14: ='[14]Calc|Summary'!Q$31/10^6 -> 0.1783613 | R14: ='[14]Calc|Summary'!R$31/10^6 -> 0.1783613 | S14: ='[14]Calc|Summary'!S$31/10^6 -> 0.1783613
C15: Service inspection and testing program | D15: JEN | E15: $millions | F15: 2015 | O15: 1.538183129 | P15: 1.538183129 | Q15: 1.538183129 | R15: 1.538183129 | S15: 0
C16: Overhead switch inspection | D16: JEN | E16: $millions | F16: 2015 | O16: 0 | P16: 0 | Q16: 0 | R16: 0 | S16: 0
C17: Pole top early detection system trial | D17: JEN | E17: $millions | F17: 2015 | O17: 0.2750633361 | P17: 0.2750633361 | Q17: 0.2750633361 | R17: 0.2750633361 | S17: 0.2750633361
C18: Vulnerable customer initiative | D18: JEN | E18: $millions | F18: 2015 | O18: 0.2223256288 | P18: 0.1964738115 | Q18: 0.1964738115 | R18: 0.1964738115 | S18: 0.1964738115
C19: ESV / VESI code of practice changes | D19: JEN | E19: $millions | F19: 2015 | O19: 0 | P19: 0 | Q19: 0 | R19: 0 | S19: 0
C20: Enclosed substation inspection and rectification program | D20: JEN | E20: $millions | F20: 2015 | O20: 0.1126 | P20: 0.1126 | Q20: 0.1126 | R20: 0.1126 | S20: 0.1126
C21: Insurance premiums | D21: JEN | E21: $millions | F21: 2015 | O21: 0.03488277267 | P21: 0.03455834365 | Q21: 0.034224451 | R21: 0.03389930566 | S21: 0.03356739875
C22: Vegetation management | D22: JEN | E22: $millions | F22: 2015 | O22: 1.4478 | P22: 1.4228 | Q22: 1.3528 | R22: 1.3528 | S22: 1.3528
C23: RIN reporting | D23: JEN | E23: $millions | F23: 2015 | O23: 3.57905995 | P23: 0.574359375 | Q23: 0.574359375 | R23: 0.574359375 | S23: 0.574359375
C24: Power of choice | D24: JEN | E24: $millions | F24: 2015 | O24: 0.3893710225 | P24: 0.4884289775 | Q24: 0 | R24: 0 | S24: 0
C25: Chapter 5A (new obligations) | D25: JEN | E25: $millions | F25: 2015 | O25: ='[14]Calc|Summary'!O$22/10^6 -> 0.3044698177 | P25: ='[14]Calc|Summary'!P$22/10^6 -> 0.10037118 | Q25: ='[14]Calc|Summary'!Q$22/10^6 -> 0.10037118 | R25: ='[14]Calc|Summary'!R$22/10^6 -> 0.10037118 | S25: ='[14]Calc|Summary'!S$22/10^6 -> 0.10037118
B27: Input | Specific forecasts
C29: Specific forecasts | D29: Source | E29: Unit | F29: Basis | J29: =IF(J$4>='Input|General'!$G$11,IF(J$4<='Input|General'!$G$12,'Input|Reported opex'!L$4,""),"") ->  | K29: =IF(K$4>='Input|General'!$G$11,IF(K$4<='Input|General'!$G$12,'Input|Reported opex'!M$4,""),"") ->  | L29: =IF(L$4>='Input|General'!$G$11,IF(L$4<='Input|General'!$G$12,'Input|Reported opex'!N$4,""),"") ->  | M29: =IF(M$4>='Input|General'!$G$11,IF(M$4<='Input|General'!$G$12,'Input|Reported opex'!O$4,""),"") ->  | N29: =IF(N$4>='Input|General'!$G$11,IF(N$4<='Input|General'!$G$12,'Input|Reported opex'!P$4,""),"") ->  | O29: =IF(O$4>='Input|General'!$G$11,IF(O$4<='Input|General'!$G$12,'Input|Reported opex'!Q$4,""),"") -> 2016 | P29: =IF(P$4>='Input|General'!$G$11,IF(P$4<='Input|General'!$G$12,'Input|Reported opex'!R$4,""),"") -> 2017 | Q29: =IF(Q$4>='Input|General'!$G$11,IF(Q$4<='Input|General'!$G$12,'Input|Reported opex'!S$4,""),"") -> 2018 | R29: =IF(R$4>='Input|General'!$G$11,IF(R$4<='Input|General'!$G$12,'Input|Reported opex'!T$4,""),"") -> 2019 | S29: =IF(S$4>='Input|General'!$G$11,IF(S$4<='Input|General'!$G$12,'Input|Reported opex'!U$4,""),"") -> 2020
C31: GSL payments (base) | D31: JEN | E31: $millions | F31: 2015 | O31: =0.0525527894076892 -> 0.05255278941 | P31: =0.0525527894076892 -> 0.05255278941 | Q31: 0.05255278941 | R31: 0.05255278941 | S31: 0.05255278941
C32: Debt raising costs | D32: PTRM | E32: $millions | F32: 2015 | O32: ='[15]PTRM input'!G$186 -> 0.6058667849 | P32: ='[15]PTRM input'!H$186 -> 0.6368810249 | Q32: ='[15]PTRM input'!I$186 -> 0.6912150829 | R32: ='[15]PTRM input'!J$186 -> 0.723562143 | S32: ='[15]PTRM input'!K$186 -> 0.7543336599
B34: End

Sheet Calc|Opex forecast
B1: =Index!$B$1 -> JEN opex model - Distribution services | J1: Back to Index | L1: Key: | M1: Input | N1: External Link | O1: Internal Link | R1: Worksheet check: | S1: n/a | U1: Overall Check: | V1: ='Check|List'!$S$1 -> Ok
B2: =Index!$C$12 -> Calc | Opex Forecast
D4: Source | E4: Unit | F4: Basis | J4: ='Input|General'!$G$8 -> 2011 | K4: =IF(OFFSET('Lookup|Tables'!$G$26:$G$43,MATCH('Input|General'!$G$8,'Lookup|Tables'!$G$26:$G$42,0),0,1,1)<='Input|General'!$G$12,OFFSET('Lookup|Tables'!$G$26:$G$43,MATCH('Input|General'!$G$8,'Lookup|Tables'!$G$26:$G$42,0),0,1,1),"") -> 2012 | L4: =IF(OFFSET('Lookup|Tables'!$G$28:$G$43,MATCH('Input|General'!$G$8,'Lookup|Tables'!$G$28:$G$42,0)+1,0,1,1)<='Input|General'!$G$12,OFFSET('Lookup|Tables'!$G$28:$G$43,MATCH('Input|General'!$G$8,'Lookup|Tables'!$G$28:$G$42,0)+1,0,1,1),"") -> 2013 | M4: =IF(OFFSET('Lookup|Tables'!$G$28:$G$43,MATCH('Input|General'!$G$8,'Lookup|Tables'!$G$28:$G$42,0)+2,0,1,1)<='Input|General'!$G$12,OFFSET('Lookup|Tables'!$G$28:$G$43,MATCH('Input|General'!$G$8,'Lookup|Tables'!$G$28:$G$42,0)+2,0,1,1),"") -> 2014 | N4: =IF(OFFSET('Lookup|Tables'!$G$28:$G$43,MATCH('Input|General'!$G$8,'Lookup|Tables'!$G$28:$G$42,0)+3,0,1,1)<='Input|General'!$G$12,OFFSET('Lookup|Tables'!$G$28:$G$43,MATCH('Input|General'!$G$8,'Lookup|Tables'!$G$28:$G$42,0)+3,0,1,1),"") -> 2015 | O4: =IF(OFFSET('Lookup|Tables'!$G$28:$G$43,MATCH('Input|General'!$G$8,'Lookup|Tables'!$G$28:$G$42,0)+4,0,1,1)<='Input|General'!$G$12,OFFSET('Lookup|Tables'!$G$28:$G$43,MATCH('Input|General'!$G$8,'Lookup|Tables'!$G$28:$G$42,0)+4,0,1,1),"") -> 2016 | P4: =IF(OFFSET('Lookup|Tables'!$G$28:$G$43,MATCH('Input|General'!$G$8,'Lookup|Tables'!$G$28:$G$42,0)+5,0,1,1)<='Input|General'!$G$12,OFFSET('Lookup|Tables'!$G$28:$G$43,MATCH('Input|General'!$G$8,'Lookup|Tables'!$G$28:$G$42,0)+5,0,1,1),"") -> 2017 | Q4: =IF(OFFSET('Lookup|Tables'!$G$28:$G$43,MATCH('Input|General'!$G$8,'Lookup|Tables'!$G$28:$G$42,0)+6,0,1,1)<='Input|General'!$G$12,OFFSET('Lookup|Tables'!$G$28:$G$43,MATCH('Input|General'!$G$8,'Lookup|Tables'!$G$28:$G$42,0)+6,0,1,1),"") -> 2018 | R4: =IF(OFFSET('Lookup|Tables'!$G$28:$G$43,MATCH('Input|General'!$G$8,'Lookup|Tables'!$G$28:$G$42,0)+7,0,1,1)<='Input|General'!$G$12,OFFSET('Lookup|Tables'!$G$28:$G$43,MATCH('Input|General'!$G$8,'Lookup|Tables'!$G$28:$G$42,0)+7,0,1,1),"") -> 2019 | S4: =IF(OFFSET('Lookup|Tables'!$G$28:$G$43,MATCH('Input|General'!$G$8,'Lookup|Tables'!$G$28:$G$42,0)+8,0,1,1)<='Input|General'!$G$12,OFFSET('Lookup|Tables'!$G$28:$G$43,MATCH('Input|General'!$G$8,'Lookup|Tables'!$G$28:$G$42,0)+8,0,1,1),"") -> 2020
B8: Calc | Estimated final year expenditure | E8: $millions | F8: 2015
D10: Source | E10: Unit | F10: Basis | J10: =IF(RIGHT(J$4,2)>=RIGHT('Input|General'!$G$9,2),IF(RIGHT(J$4,2)<=RIGHT('Input|General'!$G$10,2),J$4,""),"") ->  | K10: =IF(RIGHT(K$4,2)>=RIGHT('Input|General'!$G$9,2),IF(RIGHT(K$4,2)<=RIGHT('Input|General'!$G$10,2),K$4,""),"") ->  | L10: =IF(RIGHT(L$4,2)>=RIGHT('Input|General'!$G$9,2),IF(RIGHT(L$4,2)<=RIGHT('Input|General'!$G$10,2),L$4,""),"") ->  | M10: =IF(RIGHT(M$4,2)>=RIGHT('Input|General'!$G$9,2),IF(RIGHT(M$4,2)<=RIGHT('Input|General'!$G$10,2),M$4,""),"") -> 2014 | N10: =IF(RIGHT(N$4,2)>=RIGHT('Input|General'!$G$9,2),IF(RIGHT(N$4,2)<=RIGHT('Input|General'!$G$10,2),N$4,""),"") -> 2015 | O10: =IF(RIGHT(O$4,2)>=RIGHT('Input|General'!$G$9,2),IF(RIGHT(O$4,2)<=RIGHT('Input|General'!$G$10,2),O$4,""),"") ->  | P10: =IF(RIGHT(P$4,2)>=RIGHT('Input|General'!$G$9,2),IF(RIGHT(P$4,2)<=RIGHT('Input|General'!$G$10,2),P$4,""),"") ->  | Q10: =IF(RIGHT(Q$4,2)>=RIGHT('Input|General'!$G$9,2),IF(RIGHT(Q$4,2)<=RIGHT('Input|General'!$G$10,2),Q$4,""),"") ->  | R10: =IF(RIGHT(R$4,2)>=RIGHT('Input|General'!$G$9,2),IF(RIGHT(R$4,2)<=RIGHT('Input|General'!$G$10,2),R$4,""),"") ->  | S10: =IF(RIGHT(S$4,2)>=RIGHT('Input|General'!$G$9,2),IF(RIGHT(S$4,2)<=RIGHT('Input|General'!$G$10,2),S$4,""),"") -> 
C12: Total reported opex | D12: Inputs|Reported opex | E12: ='Input|Reported opex'!E58 -> $millions | F12: ='Input|Reported opex'!F58 -> nominal | J12: =IF(J$10='Input|General'!$G$9,'Input|Reported opex'!L58,0) -> 0 | K12: =IF(K$10='Input|General'!$G$9,'Input|Reported opex'!M58,0) -> 0 | L12: =IF(L$10='Input|General'!$G$9,'Input|Reported opex'!N58,0) -> 0 | M12: =IF(M$10='Input|General'!$G$9,'Input|Reported opex'!O58,0) -> 71.84955698 | N12: =IF(N$10='Input|General'!$G$9,'Input|Reported opex'!P58,0) -> 0 | O12: =IF(O$10='Input|General'!$G$9,'Input|Reported opex'!Q58,0) -> 0 | P12: =IF(P$10='Input|General'!$G$9,'Input|Reported opex'!R58,0) -> 0 | Q12: =IF(Q$10='Input|General'!$G$9,'Input|Reported opex'!S58,0) -> 0 | R12: =IF(R$10='Input|General'!$G$9,'Input|Reported opex'!T58,0) -> 0 | S12: =IF(S$10='Input|General'!$G$9,'Input|Reported opex'!U58,0) -> 0
C13: Total reported opex | D13: Calculated | E13: =$E$8 -> $millions | F13: =$F$8 -> 2015 | J13: =J12*IF($F12="nominal",LOOKUP($F13,Nominal_to_Real,'Input|Rate of change'!L$26:L$32),INDEX('Input|Rate of change'!$C$14:$P$22,MATCH('Calc|Opex forecast'!$F12,'Input|Rate of change'!$C$14:$C$22,0),MATCH('Calc|Opex forecast'!$F13,'Input|Rate of change'!$C$14:$P$14,0)))*IF($E12="$millions",1000000,IF($E12="$000",1000,1))/IF($E13="$millions",1000000,IF($E13="$000",1000,1)) -> 0 | K13: =K12*IF($F12="nominal",LOOKUP($F13,Nominal_to_Real,'Input|Rate of change'!M$26:M$32),INDEX('Input|Rate of change'!$C$14:$P$22,MATCH('Calc|Opex forecast'!$F12,'Input|Rate of change'!$C$14:$C$22,0),MATCH('Calc|Opex forecast'!$F13,'Input|Rate of change'!$C$14:$P$14,0)))*IF($E12="$millions",1000000,IF($E12="$000",1000,1))/IF($E13="$millions",1000000,IF($E13="$000",1000,1)) -> 0 | L13: =L12*IF($F12="nominal",LOOKUP($F13,Nominal_to_Real,'Input|Rate of change'!N$26:N$32),INDEX('Input|Rate of change'!$C$14:$P$22,MATCH('Calc|Opex forecast'!$F12,'Input|Rate of change'!$C$14:$C$22,0),MATCH('Calc|Opex forecast'!$F13,'Input|Rate of change'!$C$14:$P$14,0)))*IF($E12="$millions",1000000,IF($E12="$000",1000,1))/IF($E13="$millions",1000000,IF($E13="$000",1000,1)) -> 0 | M13: =M12*IF($F12="nominal",LOOKUP($F13,Nominal_to_Real,'Input|Rate of change'!O$26:O$32),INDEX('Input|Rate of change'!$C$14:$P$22,MATCH('Calc|Opex forecast'!$F12,'Input|Rate of change'!$C$14:$C$22,0),MATCH('Calc|Opex forecast'!$F13,'Input|Rate of change'!$C$14:$P$14,0)))*IF($E12="$millions",1000000,IF($E12="$000",1000,1))/IF($E13="$millions",1000000,IF($E13="$000",1000,1)) -> 73.73207795 | N13: =N12*IF($F12="nominal",LOOKUP($F13,Nominal_to_Real,'Input|Rate of change'!P$26:P$32),INDEX('Input|Rate of change'!$C$14:$P$22,MATCH('Calc|Opex forecast'!$F12,'Input|Rate of change'!$C$14:$C$22,0),MATCH('Calc|Opex forecast'!$F13,'Input|Rate of change'!$C$14:$P$14,0)))*IF($E12="$millions",1000000,IF($E12="$000",1000,1))/IF($E13="$millions",1000000,IF($E13="$000",1000,1)) -> 0 | O13: =O12*IF($F12="nominal",LOOKUP($F13,Nominal_to_Real,'Input|Rate of change'!Q$26:Q$32),INDEX('Input|Rate of change'!$C$14:$P$22,MATCH('Calc|Opex forecast'!$F12,'Input|Rate of change'!$C$14:$C$22,0),MATCH('Calc|Opex forecast'!$F13,'Input|Rate of change'!$C$14:$P$14,0)))*IF($E12="$millions",1000000,IF($E12="$000",1000,1))/IF($E13="$millions",1000000,IF($E13="$000",1000,1)) -> 0 | P13: =P12*IF($F12="nominal",LOOKUP($F13,Nominal_to_Real,'Input|Rate of change'!R$26:R$32),INDEX('Input|Rate of change'!$C$14:$P$22,MATCH('Calc|Opex forecast'!$F12,'Input|Rate of change'!$C$14:$C$22,0),MATCH('Calc|Opex forecast'!$F13,'Input|Rate of change'!$C$14:$P$14,0)))*IF($E12="$millions",1000000,IF($E12="$000",1000,1))/IF($E13="$millions",1000000,IF($E13="$000",1000,1)) -> 0 | Q13: =Q12*IF($F12="nominal",LOOKUP($F13,Nominal_to_Real,'Input|Rate of change'!S$26:S$32),INDEX('Input|Rate of change'!$C$14:$P$22,MATCH('Calc|Opex forecast'!$F12,'Input|Rate of change'!$C$14:$C$22,0),MATCH('Calc|Opex forecast'!$F13,'Input|Rate of change'!$C$14:$P$14,0)))*IF($E12="$millions",1000000,IF($E12="$000",1000,1))/IF($E13="$millions",1000000,IF($E13="$000",1000,1)) -> 0 | R13: =R12*IF($F12="nominal",LOOKUP($F13,Nominal_to_Real,'Input|Rate of change'!T$26:T$32),INDEX('Input|Rate of change'!$C$14:$P$22,MATCH('Calc|Opex forecast'!$F12,'Input|Rate of change'!$C$14:$C$22,0),MATCH('Calc|Opex forecast'!$F13,'Input|Rate of change'!$C$14:$P$14,0)))*IF($E12="$millions",1000000,IF($E12="$000",1000,1))/IF($E13="$millions",1000000,IF($E13="$000",1000,1)) -> 0 | S13: =S12*IF($F12="nominal",LOOKUP($F13,Nominal_to_Real,'Input|Rate of change'!U$26:U$32),INDEX('Input|Rate of change'!$C$14:$P$22,MATCH('Calc|Opex forecast'!$F12,'Input|Rate of change'!$C$14:$C$22,0),MATCH('Calc|Opex forecast'!$F13,'Input|Rate of change'!$C$14:$P$14,0)))*IF($E12="$millions",1000000,IF($E12="$000",1000,1))/IF($E13="$millions",1000000,IF($E13="$000",1000,1)) -> 0
C14: Total base year opex allowance | D14: Inputs|Reported opex | E14: ='Input|Reported opex'!E25 -> $millions | F14: ='Input|Reported opex'!F25 -> 2010 | J14: =IF(J$10='Input|General'!$G$9,'Input|Reported opex'!L25,0) -> 0 | K14: =IF(K$10='Input|General'!$G$9,'Input|Reported opex'!M25,0) -> 0 | L14: =IF(L$10='Input|General'!$G$9,'Input|Reported opex'!N25,0) -> 0 | M14: =IF(M$10='Input|General'!$G$9,'Input|Reported opex'!O25,0) -> 61.59236351 | N14: =IF(N$10='Input|General'!$G$9,'Input|Reported opex'!P25,0) -> 0 | O14: =IF(O$10='Input|General'!$G$9,'Input|Reported opex'!Q25,0) -> 0 | P14: =IF(P$10='Input|General'!$G$9,'Input|Reported opex'!R25,0) -> 0 | Q14: =IF(Q$10='Input|General'!$G$9,'Input|Reported opex'!S25,0) -> 0 | R14: =IF(R$10='Input|General'!$G$9,'Input|Reported opex'!T25,0) -> 0 | S14: =IF(S$10='Input|General'!$G$9,'Input|Reported opex'!U25,0) -> 0
C15: Total base year opex allowance | D15: Calculated | E15: =$E$8 -> $millions | F15: =$F$8 -> 2015 | J15: =J14*IF($F14="nominal",LOOKUP($F15,Nominal_to_Real,'Input|Rate of change'!L$26:L$32),INDEX('Input|Rate of change'!$C$14:$P$22,MATCH('Calc|Opex forecast'!$F14,'Input|Rate of change'!$C$14:$C$22,0),MATCH('Calc|Opex forecast'!$F15,'Input|Rate of change'!$C$14:$P$14,0)))*IF($E14="$millions",1000000,IF($E14="$000",1000,1))/IF($E15="$millions",1000000,IF($E15="$000",1000,1)) -> 0 | K15: =K14*IF($F14="nominal",LOOKUP($F15,Nominal_to_Real,'Input|Rate of change'!M$26:M$32),INDEX('Input|Rate of change'!$C$14:$P$22,MATCH('Calc|Opex forecast'!$F14,'Input|Rate of change'!$C$14:$C$22,0),MATCH('Calc|Opex forecast'!$F15,'Input|Rate of change'!$C$14:$P$14,0)))*IF($E14="$millions",1000000,IF($E14="$000",1000,1))/IF($E15="$millions",1000000,IF($E15="$000",1000,1)) -> 0 | L15: =L14*IF($F14="nominal",LOOKUP($F15,Nominal_to_Real,'Input|Rate of change'!N$26:N$32),INDEX('Input|Rate of change'!$C$14:$P$22,MATCH('Calc|Opex forecast'!$F14,'Input|Rate of change'!$C$14:$C$22,0),MATCH('Calc|Opex forecast'!$F15,'Input|Rate of change'!$C$14:$P$14,0)))*IF($E14="$millions",1000000,IF($E14="$000",1000,1))/IF($E15="$millions",1000000,IF($E15="$000",1000,1)) -> 0 | M15: =M14*IF($F14="nominal",LOOKUP($F15,Nominal_to_Real,'Input|Rate of change'!O$26:O$32),INDEX('Input|Rate of change'!$C$14:$P$22,MATCH('Calc|Opex forecast'!$F14,'Input|Rate of change'!$C$14:$C$22,0),MATCH('Calc|Opex forecast'!$F15,'Input|Rate of change'!$C$14:$P$14,0)))*IF($E14="$millions",1000000,IF($E14="$000",1000,1))/IF($E15="$millions",1000000,IF($E15="$000",1000,1)) -> 68.94372038 | N15: =N14*IF($F14="nominal",LOOKUP($F15,Nominal_to_Real,'Input|Rate of change'!P$26:P$32),INDEX('Input|Rate of change'!$C$14:$P$22,MATCH('Calc|Opex forecast'!$F14,'Input|Rate of change'!$C$14:$C$22,0),MATCH('Calc|Opex forecast'!$F15,'Input|Rate of change'!$C$14:$P$14,0)))*IF($E14="$millions",1000000,IF($E14="$000",1000,1))/IF($E15="$millions",1000000,IF($E15="$000",1000,1)) -> 0 | O15: =O14*IF($F14="nominal",LOOKUP($F15,Nominal_to_Real,'Input|Rate of change'!Q$26:Q$32),INDEX('Input|Rate of change'!$C$14:$P$22,MATCH('Calc|Opex forecast'!$F14,'Input|Rate of change'!$C$14:$C$22,0),MATCH('Calc|Opex forecast'!$F15,'Input|Rate of change'!$C$14:$P$14,0)))*IF($E14="$millions",1000000,IF($E14="$000",1000,1))/IF($E15="$millions",1000000,IF($E15="$000",1000,1)) -> 0 | P15: =P14*IF($F14="nominal",LOOKUP($F15,Nominal_to_Real,'Input|Rate of change'!R$26:R$32),INDEX('Input|Rate of change'!$C$14:$P$22,MATCH('Calc|Opex forecast'!$F14,'Input|Rate of change'!$C$14:$C$22,0),MATCH('Calc|Opex forecast'!$F15,'Input|Rate of change'!$C$14:$P$14,0)))*IF($E14="$millions",1000000,IF($E14="$000",1000,1))/IF($E15="$millions",1000000,IF($E15="$000",1000,1)) -> 0 | Q15: =Q14*IF($F14="nominal",LOOKUP($F15,Nominal_to_Real,'Input|Rate of change'!S$26:S$32),INDEX('Input|Rate of change'!$C$14:$P$22,MATCH('Calc|Opex forecast'!$F14,'Input|Rate of change'!$C$14:$C$22,0),MATCH('Calc|Opex forecast'!$F15,'Input|Rate of change'!$C$14:$P$14,0)))*IF($E14="$millions",1000000,IF($E14="$000",1000,1))/IF($E15="$millions",1000000,IF($E15="$000",1000,1)) -> 0 | R15: =R14*IF($F14="nominal",LOOKUP($F15,Nominal_to_Real,'Input|Rate of change'!T$26:T$32),INDEX('Input|Rate of change'!$C$14:$P$22,MATCH('Calc|Opex forecast'!$F14,'Input|Rate of change'!$C$14:$C$22,0),MATCH('Calc|Opex forecast'!$F15,'Input|Rate of change'!$C$14:$P$14,0)))*IF($E14="$millions",1000000,IF($E14="$000",1000,1))/IF($E15="$millions",1000000,IF($E15="$000",1000,1)) -> 0 | S15: =S14*IF($F14="nominal",LOOKUP($F15,Nominal_to_Real,'Input|Rate of change'!U$26:U$32),INDEX('Input|Rate of change'!$C$14:$P$22,MATCH('Calc|Opex forecast'!$F14,'Input|Rate of change'!$C$14:$C$22,0),MATCH('Calc|Opex forecast'!$F15,'Input|Rate of change'!$C$14:$P$14,0)))*IF($E14="$millions",1000000,IF($E14="$000",1000,1))/IF($E15="$millions",1000000,IF($E15="$000",1000,1)) -> 0
C16: Total final year opex allowance | D16: Inputs|Reported opex | E16: ='Input|Reported opex'!E25 -> $millions | F16: ='Input|Reported opex'!F25 -> 2010 | J16: =IF(J$10='Input|General'!$G$10,'Input|Reported opex'!L25,0) -> 0 | K16: =IF(K$10='Input|General'!$G$10,'Input|Reported opex'!M25,0) -> 0 | L16: =IF(L$10='Input|General'!$G$10,'Input|Reported opex'!N25,0) -> 0 | M16: =IF(M$10='Input|General'!$G$10,'Input|Reported opex'!O25,0) -> 0 | N16: =IF(N$10='Input|General'!$G$10,'Input|Reported opex'!P25,0) -> 60.59853115 | O16: =IF(O$10='Input|General'!$G$10,'Input|Reported opex'!Q25,0) -> 0 | P16: =IF(P$10='Input|General'!$G$10,'Input|Reported opex'!R25,0) -> 0 | Q16: =IF(Q$10='Input|General'!$G$10,'Input|Reported opex'!S25,0) -> 0 | R16: =IF(R$10='Input|General'!$G$10,'Input|Reported opex'!T25,0) -> 0 | S16: =IF(S$10='Input|General'!$G$10,'Input|Reported opex'!U25,0) -> 0
C17: Total final year opex allowance | D17: Calculated | E17: =$E$8 -> $millions | F17: =$F$8 -> 2015 | J17: =J16*IF($F16="nominal",LOOKUP($F17,Nominal_to_Real,'Input|Rate of change'!L$27:L$32),INDEX('Input|Rate of change'!$C$14:$P$22,MATCH('Calc|Opex forecast'!$F16,'Input|Rate of change'!$C$14:$C$22,0),MATCH('Calc|Opex forecast'!$F17,'Input|Rate of change'!$C$14:$P$14,0)))*IF($E16="$millions",1000000,IF($E16="$000",1000,1))/IF($E17="$millions",1000000,IF($E17="$000",1000,1)) -> 0 | K17: =K16*IF($F16="nominal",LOOKUP($F17,Nominal_to_Real,'Input|Rate of change'!M$27:M$32),INDEX('Input|Rate of change'!$C$14:$P$22,MATCH('Calc|Opex forecast'!$F16,'Input|Rate of change'!$C$14:$C$22,0),MATCH('Calc|Opex forecast'!$F17,'Input|Rate of change'!$C$14:$P$14,0)))*IF($E16="$millions",1000000,IF($E16="$000",1000,1))/IF($E17="$millions",1000000,IF($E17="$000",1000,1)) -> 0 | L17: =L16*IF($F16="nominal",LOOKUP($F17,Nominal_to_Real,'Input|Rate of change'!N$27:N$32),INDEX('Input|Rate of change'!$C$14:$P$22,MATCH('Calc|Opex forecast'!$F16,'Input|Rate of change'!$C$14:$C$22,0),MATCH('Calc|Opex forecast'!$F17,'Input|Rate of change'!$C$14:$P$14,0)))*IF($E16="$millions",1000000,IF($E16="$000",1000,1))/IF($E17="$millions",1000000,IF($E17="$000",1000,1)) -> 0 | M17: =M16*IF($F16="nominal",LOOKUP($F17,Nominal_to_Real,'Input|Rate of change'!O$27:O$32),INDEX('Input|Rate of change'!$C$14:$P$22,MATCH('Calc|Opex forecast'!$F16,'Input|Rate of change'!$C$14:$C$22,0),MATCH('Calc|Opex forecast'!$F17,'Input|Rate of change'!$C$14:$P$14,0)))*IF($E16="$millions",1000000,IF($E16="$000",1000,1))/IF($E17="$millions",1000000,IF($E17="$000",1000,1)) -> 0 | N17: =N16*IF($F16="nominal",LOOKUP($F17,Nominal_to_Real,'Input|Rate of change'!P$27:P$32),INDEX('Input|Rate of change'!$C$14:$P$22,MATCH('Calc|Opex forecast'!$F16,'Input|Rate of change'!$C$14:$C$22,0),MATCH('Calc|Opex forecast'!$F17,'Input|Rate of change'!$C$14:$P$14,0)))*IF($E16="$millions",1000000,IF($E16="$000",1000,1))/IF($E17="$millions",1000000,IF($E17="$000",1000,1)) -> 67.83126915 | O17: =O16*IF($F16="nominal",LOOKUP($F17,Nominal_to_Real,'Input|Rate of change'!Q$27:Q$32),INDEX('Input|Rate of change'!$C$14:$P$22,MATCH('Calc|Opex forecast'!$F16,'Input|Rate of change'!$C$14:$C$22,0),MATCH('Calc|Opex forecast'!$F17,'Input|Rate of change'!$C$14:$P$14,0)))*IF($E16="$millions",1000000,IF($E16="$000",1000,1))/IF($E17="$millions",1000000,IF($E17="$000",1000,1)) -> 0 | P17: =P16*IF($F16="nominal",LOOKUP($F17,Nominal_to_Real,'Input|Rate of change'!R$27:R$32),INDEX('Input|Rate of change'!$C$14:$P$22,MATCH('Calc|Opex forecast'!$F16,'Input|Rate of change'!$C$14:$C$22,0),MATCH('Calc|Opex forecast'!$F17,'Input|Rate of change'!$C$14:$P$14,0)))*IF($E16="$millions",1000000,IF($E16="$000",1000,1))/IF($E17="$millions",1000000,IF($E17="$000",1000,1)) -> 0 | Q17: =Q16*IF($F16="nominal",LOOKUP($F17,Nominal_to_Real,'Input|Rate of change'!S$27:S$32),INDEX('Input|Rate of change'!$C$14:$P$22,MATCH('Calc|Opex forecast'!$F16,'Input|Rate of change'!$C$14:$C$22,0),MATCH('Calc|Opex forecast'!$F17,'Input|Rate of change'!$C$14:$P$14,0)))*IF($E16="$millions",1000000,IF($E16="$000",1000,1))/IF($E17="$millions",1000000,IF($E17="$000",1000,1)) -> 0 | R17: =R16*IF($F16="nominal",LOOKUP($F17,Nominal_to_Real,'Input|Rate of change'!T$27:T$32),INDEX('Input|Rate of change'!$C$14:$P$22,MATCH('Calc|Opex forecast'!$F16,'Input|Rate of change'!$C$14:$C$22,0),MATCH('Calc|Opex forecast'!$F17,'Input|Rate of change'!$C$14:$P$14,0)))*IF($E16="$millions",1000000,IF($E16="$000",1000,1))/IF($E17="$millions",1000000,IF($E17="$000",1000,1)) -> 0 | S17: =S16*IF($F16="nominal",LOOKUP($F17,Nominal_to_Real,'Input|Rate of change'!U$27:U$32),INDEX('Input|Rate of change'!$C$14:$P$22,MATCH('Calc|Opex forecast'!$F16,'Input|Rate of change'!$C$14:$C$22,0),MATCH('Calc|Opex forecast'!$F17,'Input|Rate of change'!$C$14:$P$14,0)))*IF($E16="$millions",1000000,IF($E16="$000",1000,1))/IF($E17="$millions",1000000,IF($E17="$000",1000,1)) -> 0
C19: Estimated final year opex | D19: Calculated | E19: =$E$8 -> $millions | F19: =$F$8 -> 2015 | J19: =IF(J$10='Input|General'!$G$10,SUM($J13:$S13)-SUM($J15:$S15)+SUM($J17:$S17),0) -> 0 | K19: =IF(K$10='Input|General'!$G$10,SUM($J13:$S13)-SUM($J15:$S15)+SUM($J17:$S17),0) -> 0 | L19: =IF(L$10='Input|General'!$G$10,SUM($J13:$S13)-SUM($J15:$S15)+SUM($J17:$S17),0) -> 0 | M19: =IF(M$10='Input|General'!$G$10,SUM($J13:$S13)-SUM($J15:$S15)+SUM($J17:$S17),0) -> 0 | N19: =IF(N$10='Input|General'!$G$10,SUM($J13:$S13)-SUM($J15:$S15)+SUM($J17:$S17),0) -> 72.61962673 | O19: =IF(O$10='Input|General'!$G$10,SUM($J13:$S13)-SUM($J15:$S15)+SUM($J17:$S17),0) -> 0 | P19: =IF(P$10='Input|General'!$G$10,SUM($J13:$S13)-SUM($J15:$S15)+SUM($J17:$S17),0) -> 0 | Q19: =IF(Q$10='Input|General'!$G$10,SUM($J13:$S13)-SUM($J15:$S15)+SUM($J17:$S17),0) -> 0 | R19: =IF(R$10='Input|General'!$G$10,SUM($J13:$S13)-SUM($J15:$S15)+SUM($J17:$S17),0) -> 0 | S19: =IF(S$10='Input|General'!$G$10,SUM($J13:$S13)-SUM($J15:$S15)+SUM($J17:$S17),0) -> 0
C21: CAM adjustment | D21: Inputs|Reported opex | E21: ='Input|Reported opex'!E79 -> $millions | F21: ='Input|Reported opex'!F79 -> 2015 | I21: =IF(I$10='Input|General'!$G$10,'Input|Reported opex'!I79,0) -> 0 | J21: =IF(J$10='Input|General'!$G$10,'Input|Reported opex'!L79,0) -> 0 | K21: =IF(K$10='Input|General'!$G$10,'Input|Reported opex'!M79,0) -> 0 | L21: =IF(L$10='Input|General'!$G$10,'Input|Reported opex'!N79,0) -> 0 | M21: =IF(M$10='Input|General'!$G$10,'Input|Reported opex'!O79,0) -> 0 | N21: =IF(N$10='Input|General'!$G$10,'Input|Reported opex'!P79,0) -> 0 | O21: =IF(O$10='Input|General'!$G$10,'Input|Reported opex'!Q79,0) -> 0 | P21: =IF(P$10='Input|General'!$G$10,'Input|Reported opex'!R79,0) -> 0 | Q21: =IF(Q$10='Input|General'!$G$10,'Input|Reported opex'!S79,0) -> 0 | R21: =IF(R$10='Input|General'!$G$10,'Input|Reported opex'!T79,0) -> 0 | S21: =IF(S$10='Input|General'!$G$10,'Input|Reported opex'!U79,0) -> 0
C22: =C21 -> CAM adjustment | D22: Calculated | E22: =$E$8 -> $millions | F22: =$F$8 -> 2015 | J22: =J21*IF($F21="nominal",LOOKUP($F22,Nominal_to_Real,'Input|Rate of change'!L$26:L$32),INDEX('Input|Rate of change'!$C$14:$P$22,MATCH('Calc|Opex forecast'!$F21,'Input|Rate of change'!$C$14:$C$22,0),MATCH('Calc|Opex forecast'!$F22,'Input|Rate of change'!$C$14:$P$14,0)))*IF($E21="$millions",1000000,IF($E21="$000",1000,1))/IF($E22="$millions",1000000,IF($E22="$000",1000,1)) -> 0 | K22: =K21*IF($F21="nominal",LOOKUP($F22,Nominal_to_Real,'Input|Rate of change'!M$26:M$32),INDEX('Input|Rate of change'!$C$14:$P$22,MATCH('Calc|Opex forecast'!$F21,'Input|Rate of change'!$C$14:$C$22,0),MATCH('Calc|Opex forecast'!$F22,'Input|Rate of change'!$C$14:$P$14,0)))*IF($E21="$millions",1000000,IF($E21="$000",1000,1))/IF($E22="$millions",1000000,IF($E22="$000",1000,1)) -> 0 | L22: =L21*IF($F21="nominal",LOOKUP($F22,Nominal_to_Real,'Input|Rate of change'!N$26:N$32),INDEX('Input|Rate of change'!$C$14:$P$22,MATCH('Calc|Opex forecast'!$F21,'Input|Rate of change'!$C$14:$C$22,0),MATCH('Calc|Opex forecast'!$F22,'Input|Rate of change'!$C$14:$P$14,0)))*IF($E21="$millions",1000000,IF($E21="$000",1000,1))/IF($E22="$millions",1000000,IF($E22="$000",1000,1)) -> 0 | M22: =M21*IF($F21="nominal",LOOKUP($F22,Nominal_to_Real,'Input|Rate of change'!O$26:O$32),INDEX('Input|Rate of change'!$C$14:$P$22,MATCH('Calc|Opex forecast'!$F21,'Input|Rate of change'!$C$14:$C$22,0),MATCH('Calc|Opex forecast'!$F22,'Input|Rate of change'!$C$14:$P$14,0)))*IF($E21="$millions",1000000,IF($E21="$000",1000,1))/IF($E22="$millions",1000000,IF($E22="$000",1000,1)) -> 0 | N22: =N21*IF($F21="nominal",LOOKUP($F22,Nominal_to_Real,'Input|Rate of change'!P$26:P$32),INDEX('Input|Rate of change'!$C$14:$P$22,MATCH('Calc|Opex forecast'!$F21,'Input|Rate of change'!$C$14:$C$22,0),MATCH('Calc|Opex forecast'!$F22,'Input|Rate of change'!$C$14:$P$14,0)))*IF($E21="$millions",1000000,IF($E21="$000",1000,1))/IF($E22="$millions",1000000,IF($E22="$000",1000,1)) -> 0 | O22: =O21*IF($F21="nominal",LOOKUP($F22,Nominal_to_Real,'Input|Rate of change'!Q$26:Q$32),INDEX('Input|Rate of change'!$C$14:$P$22,MATCH('Calc|Opex forecast'!$F21,'Input|Rate of change'!$C$14:$C$22,0),MATCH('Calc|Opex forecast'!$F22,'Input|Rate of change'!$C$14:$P$14,0)))*IF($E21="$millions",1000000,IF($E21="$000",1000,1))/IF($E22="$millions",1000000,IF($E22="$000",1000,1)) -> 0 | P22: =P21*IF($F21="nominal",LOOKUP($F22,Nominal_to_Real,'Input|Rate of change'!R$26:R$32),INDEX('Input|Rate of change'!$C$14:$P$22,MATCH('Calc|Opex forecast'!$F21,'Input|Rate of change'!$C$14:$C$22,0),MATCH('Calc|Opex forecast'!$F22,'Input|Rate of change'!$C$14:$P$14,0)))*IF($E21="$millions",1000000,IF($E21="$000",1000,1))/IF($E22="$millions",1000000,IF($E22="$000",1000,1)) -> 0 | Q22: =Q21*IF($F21="nominal",LOOKUP($F22,Nominal_to_Real,'Input|Rate of change'!S$26:S$32),INDEX('Input|Rate of change'!$C$14:$P$22,MATCH('Calc|Opex forecast'!$F21,'Input|Rate of change'!$C$14:$C$22,0),MATCH('Calc|Opex forecast'!$F22,'Input|Rate of change'!$C$14:$P$14,0)))*IF($E21="$millions",1000000,IF($E21="$000",1000,1))/IF($E22="$millions",1000000,IF($E22="$000",1000,1)) -> 0 | R22: =R21*IF($F21="nominal",LOOKUP($F22,Nominal_to_Real,'Input|Rate of change'!T$26:T$32),INDEX('Input|Rate of change'!$C$14:$P$22,MATCH('Calc|Opex forecast'!$F21,'Input|Rate of change'!$C$14:$C$22,0),MATCH('Calc|Opex forecast'!$F22,'Input|Rate of change'!$C$14:$P$14,0)))*IF($E21="$millions",1000000,IF($E21="$000",1000,1))/IF($E22="$millions",1000000,IF($E22="$000",1000,1)) -> 0 | S22: =S21*IF($F21="nominal",LOOKUP($F22,Nominal_to_Real,'Input|Rate of change'!U$26:U$32),INDEX('Input|Rate of change'!$C$14:$P$22,MATCH('Calc|Opex forecast'!$F21,'Input|Rate of change'!$C$14:$C$22,0),MATCH('Calc|Opex forecast'!$F22,'Input|Rate of change'!$C$14:$P$14,0)))*IF($E21="$millions",1000000,IF($E21="$000",1000,1))/IF($E22="$millions",1000000,IF($E22="$000",1000,1)) -> 0
C24: Service classification adjustment | D24: Inputs|Reported opex | E24: ='Input|Reported opex'!E84 -> $millions | F24: ='Input|Reported opex'!F84 -> 2015 | N24: ='Input|Reported opex'!P84 -> 9.198802051
C25: =C24 -> Service classification adjustment | D25: Calculated | E25: =$E$8 -> $millions | F25: =$F$8 -> 2015 | J25: =J24*IF($F24="nominal",LOOKUP($F25,Nominal_to_Real,'Input|Rate of change'!L$26:L$32),INDEX('Input|Rate of change'!$C$14:$P$22,MATCH('Calc|Opex forecast'!$F24,'Input|Rate of change'!$C$14:$C$22,0),MATCH('Calc|Opex forecast'!$F25,'Input|Rate of change'!$C$14:$P$14,0)))*IF($E24="$millions",1000000,IF($E24="$000",1000,1))/IF($E25="$millions",1000000,IF($E25="$000",1000,1)) -> 0 | K25: =K24*IF($F24="nominal",LOOKUP($F25,Nominal_to_Real,'Input|Rate of change'!M$26:M$32),INDEX('Input|Rate of change'!$C$14:$P$22,MATCH('Calc|Opex forecast'!$F24,'Input|Rate of change'!$C$14:$C$22,0),MATCH('Calc|Opex forecast'!$F25,'Input|Rate of change'!$C$14:$P$14,0)))*IF($E24="$millions",1000000,IF($E24="$000",1000,1))/IF($E25="$millions",1000000,IF($E25="$000",1000,1)) -> 0 | L25: =L24*IF($F24="nominal",LOOKUP($F25,Nominal_to_Real,'Input|Rate of change'!N$26:N$32),INDEX('Input|Rate of change'!$C$14:$P$22,MATCH('Calc|Opex forecast'!$F24,'Input|Rate of change'!$C$14:$C$22,0),MATCH('Calc|Opex forecast'!$F25,'Input|Rate of change'!$C$14:$P$14,0)))*IF($E24="$millions",1000000,IF($E24="$000",1000,1))/IF($E25="$millions",1000000,IF($E25="$000",1000,1)) -> 0 | M25: =M24*IF($F24="nominal",LOOKUP($F25,Nominal_to_Real,'Input|Rate of change'!O$26:O$32),INDEX('Input|Rate of change'!$C$14:$P$22,MATCH('Calc|Opex forecast'!$F24,'Input|Rate of change'!$C$14:$C$22,0),MATCH('Calc|Opex forecast'!$F25,'Input|Rate of change'!$C$14:$P$14,0)))*IF($E24="$millions",1000000,IF($E24="$000",1000,1))/IF($E25="$millions",1000000,IF($E25="$000",1000,1)) -> 0 | N25: =N24*IF($F24="nominal",LOOKUP($F25,Nominal_to_Real,'Input|Rate of change'!P$26:P$32),INDEX('Input|Rate of change'!$C$14:$P$22,MATCH('Calc|Opex forecast'!$F24,'Input|Rate of change'!$C$14:$C$22,0),MATCH('Calc|Opex forecast'!$F25,'Input|Rate of change'!$C$14:$P$14,0)))*IF($E24="$millions",1000000,IF($E24="$000",1000,1))/IF($E25="$millions",1000000,IF($E25="$000",1000,1)) -> 9.198802051 | O25: =O24*IF($F24="nominal",LOOKUP($F25,Nominal_to_Real,'Input|Rate of change'!Q$26:Q$32),INDEX('Input|Rate of change'!$C$14:$P$22,MATCH('Calc|Opex forecast'!$F24,'Input|Rate of change'!$C$14:$C$22,0),MATCH('Calc|Opex forecast'!$F25,'Input|Rate of change'!$C$14:$P$14,0)))*IF($E24="$millions",1000000,IF($E24="$000",1000,1))/IF($E25="$millions",1000000,IF($E25="$000",1000,1)) -> 0 | P25: =P24*IF($F24="nominal",LOOKUP($F25,Nominal_to_Real,'Input|Rate of change'!R$26:R$32),INDEX('Input|Rate of change'!$C$14:$P$22,MATCH('Calc|Opex forecast'!$F24,'Input|Rate of change'!$C$14:$C$22,0),MATCH('Calc|Opex forecast'!$F25,'Input|Rate of change'!$C$14:$P$14,0)))*IF($E24="$millions",1000000,IF($E24="$000",1000,1))/IF($E25="$millions",1000000,IF($E25="$000",1000,1)) -> 0 | Q25: =Q24*IF($F24="nominal",LOOKUP($F25,Nominal_to_Real,'Input|Rate of change'!S$26:S$32),INDEX('Input|Rate of change'!$C$14:$P$22,MATCH('Calc|Opex forecast'!$F24,'Input|Rate of change'!$C$14:$C$22,0),MATCH('Calc|Opex forecast'!$F25,'Input|Rate of change'!$C$14:$P$14,0)))*IF($E24="$millions",1000000,IF($E24="$000",1000,1))/IF($E25="$millions",1000000,IF($E25="$000",1000,1)) -> 0 | R25: =R24*IF($F24="nominal",LOOKUP($F25,Nominal_to_Real,'Input|Rate of change'!T$26:T$32),INDEX('Input|Rate of change'!$C$14:$P$22,MATCH('Calc|Opex forecast'!$F24,'Input|Rate of change'!$C$14:$C$22,0),MATCH('Calc|Opex forecast'!$F25,'Input|Rate of change'!$C$14:$P$14,0)))*IF($E24="$millions",1000000,IF($E24="$000",1000,1))/IF($E25="$millions",1000000,IF($E25="$000",1000,1)) -> 0 | S25: =S24*IF($F24="nominal",LOOKUP($F25,Nominal_to_Real,'Input|Rate of change'!U$26:U$32),INDEX('Input|Rate of change'!$C$14:$P$22,MATCH('Calc|Opex forecast'!$F24,'Input|Rate of change'!$C$14:$C$22,0),MATCH('Calc|Opex forecast'!$F25,'Input|Rate of change'!$C$14:$P$14,0)))*IF($E24="$millions",1000000,IF($E24="$000",1000,1))/IF($E25="$millions",1000000,IF($E25="$000",1000,1)) -> 0
C27: Efficiency adjustment | D27: calculated | E27: =$E$8 -> $millions | F27: =$F$8 -> 2015 | J27: =SUM(J19,J22,J25)*'Input|Reported opex'!$P$89 -> 0 | K27: =SUM(K19,K22,K25)*'Input|Reported opex'!$P$89 -> 0 | L27: =SUM(L19,L22,L25)*'Input|Reported opex'!$P$89 -> 0 | M27: =SUM(M19,M22,M25)*'Input|Reported opex'!$P$89 -> 0 | N27: =SUM(N19,N22,N25)*'Input|Reported opex'!$P$89 -> 0 | O27: =SUM(O19,O22,O25)*'Input|Reported opex'!$P$89 -> 0 | P27: =SUM(P19,P22,P25)*'Input|Reported opex'!$P$89 -> 0 | Q27: =SUM(Q19,Q22,Q25)*'Input|Reported opex'!$P$89 -> 0 | R27: =SUM(R19,R22,R25)*'Input|Reported opex'!$P$89 -> 0 | S27: =SUM(S19,S22,S25)*'Input|Reported opex'!$P$89 -> 0
C29: Efficiency adjustment final year opex | D29: calculated | E29: =$E$8 -> $millions | F29: =$F$8 -> 2015 | J29: =SUM(J19,J22,J25,J27) -> 0 | K29: 0 | L29: 0 | M29: 0 | N29: =SUM(N19,N22,N25,N27) -> 81.81842878 | O29: 0 | P29: 0 | Q29: 0 | R29: 0 | S29: =SUM(S19,S22,S25,S27) -> 0
B31: Calc | Rate of change
C33: Rate of change | D33: Source | E33: Unit | F33: Basis | J33: =IF(J$4>='Input|General'!$G$11,IF(J$4<='Input|General'!$G$12,'Input|Reported opex'!L$4,""),"") ->  | K33: =IF(K$4>='Input|General'!$G$11,IF(K$4<='Input|General'!$G$12,'Input|Reported opex'!M$4,""),"") ->  | L33: =IF(L$4>='Input|General'!$G$11,IF(L$4<='Input|General'!$G$12,'Input|Reported opex'!N$4,""),"") ->  | M33: =IF(M$4>='Input|General'!$G$11,IF(M$4<='Input|General'!$G$12,'Input|Reported opex'!O$4,""),"") ->  | N33: =IF(N$4>='Input|General'!$G$11,IF(N$4<='Input|General'!$G$12,'Input|Reported opex'!P$4,""),"") ->  | O33: =IF(O$4>='Input|General'!$G$11,IF(O$4<='Input|General'!$G$12,'Input|Reported opex'!Q$4,""),"") -> 2016 | P33: =IF(P$4>='Input|General'!$G$11,IF(P$4<='Input|General'!$G$12,'Input|Reported opex'!R$4,""),"") -> 2017 | Q33: =IF(Q$4>='Input|General'!$G$11,IF(Q$4<='Input|General'!$G$12,'Input|Reported opex'!S$4,""),"") -> 2018 | R33: =IF(R$4>='Input|General'!$G$11,IF(R$4<='Input|General'!$G$12,'Input|Reported opex'!T$4,""),"") -> 2019 | S33: =IF(S$4>='Input|General'!$G$11,IF(S$4<='Input|General'!$G$12,'Input|Reported opex'!U$4,""),"") -> 2020
C36: Forecast output change | D36: Calculated | E36: Per cent | F36: n/a | J36: =SUMPRODUCT('Input|Rate of change'!L73:L78,'Input|Rate of change'!$Q$82:$Q$87) -> 0 | K36: =SUMPRODUCT('Input|Rate of change'!M73:M78,'Input|Rate of change'!$Q$82:$Q$87) -> 0 | L36: =SUMPRODUCT('Input|Rate of change'!N73:N78,'Input|Rate of change'!$Q$82:$Q$87) -> 0 | M36: =SUMPRODUCT('Input|Rate of change'!O73:O78,'Input|Rate of change'!$Q$82:$Q$87) -> 0 | N36: =SUMPRODUCT('Input|Rate of change'!P73:P78,'Input|Rate of change'!$Q$82:$Q$87) -> 0 | O36: =SUMPRODUCT('Input|Rate of change'!Q73:Q78,'Input|Rate of change'!$Q$82:$Q$87) -> 0.02089030398 | P36: =SUMPRODUCT('Input|Rate of change'!R73:R78,'Input|Rate of change'!$Q$82:$Q$87) -> 0.01738872058 | Q36: =SUMPRODUCT('Input|Rate of change'!S73:S78,'Input|Rate of change'!$Q$82:$Q$87) -> 0.01731867514 | R36: =SUMPRODUCT('Input|Rate of change'!T73:T78,'Input|Rate of change'!$Q$82:$Q$87) -> 0.01658904755 | S36: =SUMPRODUCT('Input|Rate of change'!U73:U78,'Input|Rate of change'!$Q$82:$Q$87) -> 0.01687678266
C38: Forecast price change | D38: Calculated | E38: Per cent | F38: n/a | J38: =SUMPRODUCT('Input|Rate of change'!L38:L45,'Input|Rate of change'!L49:L56) -> 0 | K38: =SUMPRODUCT('Input|Rate of change'!M38:M45,'Input|Rate of change'!M49:M56) -> 0 | L38: =SUMPRODUCT('Input|Rate of change'!N38:N45,'Input|Rate of change'!N49:N56) -> 0 | M38: =SUMPRODUCT('Input|Rate of change'!O38:O45,'Input|Rate of change'!O49:O56) -> 0 | N38: =SUMPRODUCT('Input|Rate of change'!P38:P45,'Input|Rate of change'!P49:P56) -> 0 | O38: =SUMPRODUCT('Input|Rate of change'!Q38:Q45,'Input|Rate of change'!Q49:Q56) -> 0.002248514693 | P38: =SUMPRODUCT('Input|Rate of change'!R38:R45,'Input|Rate of change'!R49:R56) -> 0.004974034189 | Q38: =SUMPRODUCT('Input|Rate of change'!S38:S45,'Input|Rate of change'!S49:S56) -> 0.007933724119 | R38: =SUMPRODUCT('Input|Rate of change'!T38:T45,'Input|Rate of change'!T49:T56) -> 0.009173765732 | S38: =SUMPRODUCT('Input|Rate of change'!U38:U45,'Input|Rate of change'!U49:U56) -> 0.008482624727
C40: Forecast productivity change | D40: Calculated | E40: Per cent | F40: n/a | J40: ='Input|Rate of change'!L95 -> 0 | K40: ='Input|Rate of change'!M95 -> 0 | L40: ='Input|Rate of change'!N95 -> 0 | M40: ='Input|Rate of change'!O95 -> 0 | N40: ='Input|Rate of change'!P95 -> 0 | O40: ='Input|Rate of change'!Q95 -> 0 | P40: ='Input|Rate of change'!R95 -> 0 | Q40: ='Input|Rate of change'!S95 -> 0 | R40: ='Input|Rate of change'!T95 -> 0 | S40: ='Input|Rate of change'!U95 -> 0
C42: Forecast rate of change | D42: Calculated | E42: Per cent | F42: n/a | J42: =(1+J36)*(1+J38)*(1-J40)-1 -> 0 | K42: =(1+K36)*(1+K38)*(1-K40)-1 -> 0 | L42: 0 | M42: 0 | N42: 0 | O42: 0.02318579082 | P42: 0.02244924686 | Q42: 0.02538980085 | R42: 0.02591499732 | S42: 0.0255025668
B44: Calc | Step changes
C46: Step changes | D46: Source | E46: Unit | F46: Basis | J46: =IF(J$4>='Input|General'!$G$11,IF(J$4<='Input|General'!$G$12,'Input|Reported opex'!L$4,""),"") ->  | K46: =IF(K$4>='Input|General'!$G$11,IF(K$4<='Input|General'!$G$12,'Input|Reported opex'!M$4,""),"") ->  | L46: =IF(L$4>='Input|General'!$G$11,IF(L$4<='Input|General'!$G$12,'Input|Reported opex'!N$4,""),"") ->  | M46: =IF(M$4>='Input|General'!$G$11,IF(M$4<='Input|General'!$G$12,'Input|Reported opex'!O$4,""),"") ->  | N46: =IF(N$4>='Input|General'!$G$11,IF(N$4<='Input|General'!$G$12,'Input|Reported opex'!P$4,""),"") ->  | O46: =IF(O$4>='Input|General'!$G$11,IF(O$4<='Input|General'!$G$12,'Input|Reported opex'!Q$4,""),"") -> 2016 | P46: =IF(P$4>='Input|General'!$G$11,IF(P$4<='Input|General'!$G$12,'Input|Reported opex'!R$4,""),"") -> 2017 | Q46: =IF(Q$4>='Input|General'!$G$11,IF(Q$4<='Input|General'!$G$12,'Input|Reported opex'!S$4,""),"") -> 2018 | R46: =IF(R$4>='Input|General'!$G$11,IF(R$4<='Input|General'!$G$12,'Input|Reported opex'!T$4,""),"") -> 2019 | S46: =IF(S$4>='Input|General'!$G$11,IF(S$4<='Input|General'!$G$12,'Input|Reported opex'!U$4,""),"") -> 2020
C48: ='Input|Step changes'!C12 -> Demand management | D48: Calculated | E48: =$E$8 -> $millions | F48: =$F$8 -> 2015 | J48: ='Input|Step changes'!J12*IF('Input|Step changes'!$F12="nominal",LOOKUP($F48,Nominal_to_Real,'Input|Rate of change'!O$27:O$32),INDEX('Input|Rate of change'!$C$14:$P$22,MATCH('Input|Step changes'!$F12,'Input|Rate of change'!$C$14:$C$22,0),MATCH('Calc|Opex forecast'!$F48,'Input|Rate of change'!$C$14:$P$14,0)))*IF('Input|Step changes'!$E12="$millions",1000000,IF('Input|Step changes'!$E12="$000",1000,1))/IF($E48="$millions",1000000,IF($E48="$000",1000,1)) -> 0 | K48: ='Input|Step changes'!K12*IF('Input|Step changes'!$F12="nominal",LOOKUP($F48,Nominal_to_Real,'Input|Rate of change'!P$27:P$32),INDEX('Input|Rate of change'!$C$14:$P$22,MATCH('Input|Step changes'!$F12,'Input|Rate of change'!$C$14:$C$22,0),MATCH('Calc|Opex forecast'!$F48,'Input|Rate of change'!$C$14:$P$14,0)))*IF('Input|Step changes'!$E12="$millions",1000000,IF('Input|Step changes'!$E12="$000",1000,1))/IF($E48="$millions",1000000,IF($E48="$000",1000,1)) -> 0 | L48: ='Input|Step changes'!L12*IF('Input|Step changes'!$F12="nominal",LOOKUP($F48,Nominal_to_Real,'Input|Rate of change'!Q$27:Q$32),INDEX('Input|Rate of change'!$C$14:$P$22,MATCH('Input|Step changes'!$F12,'Input|Rate of change'!$C$14:$C$22,0),MATCH('Calc|Opex forecast'!$F48,'Input|Rate of change'!$C$14:$P$14,0)))*IF('Input|Step changes'!$E12="$millions",1000000,IF('Input|Step changes'!$E12="$000",1000,1))/IF($E48="$millions",1000000,IF($E48="$000",1000,1)) -> 0 | M48: ='Input|Step changes'!M12*IF('Input|Step changes'!$F12="nominal",LOOKUP($F48,Nominal_to_Real,'Input|Rate of change'!R$27:R$32),INDEX('Input|Rate of change'!$C$14:$P$22,MATCH('Input|Step changes'!$F12,'Input|Rate of change'!$C$14:$C$22,0),MATCH('Calc|Opex forecast'!$F48,'Input|Rate of change'!$C$14:$P$14,0)))*IF('Input|Step changes'!$E12="$millions",1000000,IF('Input|Step changes'!$E12="$000",1000,1))/IF($E48="$millions",1000000,IF($E48="$000",1000,1)) -> 0 | N48: ='Input|Step changes'!N12*IF('Input|Step changes'!$F12="nominal",LOOKUP($F48,Nominal_to_Real,'Input|Rate of change'!S$27:S$32),INDEX('Input|Rate of change'!$C$14:$P$22,MATCH('Input|Step changes'!$F12,'Input|Rate of change'!$C$14:$C$22,0),MATCH('Calc|Opex forecast'!$F48,'Input|Rate of change'!$C$14:$P$14,0)))*IF('Input|Step changes'!$E12="$millions",1000000,IF('Input|Step changes'!$E12="$000",1000,1))/IF($E48="$millions",1000000,IF($E48="$000",1000,1)) -> 0 | O48: ='Input|Step changes'!O12*IF('Input|Step changes'!$F12="nominal",LOOKUP($F48,Nominal_to_Real,'Input|Rate of change'!T$27:T$32),INDEX('Input|Rate of change'!$C$14:$P$22,MATCH('Input|Step changes'!$F12,'Input|Rate of change'!$C$14:$C$22,0),MATCH('Calc|Opex forecast'!$F48,'Input|Rate of change'!$C$14:$P$14,0)))*IF('Input|Step changes'!$E12="$millions",1000000,IF('Input|Step changes'!$E12="$000",1000,1))/IF($E48="$millions",1000000,IF($E48="$000",1000,1)) -> 0.11 | P48: ='Input|Step changes'!P12*IF('Input|Step changes'!$F12="nominal",LOOKUP($F48,Nominal_to_Real,'Input|Rate of change'!U$27:U$32),INDEX('Input|Rate of change'!$C$14:$P$22,MATCH('Input|Step changes'!$F12,'Input|Rate of change'!$C$14:$C$22,0),MATCH('Calc|Opex forecast'!$F48,'Input|Rate of change'!$C$14:$P$14,0)))*IF('Input|Step changes'!$E12="$millions",1000000,IF('Input|Step changes'!$E12="$000",1000,1))/IF($E48="$millions",1000000,IF($E48="$000",1000,1)) -> 0.15 | Q48: ='Input|Step changes'!Q12*IF('Input|Step changes'!$F12="nominal",LOOKUP($F48,Nominal_to_Real,'Input|Rate of change'!V$27:V$32),INDEX('Input|Rate of change'!$C$14:$P$22,MATCH('Input|Step changes'!$F12,'Input|Rate of change'!$C$14:$C$22,0),MATCH('Calc|Opex forecast'!$F48,'Input|Rate of change'!$C$14:$P$14,0)))*IF('Input|Step changes'!$E12="$millions",1000000,IF('Input|Step changes'!$E12="$000",1000,1))/IF($E48="$millions",1000000,IF($E48="$000",1000,1)) -> 0.15 | R48: ='Input|Step changes'!R12*IF('Input|Step changes'!$F12="nominal",LOOKUP($F48,Nominal_to_Real,'Input|Rate of change'!W$27:W$32),INDEX('Input|Rate of change'!$C$14:$P$22,MATCH('Input|Step changes'!$F12,'Input|Rate of change'!$C$14:$C$22,0),MATCH('Calc|Opex forecast'!$F48,'Input|Rate of change'!$C$14:$P$14,0)))*IF('Input|Step changes'!$E12="$millions",1000000,IF('Input|Step changes'!$E12="$000",1000,1))/IF($E48="$millions",1000000,IF($E48="$000",1000,1)) -> 0.15 | S48: ='Input|Step changes'!S12*IF('Input|Step changes'!$F12="nominal",LOOKUP($F48,Nominal_to_Real,'Input|Rate of change'!X$27:X$32),INDEX('Input|Rate of change'!$C$14:$P$22,MATCH('Input|Step changes'!$F12,'Input|Rate of change'!$C$14:$C$22,0),MATCH('Calc|Opex forecast'!$F48,'Input|Rate of change'!$C$14:$P$14,0)))*IF('Input|Step changes'!$E12="$millions",1000000,IF('Input|Step changes'!$E12="$000",1000,1))/IF($E48="$millions",1000000,IF($E48="$000",1000,1)) -> 0.15
C49: ='Input|Step changes'!C13 -> New tariff implementation | D49: Calculated | E49: $millions | F49: =$F$8 -> 2015 | J49: ='Input|Step changes'!J13*IF('Input|Step changes'!$F13="nominal",LOOKUP($F49,Nominal_to_Real,'Input|Rate of change'!O$27:O$32),INDEX('Input|Rate of change'!$C$14:$P$22,MATCH('Input|Step changes'!$F13,'Input|Rate of change'!$C$14:$C$22,0),MATCH('Calc|Opex forecast'!$F49,'Input|Rate of change'!$C$14:$P$14,0)))*IF('Input|Step changes'!$E13="$millions",1000000,IF('Input|Step changes'!$E13="$000",1000,1))/IF($E49="$millions",1000000,IF($E49="$000",1000,1)) -> 0 | K49: ='Input|Step changes'!K13*IF('Input|Step changes'!$F13="nominal",LOOKUP($F49,Nominal_to_Real,'Input|Rate of change'!P$27:P$32),INDEX('Input|Rate of change'!$C$14:$P$22,MATCH('Input|Step changes'!$F13,'Input|Rate of change'!$C$14:$C$22,0),MATCH('Calc|Opex forecast'!$F49,'Input|Rate of change'!$C$14:$P$14,0)))*IF('Input|Step changes'!$E13="$millions",1000000,IF('Input|Step changes'!$E13="$000",1000,1))/IF($E49="$millions",1000000,IF($E49="$000",1000,1)) -> 0 | L49: ='Input|Step changes'!L13*IF('Input|Step changes'!$F13="nominal",LOOKUP($F49,Nominal_to_Real,'Input|Rate of change'!Q$27:Q$32),INDEX('Input|Rate of change'!$C$14:$P$22,MATCH('Input|Step changes'!$F13,'Input|Rate of change'!$C$14:$C$22,0),MATCH('Calc|Opex forecast'!$F49,'Input|Rate of change'!$C$14:$P$14,0)))*IF('Input|Step changes'!$E13="$millions",1000000,IF('Input|Step changes'!$E13="$000",1000,1))/IF($E49="$millions",1000000,IF($E49="$000",1000,1)) -> 0 | M49: ='Input|Step changes'!M13*IF('Input|Step changes'!$F13="nominal",LOOKUP($F49,Nominal_to_Real,'Input|Rate of change'!R$27:R$32),INDEX('Input|Rate of change'!$C$14:$P$22,MATCH('Input|Step changes'!$F13,'Input|Rate of change'!$C$14:$C$22,0),MATCH('Calc|Opex forecast'!$F49,'Input|Rate of change'!$C$14:$P$14,0)))*IF('Input|Step changes'!$E13="$millions",1000000,IF('Input|Step changes'!$E13="$000",1000,1))/IF($E49="$millions",1000000,IF($E49="$000",1000,1)) -> 0 | N49: ='Input|Step changes'!N13*IF('Input|Step changes'!$F13="nominal",LOOKUP($F49,Nominal_to_Real,'Input|Rate of change'!S$27:S$32),INDEX('Input|Rate of change'!$C$14:$P$22,MATCH('Input|Step changes'!$F13,'Input|Rate of change'!$C$14:$C$22,0),MATCH('Calc|Opex forecast'!$F49,'Input|Rate of change'!$C$14:$P$14,0)))*IF('Input|Step changes'!$E13="$millions",1000000,IF('Input|Step changes'!$E13="$000",1000,1))/IF($E49="$millions",1000000,IF($E49="$000",1000,1)) -> 0 | O49: ='Input|Step changes'!O13*IF('Input|Step changes'!$F13="nominal",LOOKUP($F49,Nominal_to_Real,'Input|Rate of change'!T$27:T$32),INDEX('Input|Rate of change'!$C$14:$P$22,MATCH('Input|Step changes'!$F13,'Input|Rate of change'!$C$14:$C$22,0),MATCH('Calc|Opex forecast'!$F49,'Input|Rate of change'!$C$14:$P$14,0)))*IF('Input|Step changes'!$E13="$millions",1000000,IF('Input|Step changes'!$E13="$000",1000,1))/IF($E49="$millions",1000000,IF($E49="$000",1000,1)) -> 1.23 | P49: ='Input|Step changes'!P13*IF('Input|Step changes'!$F13="nominal",LOOKUP($F49,Nominal_to_Real,'Input|Rate of change'!U$27:U$32),INDEX('Input|Rate of change'!$C$14:$P$22,MATCH('Input|Step changes'!$F13,'Input|Rate of change'!$C$14:$C$22,0),MATCH('Calc|Opex forecast'!$F49,'Input|Rate of change'!$C$14:$P$14,0)))*IF('Input|Step changes'!$E13="$millions",1000000,IF('Input|Step changes'!$E13="$000",1000,1))/IF($E49="$millions",1000000,IF($E49="$000",1000,1)) -> 0.47 | Q49: ='Input|Step changes'!Q13*IF('Input|Step changes'!$F13="nominal",LOOKUP($F49,Nominal_to_Real,'Input|Rate of change'!V$27:V$32),INDEX('Input|Rate of change'!$C$14:$P$22,MATCH('Input|Step changes'!$F13,'Input|Rate of change'!$C$14:$C$22,0),MATCH('Calc|Opex forecast'!$F49,'Input|Rate of change'!$C$14:$P$14,0)))*IF('Input|Step changes'!$E13="$millions",1000000,IF('Input|Step changes'!$E13="$000",1000,1))/IF($E49="$millions",1000000,IF($E49="$000",1000,1)) -> 0.25 | R49: ='Input|Step changes'!R13*IF('Input|Step changes'!$F13="nominal",LOOKUP($F49,Nominal_to_Real,'Input|Rate of change'!W$27:W$32),INDEX('Input|Rate of change'!$C$14:$P$22,MATCH('Input|Step changes'!$F13,'Input|Rate of change'!$C$14:$C$22,0),MATCH('Calc|Opex forecast'!$F49,'Input|Rate of change'!$C$14:$P$14,0)))*IF('Input|Step changes'!$E13="$millions",1000000,IF('Input|Step changes'!$E13="$000",1000,1))/IF($E49="$millions",1000000,IF($E49="$000",1000,1)) -> 0.25 | S49: ='Input|Step changes'!S13*IF('Input|Step changes'!$F13="nominal",LOOKUP($F49,Nominal_to_Real,'Input|Rate of change'!X$27:X$32),INDEX('Input|Rate of change'!$C$14:$P$22,MATCH('Input|Step changes'!$F13,'Input|Rate of change'!$C$14:$C$22,0),MATCH('Calc|Opex forecast'!$F49,'Input|Rate of change'!$C$14:$P$14,0)))*IF('Input|Step changes'!$E13="$millions",1000000,IF('Input|Step changes'!$E13="$000",1000,1))/IF($E49="$millions",1000000,IF($E49="$000",1000,1)) -> 0.25
C50: ='Input|Step changes'!C14 -> GSL payments (new ESC obligations) | D50: Calculated | E50: $millions | F50: 2015 | J50: ='Input|Step changes'!J14*IF('Input|Step changes'!$F14="nominal",LOOKUP($F50,Nominal_to_Real,'Input|Rate of change'!O$27:O$32),INDEX('Input|Rate of change'!$C$14:$P$22,MATCH('Input|Step changes'!$F14,'Input|Rate of change'!$C$14:$C$22,0),MATCH('Calc|Opex forecast'!$F50,'Input|Rate of change'!$C$14:$P$14,0)))*IF('Input|Step changes'!$E14="$millions",1000000,IF('Input|Step changes'!$E14="$000",1000,1))/IF($E50="$millions",1000000,IF($E50="$000",1000,1)) -> 0 | K50: ='Input|Step changes'!K14*IF('Input|Step changes'!$F14="nominal",LOOKUP($F50,Nominal_to_Real,'Input|Rate of change'!P$27:P$32),INDEX('Input|Rate of change'!$C$14:$P$22,MATCH('Input|Step changes'!$F14,'Input|Rate of change'!$C$14:$C$22,0),MATCH('Calc|Opex forecast'!$F50,'Input|Rate of change'!$C$14:$P$14,0)))*IF('Input|Step changes'!$E14="$millions",1000000,IF('Input|Step changes'!$E14="$000",1000,1))/IF($E50="$millions",1000000,IF($E50="$000",1000,1)) -> 0 | L50: ='Input|Step changes'!L14*IF('Input|Step changes'!$F14="nominal",LOOKUP($F50,Nominal_to_Real,'Input|Rate of change'!Q$27:Q$32),INDEX('Input|Rate of change'!$C$14:$P$22,MATCH('Input|Step changes'!$F14,'Input|Rate of change'!$C$14:$C$22,0),MATCH('Calc|Opex forecast'!$F50,'Input|Rate of change'!$C$14:$P$14,0)))*IF('Input|Step changes'!$E14="$millions",1000000,IF('Input|Step changes'!$E14="$000",1000,1))/IF($E50="$millions",1000000,IF($E50="$000",1000,1)) -> 0 | M50: ='Input|Step changes'!M14*IF('Input|Step changes'!$F14="nominal",LOOKUP($F50,Nominal_to_Real,'Input|Rate of change'!R$27:R$32),INDEX('Input|Rate of change'!$C$14:$P$22,MATCH('Input|Step changes'!$F14,'Input|Rate of change'!$C$14:$C$22,0),MATCH('Calc|Opex forecast'!$F50,'Input|Rate of change'!$C$14:$P$14,0)))*IF('Input|Step changes'!$E14="$millions",1000000,IF('Input|Step changes'!$E14="$000",1000,1))/IF($E50="$millions",1000000,IF($E50="$000",1000,1)) -> 0 | N50: ='Input|Step changes'!N14*IF('Input|Step changes'!$F14="nominal",LOOKUP($F50,Nominal_to_Real,'Input|Rate of change'!S$27:S$32),INDEX('Input|Rate of change'!$C$14:$P$22,MATCH('Input|Step changes'!$F14,'Input|Rate of change'!$C$14:$C$22,0),MATCH('Calc|Opex forecast'!$F50,'Input|Rate of change'!$C$14:$P$14,0)))*IF('Input|Step changes'!$E14="$millions",1000000,IF('Input|Step changes'!$E14="$000",1000,1))/IF($E50="$millions",1000000,IF($E50="$000",1000,1)) -> 0 | O50: ='Input|Step changes'!O14*IF('Input|Step changes'!$F14="nominal",LOOKUP($F50,Nominal_to_Real,'Input|Rate of change'!T$27:T$32),INDEX('Input|Rate of change'!$C$14:$P$22,MATCH('Input|Step changes'!$F14,'Input|Rate of change'!$C$14:$C$22,0),MATCH('Calc|Opex forecast'!$F50,'Input|Rate of change'!$C$14:$P$14,0)))*IF('Input|Step changes'!$E14="$millions",1000000,IF('Input|Step changes'!$E14="$000",1000,1))/IF($E50="$millions",1000000,IF($E50="$000",1000,1)) -> 0.1783613 | P50: ='Input|Step changes'!P14*IF('Input|Step changes'!$F14="nominal",LOOKUP($F50,Nominal_to_Real,'Input|Rate of change'!U$27:U$32),INDEX('Input|Rate of change'!$C$14:$P$22,MATCH('Input|Step changes'!$F14,'Input|Rate of change'!$C$14:$C$22,0),MATCH('Calc|Opex forecast'!$F50,'Input|Rate of change'!$C$14:$P$14,0)))*IF('Input|Step changes'!$E14="$millions",1000000,IF('Input|Step changes'!$E14="$000",1000,1))/IF($E50="$millions",1000000,IF($E50="$000",1000,1)) -> 0.1783613 | Q50: ='Input|Step changes'!Q14*IF('Input|Step changes'!$F14="nominal",LOOKUP($F50,Nominal_to_Real,'Input|Rate of change'!V$27:V$32),INDEX('Input|Rate of change'!$C$14:$P$22,MATCH('Input|Step changes'!$F14,'Input|Rate of change'!$C$14:$C$22,0),MATCH('Calc|Opex forecast'!$F50,'Input|Rate of change'!$C$14:$P$14,0)))*IF('Input|Step changes'!$E14="$millions",1000000,IF('Input|Step changes'!$E14="$000",1000,1))/IF($E50="$millions",1000000,IF($E50="$000",1000,1)) -> 0.1783613 | R50: ='Input|Step changes'!R14*IF('Input|Step changes'!$F14="nominal",LOOKUP($F50,Nominal_to_Real,'Input|Rate of change'!W$27:W$32),INDEX('Input|Rate of change'!$C$14:$P$22,MATCH('Input|Step changes'!$F14,'Input|Rate of change'!$C$14:$C$22,0),MATCH('Calc|Opex forecast'!$F50,'Input|Rate of change'!$C$14:$P$14,0)))*IF('Input|Step changes'!$E14="$millions",1000000,IF('Input|Step changes'!$E14="$000",1000,1))/IF($E50="$millions",1000000,IF($E50="$000",1000,1)) -> 0.1783613 | S50: ='Input|Step changes'!S14*IF('Input|Step changes'!$F14="nominal",LOOKUP($F50,Nominal_to_Real,'Input|Rate of change'!X$27:X$32),INDEX('Input|Rate of change'!$C$14:$P$22,MATCH('Input|Step changes'!$F14,'Input|Rate of change'!$C$14:$C$22,0),MATCH('Calc|Opex forecast'!$F50,'Input|Rate of change'!$C$14:$P$14,0)))*IF('Input|Step changes'!$E14="$millions",1000000,IF('Input|Step changes'!$E14="$000",1000,1))/IF($E50="$millions",1000000,IF($E50="$000",1000,1)) -> 0.1783613
C51: ='Input|Step changes'!C15 -> Service inspection and testing program | D51: Calculated | E51: $millions | F51: 2015 | J51: ='Input|Step changes'!J15*IF('Input|Step changes'!$F15="nominal",LOOKUP($F51,Nominal_to_Real,'Input|Rate of change'!O$27:O$32),INDEX('Input|Rate of change'!$C$14:$P$22,MATCH('Input|Step changes'!$F15,'Input|Rate of change'!$C$14:$C$22,0),MATCH('Calc|Opex forecast'!$F51,'Input|Rate of change'!$C$14:$P$14,0)))*IF('Input|Step changes'!$E15="$millions",1000000,IF('Input|Step changes'!$E15="$000",1000,1))/IF($E51="$millions",1000000,IF($E51="$000",1000,1)) -> 0 | K51: ='Input|Step changes'!K15*IF('Input|Step changes'!$F15="nominal",LOOKUP($F51,Nominal_to_Real,'Input|Rate of change'!P$27:P$32),INDEX('Input|Rate of change'!$C$14:$P$22,MATCH('Input|Step changes'!$F15,'Input|Rate of change'!$C$14:$C$22,0),MATCH('Calc|Opex forecast'!$F51,'Input|Rate of change'!$C$14:$P$14,0)))*IF('Input|Step changes'!$E15="$millions",1000000,IF('Input|Step changes'!$E15="$000",1000,1))/IF($E51="$millions",1000000,IF($E51="$000",1000,1)) -> 0 | L51: ='Input|Step changes'!L15*IF('Input|Step changes'!$F15="nominal",LOOKUP($F51,Nominal_to_Real,'Input|Rate of change'!Q$27:Q$32),INDEX('Input|Rate of change'!$C$14:$P$22,MATCH('Input|Step changes'!$F15,'Input|Rate of change'!$C$14:$C$22,0),MATCH('Calc|Opex forecast'!$F51,'Input|Rate of change'!$C$14:$P$14,0)))*IF('Input|Step changes'!$E15="$millions",1000000,IF('Input|Step changes'!$E15="$000",1000,1))/IF($E51="$millions",1000000,IF($E51="$000",1000,1)) -> 0 | M51: ='Input|Step changes'!M15*IF('Input|Step changes'!$F15="nominal",LOOKUP($F51,Nominal_to_Real,'Input|Rate of change'!R$27:R$32),INDEX('Input|Rate of change'!$C$14:$P$22,MATCH('Input|Step changes'!$F15,'Input|Rate of change'!$C$14:$C$22,0),MATCH('Calc|Opex forecast'!$F51,'Input|Rate of change'!$C$14:$P$14,0)))*IF('Input|Step changes'!$E15="$millions",1000000,IF('Input|Step changes'!$E15="$000",1000,1))/IF($E51="$millions",1000000,IF($E51="$000",1000,1)) -> 0 | N51: ='Input|Step changes'!N15*IF('Input|Step changes'!$F15="nominal",LOOKUP($F51,Nominal_to_Real,'Input|Rate of change'!S$27:S$32),INDEX('Input|Rate of change'!$C$14:$P$22,MATCH('Input|Step changes'!$F15,'Input|Rate of change'!$C$14:$C$22,0),MATCH('Calc|Opex forecast'!$F51,'Input|Rate of change'!$C$14:$P$14,0)))*IF('Input|Step changes'!$E15="$millions",1000000,IF('Input|Step changes'!$E15="$000",1000,1))/IF($E51="$millions",1000000,IF($E51="$000",1000,1)) -> 0 | O51: ='Input|Step changes'!O15*IF('Input|Step changes'!$F15="nominal",LOOKUP($F51,Nominal_to_Real,'Input|Rate of change'!T$27:T$32),INDEX('Input|Rate of change'!$C$14:$P$22,MATCH('Input|Step changes'!$F15,'Input|Rate of change'!$C$14:$C$22,0),MATCH('Calc|Opex forecast'!$F51,'Input|Rate of change'!$C$14:$P$14,0)))*IF('Input|Step changes'!$E15="$millions",1000000,IF('Input|Step changes'!$E15="$000",1000,1))/IF($E51="$millions",1000000,IF($E51="$000",1000,1)) -> 1.538183129 | P51: ='Input|Step changes'!P15*IF('Input|Step changes'!$F15="nominal",LOOKUP($F51,Nominal_to_Real,'Input|Rate of change'!U$27:U$32),INDEX('Input|Rate of change'!$C$14:$P$22,MATCH('Input|Step changes'!$F15,'Input|Rate of change'!$C$14:$C$22,0),MATCH('Calc|Opex forecast'!$F51,'Input|Rate of change'!$C$14:$P$14,0)))*IF('Input|Step changes'!$E15="$millions",1000000,IF('Input|Step changes'!$E15="$000",1000,1))/IF($E51="$millions",1000000,IF($E51="$000",1000,1)) -> 1.538183129 | Q51: ='Input|Step changes'!Q15*IF('Input|Step changes'!$F15="nominal",LOOKUP($F51,Nominal_to_Real,'Input|Rate of change'!V$27:V$32),INDEX('Input|Rate of change'!$C$14:$P$22,MATCH('Input|Step changes'!$F15,'Input|Rate of change'!$C$14:$C$22,0),MATCH('Calc|Opex forecast'!$F51,'Input|Rate of change'!$C$14:$P$14,0)))*IF('Input|Step changes'!$E15="$millions",1000000,IF('Input|Step changes'!$E15="$000",1000,1))/IF($E51="$millions",1000000,IF($E51="$000",1000,1)) -> 1.538183129 | R51: ='Input|Step changes'!R15*IF('Input|Step changes'!$F15="nominal",LOOKUP($F51,Nominal_to_Real,'Input|Rate of change'!W$27:W$32),INDEX('Input|Rate of change'!$C$14:$P$22,MATCH('Input|Step changes'!$F15,'Input|Rate of change'!$C$14:$C$22,0),MATCH('Calc|Opex forecast'!$F51,'Input|Rate of change'!$C$14:$P$14,0)))*IF('Input|Step changes'!$E15="$millions",1000000,IF('Input|Step changes'!$E15="$000",1000,1))/IF($E51="$millions",1000000,IF($E51="$000",1000,1)) -> 1.538183129 | S51: ='Input|Step changes'!S15*IF('Input|Step changes'!$F15="nominal",LOOKUP($F51,Nominal_to_Real,'Input|Rate of change'!X$27:X$32),INDEX('Input|Rate of change'!$C$14:$P$22,MATCH('Input|Step changes'!$F15,'Input|Rate of change'!$C$14:$C$22,0),MATCH('Calc|Opex forecast'!$F51,'Input|Rate of change'!$C$14:$P$14,0)))*IF('Input|Step changes'!$E15="$millions",1000000,IF('Input|Step changes'!$E15="$000",1000,1))/IF($E51="$millions",1000000,IF($E51="$000",1000,1)) -> 0
C52: ='Input|Step changes'!C16 -> Overhead switch inspection | D52: Calculated | E52: $millions | F52: 2015 | J52: ='Input|Step changes'!J16*IF('Input|Step changes'!$F16="nominal",LOOKUP($F52,Nominal_to_Real,'Input|Rate of change'!O$27:O$32),INDEX('Input|Rate of change'!$C$14:$P$22,MATCH('Input|Step changes'!$F16,'Input|Rate of change'!$C$14:$C$22,0),MATCH('Calc|Opex forecast'!$F52,'Input|Rate of change'!$C$14:$P$14,0)))*IF('Input|Step changes'!$E16="$millions",1000000,IF('Input|Step changes'!$E16="$000",1000,1))/IF($E52="$millions",1000000,IF($E52="$000",1000,1)) -> 0 | K52: ='Input|Step changes'!K16*IF('Input|Step changes'!$F16="nominal",LOOKUP($F52,Nominal_to_Real,'Input|Rate of change'!P$27:P$32),INDEX('Input|Rate of change'!$C$14:$P$22,MATCH('Input|Step changes'!$F16,'Input|Rate of change'!$C$14:$C$22,0),MATCH('Calc|Opex forecast'!$F52,'Input|Rate of change'!$C$14:$P$14,0)))*IF('Input|Step changes'!$E16="$millions",1000000,IF('Input|Step changes'!$E16="$000",1000,1))/IF($E52="$millions",1000000,IF($E52="$000",1000,1)) -> 0 | L52: ='Input|Step changes'!L16*IF('Input|Step changes'!$F16="nominal",LOOKUP($F52,Nominal_to_Real,'Input|Rate of change'!Q$27:Q$32),INDEX('Input|Rate of change'!$C$14:$P$22,MATCH('Input|Step changes'!$F16,'Input|Rate of change'!$C$14:$C$22,0),MATCH('Calc|Opex forecast'!$F52,'Input|Rate of change'!$C$14:$P$14,0)))*IF('Input|Step changes'!$E16="$millions",1000000,IF('Input|Step changes'!$E16="$000",1000,1))/IF($E52="$millions",1000000,IF($E52="$000",1000,1)) -> 0 | M52: ='Input|Step changes'!M16*IF('Input|Step changes'!$F16="nominal",LOOKUP($F52,Nominal_to_Real,'Input|Rate of change'!R$27:R$32),INDEX('Input|Rate of change'!$C$14:$P$22,MATCH('Input|Step changes'!$F16,'Input|Rate of change'!$C$14:$C$22,0),MATCH('Calc|Opex forecast'!$F52,'Input|Rate of change'!$C$14:$P$14,0)))*IF('Input|Step changes'!$E16="$millions",1000000,IF('Input|Step changes'!$E16="$000",1000,1))/IF($E52="$millions",1000000,IF($E52="$000",1000,1)) -> 0 | N52: ='Input|Step changes'!N16*IF('Input|Step changes'!$F16="nominal",LOOKUP($F52,Nominal_to_Real,'Input|Rate of change'!S$27:S$32),INDEX('Input|Rate of change'!$C$14:$P$22,MATCH('Input|Step changes'!$F16,'Input|Rate of change'!$C$14:$C$22,0),MATCH('Calc|Opex forecast'!$F52,'Input|Rate of change'!$C$14:$P$14,0)))*IF('Input|Step changes'!$E16="$millions",1000000,IF('Input|Step changes'!$E16="$000",1000,1))/IF($E52="$millions",1000000,IF($E52="$000",1000,1)) -> 0 | O52: ='Input|Step changes'!O16*IF('Input|Step changes'!$F16="nominal",LOOKUP($F52,Nominal_to_Real,'Input|Rate of change'!T$27:T$32),INDEX('Input|Rate of change'!$C$14:$P$22,MATCH('Input|Step changes'!$F16,'Input|Rate of change'!$C$14:$C$22,0),MATCH('Calc|Opex forecast'!$F52,'Input|Rate of change'!$C$14:$P$14,0)))*IF('Input|Step changes'!$E16="$millions",1000000,IF('Input|Step changes'!$E16="$000",1000,1))/IF($E52="$millions",1000000,IF($E52="$000",1000,1)) -> 0 | P52: ='Input|Step changes'!P16*IF('Input|Step changes'!$F16="nominal",LOOKUP($F52,Nominal_to_Real,'Input|Rate of change'!U$27:U$32),INDEX('Input|Rate of change'!$C$14:$P$22,MATCH('Input|Step changes'!$F16,'Input|Rate of change'!$C$14:$C$22,0),MATCH('Calc|Opex forecast'!$F52,'Input|Rate of change'!$C$14:$P$14,0)))*IF('Input|Step changes'!$E16="$millions",1000000,IF('Input|Step changes'!$E16="$000",1000,1))/IF($E52="$millions",1000000,IF($E52="$000",1000,1)) -> 0 | Q52: ='Input|Step changes'!Q16*IF('Input|Step changes'!$F16="nominal",LOOKUP($F52,Nominal_to_Real,'Input|Rate of change'!V$27:V$32),INDEX('Input|Rate of change'!$C$14:$P$22,MATCH('Input|Step changes'!$F16,'Input|Rate of change'!$C$14:$C$22,0),MATCH('Calc|Opex forecast'!$F52,'Input|Rate of change'!$C$14:$P$14,0)))*IF('Input|Step changes'!$E16="$millions",1000000,IF('Input|Step changes'!$E16="$000",1000,1))/IF($E52="$millions",1000000,IF($E52="$000",1000,1)) -> 0 | R52: ='Input|Step changes'!R16*IF('Input|Step changes'!$F16="nominal",LOOKUP($F52,Nominal_to_Real,'Input|Rate of change'!W$27:W$32),INDEX('Input|Rate of change'!$C$14:$P$22,MATCH('Input|Step changes'!$F16,'Input|Rate of change'!$C$14:$C$22,0),MATCH('Calc|Opex forecast'!$F52,'Input|Rate of change'!$C$14:$P$14,0)))*IF('Input|Step changes'!$E16="$millions",1000000,IF('Input|Step changes'!$E16="$000",1000,1))/IF($E52="$millions",1000000,IF($E52="$000",1000,1)) -> 0 | S52: ='Input|Step changes'!S16*IF('Input|Step changes'!$F16="nominal",LOOKUP($F52,Nominal_to_Real,'Input|Rate of change'!X$27:X$32),INDEX('Input|Rate of change'!$C$14:$P$22,MATCH('Input|Step changes'!$F16,'Input|Rate of change'!$C$14:$C$22,0),MATCH('Calc|Opex forecast'!$F52,'Input|Rate of change'!$C$14:$P$14,0)))*IF('Input|Step changes'!$E16="$millions",1000000,IF('Input|Step changes'!$E16="$000",1000,1))/IF($E52="$millions",1000000,IF($E52="$000",1000,1)) -> 0
C53: ='Input|Step changes'!C17 -> Pole top early detection system trial | D53: Calculated | E53: $millions | F53: 2015 | J53: ='Input|Step changes'!J17*IF('Input|Step changes'!$F17="nominal",LOOKUP($F53,Nominal_to_Real,'Input|Rate of change'!O$27:O$32),INDEX('Input|Rate of change'!$C$14:$P$22,MATCH('Input|Step changes'!$F17,'Input|Rate of change'!$C$14:$C$22,0),MATCH('Calc|Opex forecast'!$F53,'Input|Rate of change'!$C$14:$P$14,0)))*IF('Input|Step changes'!$E17="$millions",1000000,IF('Input|Step changes'!$E17="$000",1000,1))/IF($E53="$millions",1000000,IF($E53="$000",1000,1)) -> 0 | K53: ='Input|Step changes'!K17*IF('Input|Step changes'!$F17="nominal",LOOKUP($F53,Nominal_to_Real,'Input|Rate of change'!P$27:P$32),INDEX('Input|Rate of change'!$C$14:$P$22,MATCH('Input|Step changes'!$F17,'Input|Rate of change'!$C$14:$C$22,0),MATCH('Calc|Opex forecast'!$F53,'Input|Rate of change'!$C$14:$P$14,0)))*IF('Input|Step changes'!$E17="$millions",1000000,IF('Input|Step changes'!$E17="$000",1000,1))/IF($E53="$millions",1000000,IF($E53="$000",1000,1)) -> 0 | L53: ='Input|Step changes'!L17*IF('Input|Step changes'!$F17="nominal",LOOKUP($F53,Nominal_to_Real,'Input|Rate of change'!Q$27:Q$32),INDEX('Input|Rate of change'!$C$14:$P$22,MATCH('Input|Step changes'!$F17,'Input|Rate of change'!$C$14:$C$22,0),MATCH('Calc|Opex forecast'!$F53,'Input|Rate of change'!$C$14:$P$14,0)))*IF('Input|Step changes'!$E17="$millions",1000000,IF('Input|Step changes'!$E17="$000",1000,1))/IF($E53="$millions",1000000,IF($E53="$000",1000,1)) -> 0 | M53: ='Input|Step changes'!M17*IF('Input|Step changes'!$F17="nominal",LOOKUP($F53,Nominal_to_Real,'Input|Rate of change'!R$27:R$32),INDEX('Input|Rate of change'!$C$14:$P$22,MATCH('Input|Step changes'!$F17,'Input|Rate of change'!$C$14:$C$22,0),MATCH('Calc|Opex forecast'!$F53,'Input|Rate of change'!$C$14:$P$14,0)))*IF('Input|Step changes'!$E17="$millions",1000000,IF('Input|Step changes'!$E17="$000",1000,1))/IF($E53="$millions",1000000,IF($E53="$000",1000,1)) -> 0 | N53: ='Input|Step changes'!N17*IF('Input|Step changes'!$F17="nominal",LOOKUP($F53,Nominal_to_Real,'Input|Rate of change'!S$27:S$32),INDEX('Input|Rate of change'!$C$14:$P$22,MATCH('Input|Step changes'!$F17,'Input|Rate of change'!$C$14:$C$22,0),MATCH('Calc|Opex forecast'!$F53,'Input|Rate of change'!$C$14:$P$14,0)))*IF('Input|Step changes'!$E17="$millions",1000000,IF('Input|Step changes'!$E17="$000",1000,1))/IF($E53="$millions",1000000,IF($E53="$000",1000,1)) -> 0 | O53: ='Input|Step changes'!O17*IF('Input|Step changes'!$F17="nominal",LOOKUP($F53,Nominal_to_Real,'Input|Rate of change'!T$27:T$32),INDEX('Input|Rate of change'!$C$14:$P$22,MATCH('Input|Step changes'!$F17,'Input|Rate of change'!$C$14:$C$22,0),MATCH('Calc|Opex forecast'!$F53,'Input|Rate of change'!$C$14:$P$14,0)))*IF('Input|Step changes'!$E17="$millions",1000000,IF('Input|Step changes'!$E17="$000",1000,1))/IF($E53="$millions",1000000,IF($E53="$000",1000,1)) -> 0.2750633361 | P53: ='Input|Step changes'!P17*IF('Input|Step changes'!$F17="nominal",LOOKUP($F53,Nominal_to_Real,'Input|Rate of change'!U$27:U$32),INDEX('Input|Rate of change'!$C$14:$P$22,MATCH('Input|Step changes'!$F17,'Input|Rate of change'!$C$14:$C$22,0),MATCH('Calc|Opex forecast'!$F53,'Input|Rate of change'!$C$14:$P$14,0)))*IF('Input|Step changes'!$E17="$millions",1000000,IF('Input|Step changes'!$E17="$000",1000,1))/IF($E53="$millions",1000000,IF($E53="$000",1000,1)) -> 0.2750633361 | Q53: ='Input|Step changes'!Q17*IF('Input|Step changes'!$F17="nominal",LOOKUP($F53,Nominal_to_Real,'Input|Rate of change'!V$27:V$32),INDEX('Input|Rate of change'!$C$14:$P$22,MATCH('Input|Step changes'!$F17,'Input|Rate of change'!$C$14:$C$22,0),MATCH('Calc|Opex forecast'!$F53,'Input|Rate of change'!$C$14:$P$14,0)))*IF('Input|Step changes'!$E17="$millions",1000000,IF('Input|Step changes'!$E17="$000",1000,1))/IF($E53="$millions",1000000,IF($E53="$000",1000,1)) -> 0.2750633361 | R53: ='Input|Step changes'!R17*IF('Input|Step changes'!$F17="nominal",LOOKUP($F53,Nominal_to_Real,'Input|Rate of change'!W$27:W$32),INDEX('Input|Rate of change'!$C$14:$P$22,MATCH('Input|Step changes'!$F17,'Input|Rate of change'!$C$14:$C$22,0),MATCH('Calc|Opex forecast'!$F53,'Input|Rate of change'!$C$14:$P$14,0)))*IF('Input|Step changes'!$E17="$millions",1000000,IF('Input|Step changes'!$E17="$000",1000,1))/IF($E53="$millions",1000000,IF($E53="$000",1000,1)) -> 0.2750633361 | S53: ='Input|Step changes'!S17*IF('Input|Step changes'!$F17="nominal",LOOKUP($F53,Nominal_to_Real,'Input|Rate of change'!X$27:X$32),INDEX('Input|Rate of change'!$C$14:$P$22,MATCH('Input|Step changes'!$F17,'Input|Rate of change'!$C$14:$C$22,0),MATCH('Calc|Opex forecast'!$F53,'Input|Rate of change'!$C$14:$P$14,0)))*IF('Input|Step changes'!$E17="$millions",1000000,IF('Input|Step changes'!$E17="$000",1000,1))/IF($E53="$millions",1000000,IF($E53="$000",1000,1)) -> 0.2750633361
C54: ='Input|Step changes'!C18 -> Vulnerable customer initiative | D54: Calculated | E54: $millions | F54: 2015 | J54: ='Input|Step changes'!J18*IF('Input|Step changes'!$F18="nominal",LOOKUP($F54,Nominal_to_Real,'Input|Rate of change'!O$27:O$32),INDEX('Input|Rate of change'!$C$14:$P$22,MATCH('Input|Step changes'!$F18,'Input|Rate of change'!$C$14:$C$22,0),MATCH('Calc|Opex forecast'!$F54,'Input|Rate of change'!$C$14:$P$14,0)))*IF('Input|Step changes'!$E18="$millions",1000000,IF('Input|Step changes'!$E18="$000",1000,1))/IF($E54="$millions",1000000,IF($E54="$000",1000,1)) -> 0 | K54: ='Input|Step changes'!K18*IF('Input|Step changes'!$F18="nominal",LOOKUP($F54,Nominal_to_Real,'Input|Rate of change'!P$27:P$32),INDEX('Input|Rate of change'!$C$14:$P$22,MATCH('Input|Step changes'!$F18,'Input|Rate of change'!$C$14:$C$22,0),MATCH('Calc|Opex forecast'!$F54,'Input|Rate of change'!$C$14:$P$14,0)))*IF('Input|Step changes'!$E18="$millions",1000000,IF('Input|Step changes'!$E18="$000",1000,1))/IF($E54="$millions",1000000,IF($E54="$000",1000,1)) -> 0 | L54: ='Input|Step changes'!L18*IF('Input|Step changes'!$F18="nominal",LOOKUP($F54,Nominal_to_Real,'Input|Rate of change'!Q$27:Q$32),INDEX('Input|Rate of change'!$C$14:$P$22,MATCH('Input|Step changes'!$F18,'Input|Rate of change'!$C$14:$C$22,0),MATCH('Calc|Opex forecast'!$F54,'Input|Rate of change'!$C$14:$P$14,0)))*IF('Input|Step changes'!$E18="$millions",1000000,IF('Input|Step changes'!$E18="$000",1000,1))/IF($E54="$millions",1000000,IF($E54="$000",1000,1)) -> 0 | M54: ='Input|Step changes'!M18*IF('Input|Step changes'!$F18="nominal",LOOKUP($F54,Nominal_to_Real,'Input|Rate of change'!R$27:R$32),INDEX('Input|Rate of change'!$C$14:$P$22,MATCH('Input|Step changes'!$F18,'Input|Rate of change'!$C$14:$C$22,0),MATCH('Calc|Opex forecast'!$F54,'Input|Rate of change'!$C$14:$P$14,0)))*IF('Input|Step changes'!$E18="$millions",1000000,IF('Input|Step changes'!$E18="$000",1000,1))/IF($E54="$millions",1000000,IF($E54="$000",1000,1)) -> 0 | N54: ='Input|Step changes'!N18*IF('Input|Step changes'!$F18="nominal",LOOKUP($F54,Nominal_to_Real,'Input|Rate of change'!S$27:S$32),INDEX('Input|Rate of change'!$C$14:$P$22,MATCH('Input|Step changes'!$F18,'Input|Rate of change'!$C$14:$C$22,0),MATCH('Calc|Opex forecast'!$F54,'Input|Rate of change'!$C$14:$P$14,0)))*IF('Input|Step changes'!$E18="$millions",1000000,IF('Input|Step changes'!$E18="$000",1000,1))/IF($E54="$millions",1000000,IF($E54="$000",1000,1)) -> 0 | O54: ='Input|Step changes'!O18*IF('Input|Step changes'!$F18="nominal",LOOKUP($F54,Nominal_to_Real,'Input|Rate of change'!T$27:T$32),INDEX('Input|Rate of change'!$C$14:$P$22,MATCH('Input|Step changes'!$F18,'Input|Rate of change'!$C$14:$C$22,0),MATCH('Calc|Opex forecast'!$F54,'Input|Rate of change'!$C$14:$P$14,0)))*IF('Input|Step changes'!$E18="$millions",1000000,IF('Input|Step changes'!$E18="$000",1000,1))/IF($E54="$millions",1000000,IF($E54="$000",1000,1)) -> 0.2223256288 | P54: ='Input|Step changes'!P18*IF('Input|Step changes'!$F18="nominal",LOOKUP($F54,Nominal_to_Real,'Input|Rate of change'!U$27:U$32),INDEX('Input|Rate of change'!$C$14:$P$22,MATCH('Input|Step changes'!$F18,'Input|Rate of change'!$C$14:$C$22,0),MATCH('Calc|Opex forecast'!$F54,'Input|Rate of change'!$C$14:$P$14,0)))*IF('Input|Step changes'!$E18="$millions",1000000,IF('Input|Step changes'!$E18="$000",1000,1))/IF($E54="$millions",1000000,IF($E54="$000",1000,1)) -> 0.1964738115 | Q54: ='Input|Step changes'!Q18*IF('Input|Step changes'!$F18="nominal",LOOKUP($F54,Nominal_to_Real,'Input|Rate of change'!V$27:V$32),INDEX('Input|Rate of change'!$C$14:$P$22,MATCH('Input|Step changes'!$F18,'Input|Rate of change'!$C$14:$C$22,0),MATCH('Calc|Opex forecast'!$F54,'Input|Rate of change'!$C$14:$P$14,0)))*IF('Input|Step changes'!$E18="$millions",1000000,IF('Input|Step changes'!$E18="$000",1000,1))/IF($E54="$millions",1000000,IF($E54="$000",1000,1)) -> 0.1964738115 | R54: ='Input|Step changes'!R18*IF('Input|Step changes'!$F18="nominal",LOOKUP($F54,Nominal_to_Real,'Input|Rate of change'!W$27:W$32),INDEX('Input|Rate of change'!$C$14:$P$22,MATCH('Input|Step changes'!$F18,'Input|Rate of change'!$C$14:$C$22,0),MATCH('Calc|Opex forecast'!$F54,'Input|Rate of change'!$C$14:$P$14,0)))*IF('Input|Step changes'!$E18="$millions",1000000,IF('Input|Step changes'!$E18="$000",1000,1))/IF($E54="$millions",1000000,IF($E54="$000",1000,1)) -> 0.1964738115 | S54: ='Input|Step changes'!S18*IF('Input|Step changes'!$F18="nominal",LOOKUP($F54,Nominal_to_Real,'Input|Rate of change'!X$27:X$32),INDEX('Input|Rate of change'!$C$14:$P$22,MATCH('Input|Step changes'!$F18,'Input|Rate of change'!$C$14:$C$22,0),MATCH('Calc|Opex forecast'!$F54,'Input|Rate of change'!$C$14:$P$14,0)))*IF('Input|Step changes'!$E18="$millions",1000000,IF('Input|Step changes'!$E18="$000",1000,1))/IF($E54="$millions",1000000,IF($E54="$000",1000,1)) -> 0.1964738115
C55: ='Input|Step changes'!C19 -> ESV / VESI code of practice changes | D55: Calculated | E55: $millions | F55: 2015 | J55: ='Input|Step changes'!J19*IF('Input|Step changes'!$F19="nominal",LOOKUP($F55,Nominal_to_Real,'Input|Rate of change'!O$27:O$32),INDEX('Input|Rate of change'!$C$14:$P$22,MATCH('Input|Step changes'!$F19,'Input|Rate of change'!$C$14:$C$22,0),MATCH('Calc|Opex forecast'!$F55,'Input|Rate of change'!$C$14:$P$14,0)))*IF('Input|Step changes'!$E19="$millions",1000000,IF('Input|Step changes'!$E19="$000",1000,1))/IF($E55="$millions",1000000,IF($E55="$000",1000,1)) -> 0 | K55: ='Input|Step changes'!K19*IF('Input|Step changes'!$F19="nominal",LOOKUP($F55,Nominal_to_Real,'Input|Rate of change'!P$27:P$32),INDEX('Input|Rate of change'!$C$14:$P$22,MATCH('Input|Step changes'!$F19,'Input|Rate of change'!$C$14:$C$22,0),MATCH('Calc|Opex forecast'!$F55,'Input|Rate of change'!$C$14:$P$14,0)))*IF('Input|Step changes'!$E19="$millions",1000000,IF('Input|Step changes'!$E19="$000",1000,1))/IF($E55="$millions",1000000,IF($E55="$000",1000,1)) -> 0 | L55: ='Input|Step changes'!L19*IF('Input|Step changes'!$F19="nominal",LOOKUP($F55,Nominal_to_Real,'Input|Rate of change'!Q$27:Q$32),INDEX('Input|Rate of change'!$C$14:$P$22,MATCH('Input|Step changes'!$F19,'Input|Rate of change'!$C$14:$C$22,0),MATCH('Calc|Opex forecast'!$F55,'Input|Rate of change'!$C$14:$P$14,0)))*IF('Input|Step changes'!$E19="$millions",1000000,IF('Input|Step changes'!$E19="$000",1000,1))/IF($E55="$millions",1000000,IF($E55="$000",1000,1)) -> 0 | M55: ='Input|Step changes'!M19*IF('Input|Step changes'!$F19="nominal",LOOKUP($F55,Nominal_to_Real,'Input|Rate of change'!R$27:R$32),INDEX('Input|Rate of change'!$C$14:$P$22,MATCH('Input|Step changes'!$F19,'Input|Rate of change'!$C$14:$C$22,0),MATCH('Calc|Opex forecast'!$F55,'Input|Rate of change'!$C$14:$P$14,0)))*IF('Input|Step changes'!$E19="$millions",1000000,IF('Input|Step changes'!$E19="$000",1000,1))/IF($E55="$millions",1000000,IF($E55="$000",1000,1)) -> 0 | N55: ='Input|Step changes'!N19*IF('Input|Step changes'!$F19="nominal",LOOKUP($F55,Nominal_to_Real,'Input|Rate of change'!S$27:S$32),INDEX('Input|Rate of change'!$C$14:$P$22,MATCH('Input|Step changes'!$F19,'Input|Rate of change'!$C$14:$C$22,0),MATCH('Calc|Opex forecast'!$F55,'Input|Rate of change'!$C$14:$P$14,0)))*IF('Input|Step changes'!$E19="$millions",1000000,IF('Input|Step changes'!$E19="$000",1000,1))/IF($E55="$millions",1000000,IF($E55="$000",1000,1)) -> 0 | O55: ='Input|Step changes'!O19*IF('Input|Step changes'!$F19="nominal",LOOKUP($F55,Nominal_to_Real,'Input|Rate of change'!T$27:T$32),INDEX('Input|Rate of change'!$C$14:$P$22,MATCH('Input|Step changes'!$F19,'Input|Rate of change'!$C$14:$C$22,0),MATCH('Calc|Opex forecast'!$F55,'Input|Rate of change'!$C$14:$P$14,0)))*IF('Input|Step changes'!$E19="$millions",1000000,IF('Input|Step changes'!$E19="$000",1000,1))/IF($E55="$millions",1000000,IF($E55="$000",1000,1)) -> 0 | P55: ='Input|Step changes'!P19*IF('Input|Step changes'!$F19="nominal",LOOKUP($F55,Nominal_to_Real,'Input|Rate of change'!U$27:U$32),INDEX('Input|Rate of change'!$C$14:$P$22,MATCH('Input|Step changes'!$F19,'Input|Rate of change'!$C$14:$C$22,0),MATCH('Calc|Opex forecast'!$F55,'Input|Rate of change'!$C$14:$P$14,0)))*IF('Input|Step changes'!$E19="$millions",1000000,IF('Input|Step changes'!$E19="$000",1000,1))/IF($E55="$millions",1000000,IF($E55="$000",1000,1)) -> 0 | Q55: ='Input|Step changes'!Q19*IF('Input|Step changes'!$F19="nominal",LOOKUP($F55,Nominal_to_Real,'Input|Rate of change'!V$27:V$32),INDEX('Input|Rate of change'!$C$14:$P$22,MATCH('Input|Step changes'!$F19,'Input|Rate of change'!$C$14:$C$22,0),MATCH('Calc|Opex forecast'!$F55,'Input|Rate of change'!$C$14:$P$14,0)))*IF('Input|Step changes'!$E19="$millions",1000000,IF('Input|Step changes'!$E19="$000",1000,1))/IF($E55="$millions",1000000,IF($E55="$000",1000,1)) -> 0 | R55: ='Input|Step changes'!R19*IF('Input|Step changes'!$F19="nominal",LOOKUP($F55,Nominal_to_Real,'Input|Rate of change'!W$27:W$32),INDEX('Input|Rate of change'!$C$14:$P$22,MATCH('Input|Step changes'!$F19,'Input|Rate of change'!$C$14:$C$22,0),MATCH('Calc|Opex forecast'!$F55,'Input|Rate of change'!$C$14:$P$14,0)))*IF('Input|Step changes'!$E19="$millions",1000000,IF('Input|Step changes'!$E19="$000",1000,1))/IF($E55="$millions",1000000,IF($E55="$000",1000,1)) -> 0 | S55: ='Input|Step changes'!S19*IF('Input|Step changes'!$F19="nominal",LOOKUP($F55,Nominal_to_Real,'Input|Rate of change'!X$27:X$32),INDEX('Input|Rate of change'!$C$14:$P$22,MATCH('Input|Step changes'!$F19,'Input|Rate of change'!$C$14:$C$22,0),MATCH('Calc|Opex forecast'!$F55,'Input|Rate of change'!$C$14:$P$14,0)))*IF('Input|Step changes'!$E19="$millions",1000000,IF('Input|Step changes'!$E19="$000",1000,1))/IF($E55="$millions",1000000,IF($E55="$000",1000,1)) -> 0
C56: ='Input|Step changes'!C20 -> Enclosed substation inspection and rectification program | D56: Calculated | E56: $millions | F56: 2015 | J56: ='Input|Step changes'!J20*IF('Input|Step changes'!$F20="nominal",LOOKUP($F56,Nominal_to_Real,'Input|Rate of change'!O$27:O$32),INDEX('Input|Rate of change'!$C$14:$P$22,MATCH('Input|Step changes'!$F20,'Input|Rate of change'!$C$14:$C$22,0),MATCH('Calc|Opex forecast'!$F56,'Input|Rate of change'!$C$14:$P$14,0)))*IF('Input|Step changes'!$E20="$millions",1000000,IF('Input|Step changes'!$E20="$000",1000,1))/IF($E56="$millions",1000000,IF($E56="$000",1000,1)) -> 0 | K56: ='Input|Step changes'!K20*IF('Input|Step changes'!$F20="nominal",LOOKUP($F56,Nominal_to_Real,'Input|Rate of change'!P$27:P$32),INDEX('Input|Rate of change'!$C$14:$P$22,MATCH('Input|Step changes'!$F20,'Input|Rate of change'!$C$14:$C$22,0),MATCH('Calc|Opex forecast'!$F56,'Input|Rate of change'!$C$14:$P$14,0)))*IF('Input|Step changes'!$E20="$millions",1000000,IF('Input|Step changes'!$E20="$000",1000,1))/IF($E56="$millions",1000000,IF($E56="$000",1000,1)) -> 0 | L56: ='Input|Step changes'!L20*IF('Input|Step changes'!$F20="nominal",LOOKUP($F56,Nominal_to_Real,'Input|Rate of change'!Q$27:Q$32),INDEX('Input|Rate of change'!$C$14:$P$22,MATCH('Input|Step changes'!$F20,'Input|Rate of change'!$C$14:$C$22,0),MATCH('Calc|Opex forecast'!$F56,'Input|Rate of change'!$C$14:$P$14,0)))*IF('Input|Step changes'!$E20="$millions",1000000,IF('Input|Step changes'!$E20="$000",1000,1))/IF($E56="$millions",1000000,IF($E56="$000",1000,1)) -> 0 | M56: ='Input|Step changes'!M20*IF('Input|Step changes'!$F20="nominal",LOOKUP($F56,Nominal_to_Real,'Input|Rate of change'!R$27:R$32),INDEX('Input|Rate of change'!$C$14:$P$22,MATCH('Input|Step changes'!$F20,'Input|Rate of change'!$C$14:$C$22,0),MATCH('Calc|Opex forecast'!$F56,'Input|Rate of change'!$C$14:$P$14,0)))*IF('Input|Step changes'!$E20="$millions",1000000,IF('Input|Step changes'!$E20="$000",1000,1))/IF($E56="$millions",1000000,IF($E56="$000",1000,1)) -> 0 | N56: ='Input|Step changes'!N20*IF('Input|Step changes'!$F20="nominal",LOOKUP($F56,Nominal_to_Real,'Input|Rate of change'!S$27:S$32),INDEX('Input|Rate of change'!$C$14:$P$22,MATCH('Input|Step changes'!$F20,'Input|Rate of change'!$C$14:$C$22,0),MATCH('Calc|Opex forecast'!$F56,'Input|Rate of change'!$C$14:$P$14,0)))*IF('Input|Step changes'!$E20="$millions",1000000,IF('Input|Step changes'!$E20="$000",1000,1))/IF($E56="$millions",1000000,IF($E56="$000",1000,1)) -> 0 | O56: ='Input|Step changes'!O20*IF('Input|Step changes'!$F20="nominal",LOOKUP($F56,Nominal_to_Real,'Input|Rate of change'!T$27:T$32),INDEX('Input|Rate of change'!$C$14:$P$22,MATCH('Input|Step changes'!$F20,'Input|Rate of change'!$C$14:$C$22,0),MATCH('Calc|Opex forecast'!$F56,'Input|Rate of change'!$C$14:$P$14,0)))*IF('Input|Step changes'!$E20="$millions",1000000,IF('Input|Step changes'!$E20="$000",1000,1))/IF($E56="$millions",1000000,IF($E56="$000",1000,1)) -> 0.1126 | P56: ='Input|Step changes'!P20*IF('Input|Step changes'!$F20="nominal",LOOKUP($F56,Nominal_to_Real,'Input|Rate of change'!U$27:U$32),INDEX('Input|Rate of change'!$C$14:$P$22,MATCH('Input|Step changes'!$F20,'Input|Rate of change'!$C$14:$C$22,0),MATCH('Calc|Opex forecast'!$F56,'Input|Rate of change'!$C$14:$P$14,0)))*IF('Input|Step changes'!$E20="$millions",1000000,IF('Input|Step changes'!$E20="$000",1000,1))/IF($E56="$millions",1000000,IF($E56="$000",1000,1)) -> 0.1126 | Q56: ='Input|Step changes'!Q20*IF('Input|Step changes'!$F20="nominal",LOOKUP($F56,Nominal_to_Real,'Input|Rate of change'!V$27:V$32),INDEX('Input|Rate of change'!$C$14:$P$22,MATCH('Input|Step changes'!$F20,'Input|Rate of change'!$C$14:$C$22,0),MATCH('Calc|Opex forecast'!$F56,'Input|Rate of change'!$C$14:$P$14,0)))*IF('Input|Step changes'!$E20="$millions",1000000,IF('Input|Step changes'!$E20="$000",1000,1))/IF($E56="$millions",1000000,IF($E56="$000",1000,1)) -> 0.1126 | R56: ='Input|Step changes'!R20*IF('Input|Step changes'!$F20="nominal",LOOKUP($F56,Nominal_to_Real,'Input|Rate of change'!W$27:W$32),INDEX('Input|Rate of change'!$C$14:$P$22,MATCH('Input|Step changes'!$F20,'Input|Rate of change'!$C$14:$C$22,0),MATCH('Calc|Opex forecast'!$F56,'Input|Rate of change'!$C$14:$P$14,0)))*IF('Input|Step changes'!$E20="$millions",1000000,IF('Input|Step changes'!$E20="$000",1000,1))/IF($E56="$millions",1000000,IF($E56="$000",1000,1)) -> 0.1126 | S56: ='Input|Step changes'!S20*IF('Input|Step changes'!$F20="nominal",LOOKUP($F56,Nominal_to_Real,'Input|Rate of change'!X$27:X$32),INDEX('Input|Rate of change'!$C$14:$P$22,MATCH('Input|Step changes'!$F20,'Input|Rate of change'!$C$14:$C$22,0),MATCH('Calc|Opex forecast'!$F56,'Input|Rate of change'!$C$14:$P$14,0)))*IF('Input|Step changes'!$E20="$millions",1000000,IF('Input|Step changes'!$E20="$000",1000,1))/IF($E56="$millions",1000000,IF($E56="$000",1000,1)) -> 0.1126
C57: ='Input|Step changes'!C21 -> Insurance premiums | D57: Calculated | E57: $millions | F57: 2015 | J57: ='Input|Step changes'!J21*IF('Input|Step changes'!$F21="nominal",LOOKUP($F57,Nominal_to_Real,'Input|Rate of change'!O$27:O$32),INDEX('Input|Rate of change'!$C$14:$P$22,MATCH('Input|Step changes'!$F21,'Input|Rate of change'!$C$14:$C$22,0),MATCH('Calc|Opex forecast'!$F57,'Input|Rate of change'!$C$14:$P$14,0)))*IF('Input|Step changes'!$E21="$millions",1000000,IF('Input|Step changes'!$E21="$000",1000,1))/IF($E57="$millions",1000000,IF($E57="$000",1000,1)) -> 0 | K57: ='Input|Step changes'!K21*IF('Input|Step changes'!$F21="nominal",LOOKUP($F57,Nominal_to_Real,'Input|Rate of change'!P$27:P$32),INDEX('Input|Rate of change'!$C$14:$P$22,MATCH('Input|Step changes'!$F21,'Input|Rate of change'!$C$14:$C$22,0),MATCH('Calc|Opex forecast'!$F57,'Input|Rate of change'!$C$14:$P$14,0)))*IF('Input|Step changes'!$E21="$millions",1000000,IF('Input|Step changes'!$E21="$000",1000,1))/IF($E57="$millions",1000000,IF($E57="$000",1000,1)) -> 0 | L57: ='Input|Step changes'!L21*IF('Input|Step changes'!$F21="nominal",LOOKUP($F57,Nominal_to_Real,'Input|Rate of change'!Q$27:Q$32),INDEX('Input|Rate of change'!$C$14:$P$22,MATCH('Input|Step changes'!$F21,'Input|Rate of change'!$C$14:$C$22,0),MATCH('Calc|Opex forecast'!$F57,'Input|Rate of change'!$C$14:$P$14,0)))*IF('Input|Step changes'!$E21="$millions",1000000,IF('Input|Step changes'!$E21="$000",1000,1))/IF($E57="$millions",1000000,IF($E57="$000",1000,1)) -> 0 | M57: ='Input|Step changes'!M21*IF('Input|Step changes'!$F21="nominal",LOOKUP($F57,Nominal_to_Real,'Input|Rate of change'!R$27:R$32),INDEX('Input|Rate of change'!$C$14:$P$22,MATCH('Input|Step changes'!$F21,'Input|Rate of change'!$C$14:$C$22,0),MATCH('Calc|Opex forecast'!$F57,'Input|Rate of change'!$C$14:$P$14,0)))*IF('Input|Step changes'!$E21="$millions",1000000,IF('Input|Step changes'!$E21="$000",1000,1))/IF($E57="$millions",1000000,IF($E57="$000",1000,1)) -> 0 | N57: ='Input|Step changes'!N21*IF('Input|Step changes'!$F21="nominal",LOOKUP($F57,Nominal_to_Real,'Input|Rate of change'!S$27:S$32),INDEX('Input|Rate of change'!$C$14:$P$22,MATCH('Input|Step changes'!$F21,'Input|Rate of change'!$C$14:$C$22,0),MATCH('Calc|Opex forecast'!$F57,'Input|Rate of change'!$C$14:$P$14,0)))*IF('Input|Step changes'!$E21="$millions",1000000,IF('Input|Step changes'!$E21="$000",1000,1))/IF($E57="$millions",1000000,IF($E57="$000",1000,1)) -> 0 | O57: ='Input|Step changes'!O21*IF('Input|Step changes'!$F21="nominal",LOOKUP($F57,Nominal_to_Real,'Input|Rate of change'!T$27:T$32),INDEX('Input|Rate of change'!$C$14:$P$22,MATCH('Input|Step changes'!$F21,'Input|Rate of change'!$C$14:$C$22,0),MATCH('Calc|Opex forecast'!$F57,'Input|Rate of change'!$C$14:$P$14,0)))*IF('Input|Step changes'!$E21="$millions",1000000,IF('Input|Step changes'!$E21="$000",1000,1))/IF($E57="$millions",1000000,IF($E57="$000",1000,1)) -> 0.03488277267 | P57: ='Input|Step changes'!P21*IF('Input|Step changes'!$F21="nominal",LOOKUP($F57,Nominal_to_Real,'Input|Rate of change'!U$27:U$32),INDEX('Input|Rate of change'!$C$14:$P$22,MATCH('Input|Step changes'!$F21,'Input|Rate of change'!$C$14:$C$22,0),MATCH('Calc|Opex forecast'!$F57,'Input|Rate of change'!$C$14:$P$14,0)))*IF('Input|Step changes'!$E21="$millions",1000000,IF('Input|Step changes'!$E21="$000",1000,1))/IF($E57="$millions",1000000,IF($E57="$000",1000,1)) -> 0.03455834365 | Q57: ='Input|Step changes'!Q21*IF('Input|Step changes'!$F21="nominal",LOOKUP($F57,Nominal_to_Real,'Input|Rate of change'!V$27:V$32),INDEX('Input|Rate of change'!$C$14:$P$22,MATCH('Input|Step changes'!$F21,'Input|Rate of change'!$C$14:$C$22,0),MATCH('Calc|Opex forecast'!$F57,'Input|Rate of change'!$C$14:$P$14,0)))*IF('Input|Step changes'!$E21="$millions",1000000,IF('Input|Step changes'!$E21="$000",1000,1))/IF($E57="$millions",1000000,IF($E57="$000",1000,1)) -> 0.034224451 | R57: ='Input|Step changes'!R21*IF('Input|Step changes'!$F21="nominal",LOOKUP($F57,Nominal_to_Real,'Input|Rate of change'!W$27:W$32),INDEX('Input|Rate of change'!$C$14:$P$22,MATCH('Input|Step changes'!$F21,'Input|Rate of change'!$C$14:$C$22,0),MATCH('Calc|Opex forecast'!$F57,'Input|Rate of change'!$C$14:$P$14,0)))*IF('Input|Step changes'!$E21="$millions",1000000,IF('Input|Step changes'!$E21="$000",1000,1))/IF($E57="$millions",1000000,IF($E57="$000",1000,1)) -> 0.03389930566 | S57: ='Input|Step changes'!S21*IF('Input|Step changes'!$F21="nominal",LOOKUP($F57,Nominal_to_Real,'Input|Rate of change'!X$27:X$32),INDEX('Input|Rate of change'!$C$14:$P$22,MATCH('Input|Step changes'!$F21,'Input|Rate of change'!$C$14:$C$22,0),MATCH('Calc|Opex forecast'!$F57,'Input|Rate of change'!$C$14:$P$14,0)))*IF('Input|Step changes'!$E21="$millions",1000000,IF('Input|Step changes'!$E21="$000",1000,1))/IF($E57="$millions",1000000,IF($E57="$000",1000,1)) -> 0.03356739875
C58: ='Input|Step changes'!C22 -> Vegetation management | D58: Calculated | E58: $millions | F58: 2015 | J58: ='Input|Step changes'!J22*IF('Input|Step changes'!$F22="nominal",LOOKUP($F58,Nominal_to_Real,'Input|Rate of change'!O$27:O$32),INDEX('Input|Rate of change'!$C$14:$P$22,MATCH('Input|Step changes'!$F22,'Input|Rate of change'!$C$14:$C$22,0),MATCH('Calc|Opex forecast'!$F58,'Input|Rate of change'!$C$14:$P$14,0)))*IF('Input|Step changes'!$E22="$millions",1000000,IF('Input|Step changes'!$E22="$000",1000,1))/IF($E58="$millions",1000000,IF($E58="$000",1000,1)) -> 0 | K58: ='Input|Step changes'!K22*IF('Input|Step changes'!$F22="nominal",LOOKUP($F58,Nominal_to_Real,'Input|Rate of change'!P$27:P$32),INDEX('Input|Rate of change'!$C$14:$P$22,MATCH('Input|Step changes'!$F22,'Input|Rate of change'!$C$14:$C$22,0),MATCH('Calc|Opex forecast'!$F58,'Input|Rate of change'!$C$14:$P$14,0)))*IF('Input|Step changes'!$E22="$millions",1000000,IF('Input|Step changes'!$E22="$000",1000,1))/IF($E58="$millions",1000000,IF($E58="$000",1000,1)) -> 0 | L58: ='Input|Step changes'!L22*IF('Input|Step changes'!$F22="nominal",LOOKUP($F58,Nominal_to_Real,'Input|Rate of change'!Q$27:Q$32),INDEX('Input|Rate of change'!$C$14:$P$22,MATCH('Input|Step changes'!$F22,'Input|Rate of change'!$C$14:$C$22,0),MATCH('Calc|Opex forecast'!$F58,'Input|Rate of change'!$C$14:$P$14,0)))*IF('Input|Step changes'!$E22="$millions",1000000,IF('Input|Step changes'!$E22="$000",1000,1))/IF($E58="$millions",1000000,IF($E58="$000",1000,1)) -> 0 | M58: ='Input|Step changes'!M22*IF('Input|Step changes'!$F22="nominal",LOOKUP($F58,Nominal_to_Real,'Input|Rate of change'!R$27:R$32),INDEX('Input|Rate of change'!$C$14:$P$22,MATCH('Input|Step changes'!$F22,'Input|Rate of change'!$C$14:$C$22,0),MATCH('Calc|Opex forecast'!$F58,'Input|Rate of change'!$C$14:$P$14,0)))*IF('Input|Step changes'!$E22="$millions",1000000,IF('Input|Step changes'!$E22="$000",1000,1))/IF($E58="$millions",1000000,IF($E58="$000",1000,1)) -> 0 | N58: ='Input|Step changes'!N22*IF('Input|Step changes'!$F22="nominal",LOOKUP($F58,Nominal_to_Real,'Input|Rate of change'!S$27:S$32),INDEX('Input|Rate of change'!$C$14:$P$22,MATCH('Input|Step changes'!$F22,'Input|Rate of change'!$C$14:$C$22,0),MATCH('Calc|Opex forecast'!$F58,'Input|Rate of change'!$C$14:$P$14,0)))*IF('Input|Step changes'!$E22="$millions",1000000,IF('Input|Step changes'!$E22="$000",1000,1))/IF($E58="$millions",1000000,IF($E58="$000",1000,1)) -> 0 | O58: ='Input|Step changes'!O22*IF('Input|Step changes'!$F22="nominal",LOOKUP($F58,Nominal_to_Real,'Input|Rate of change'!T$27:T$32),INDEX('Input|Rate of change'!$C$14:$P$22,MATCH('Input|Step changes'!$F22,'Input|Rate of change'!$C$14:$C$22,0),MATCH('Calc|Opex forecast'!$F58,'Input|Rate of change'!$C$14:$P$14,0)))*IF('Input|Step changes'!$E22="$millions",1000000,IF('Input|Step changes'!$E22="$000",1000,1))/IF($E58="$millions",1000000,IF($E58="$000",1000,1)) -> 1.4478 | P58: ='Input|Step changes'!P22*IF('Input|Step changes'!$F22="nominal",LOOKUP($F58,Nominal_to_Real,'Input|Rate of change'!U$27:U$32),INDEX('Input|Rate of change'!$C$14:$P$22,MATCH('Input|Step changes'!$F22,'Input|Rate of change'!$C$14:$C$22,0),MATCH('Calc|Opex forecast'!$F58,'Input|Rate of change'!$C$14:$P$14,0)))*IF('Input|Step changes'!$E22="$millions",1000000,IF('Input|Step changes'!$E22="$000",1000,1))/IF($E58="$millions",1000000,IF($E58="$000",1000,1)) -> 1.4228 | Q58: ='Input|Step changes'!Q22*IF('Input|Step changes'!$F22="nominal",LOOKUP($F58,Nominal_to_Real,'Input|Rate of change'!V$27:V$32),INDEX('Input|Rate of change'!$C$14:$P$22,MATCH('Input|Step changes'!$F22,'Input|Rate of change'!$C$14:$C$22,0),MATCH('Calc|Opex forecast'!$F58,'Input|Rate of change'!$C$14:$P$14,0)))*IF('Input|Step changes'!$E22="$millions",1000000,IF('Input|Step changes'!$E22="$000",1000,1))/IF($E58="$millions",1000000,IF($E58="$000",1000,1)) -> 1.3528 | R58: ='Input|Step changes'!R22*IF('Input|Step changes'!$F22="nominal",LOOKUP($F58,Nominal_to_Real,'Input|Rate of change'!W$27:W$32),INDEX('Input|Rate of change'!$C$14:$P$22,MATCH('Input|Step changes'!$F22,'Input|Rate of change'!$C$14:$C$22,0),MATCH('Calc|Opex forecast'!$F58,'Input|Rate of change'!$C$14:$P$14,0)))*IF('Input|Step changes'!$E22="$millions",1000000,IF('Input|Step changes'!$E22="$000",1000,1))/IF($E58="$millions",1000000,IF($E58="$000",1000,1)) -> 1.3528 | S58: ='Input|Step changes'!S22*IF('Input|Step changes'!$F22="nominal",LOOKUP($F58,Nominal_to_Real,'Input|Rate of change'!X$27:X$32),INDEX('Input|Rate of change'!$C$14:$P$22,MATCH('Input|Step changes'!$F22,'Input|Rate of change'!$C$14:$C$22,0),MATCH('Calc|Opex forecast'!$F58,'Input|Rate of change'!$C$14:$P$14,0)))*IF('Input|Step changes'!$E22="$millions",1000000,IF('Input|Step changes'!$E22="$000",1000,1))/IF($E58="$millions",1000000,IF($E58="$000",1000,1)) -> 1.3528
C59: ='Input|Step changes'!C23 -> RIN reporting | D59: Calculated | E59: $millions | F59: 2015 | J59: ='Input|Step changes'!J23*IF('Input|Step changes'!$F23="nominal",LOOKUP($F59,Nominal_to_Real,'Input|Rate of change'!O$27:O$32),INDEX('Input|Rate of change'!$C$14:$P$22,MATCH('Input|Step changes'!$F23,'Input|Rate of change'!$C$14:$C$22,0),MATCH('Calc|Opex forecast'!$F59,'Input|Rate of change'!$C$14:$P$14,0)))*IF('Input|Step changes'!$E23="$millions",1000000,IF('Input|Step changes'!$E23="$000",1000,1))/IF($E59="$millions",1000000,IF($E59="$000",1000,1)) -> 0 | K59: ='Input|Step changes'!K23*IF('Input|Step changes'!$F23="nominal",LOOKUP($F59,Nominal_to_Real,'Input|Rate of change'!P$27:P$32),INDEX('Input|Rate of change'!$C$14:$P$22,MATCH('Input|Step changes'!$F23,'Input|Rate of change'!$C$14:$C$22,0),MATCH('Calc|Opex forecast'!$F59,'Input|Rate of change'!$C$14:$P$14,0)))*IF('Input|Step changes'!$E23="$millions",1000000,IF('Input|Step changes'!$E23="$000",1000,1))/IF($E59="$millions",1000000,IF($E59="$000",1000,1)) -> 0 | L59: ='Input|Step changes'!L23*IF('Input|Step changes'!$F23="nominal",LOOKUP($F59,Nominal_to_Real,'Input|Rate of change'!Q$27:Q$32),INDEX('Input|Rate of change'!$C$14:$P$22,MATCH('Input|Step changes'!$F23,'Input|Rate of change'!$C$14:$C$22,0),MATCH('Calc|Opex forecast'!$F59,'Input|Rate of change'!$C$14:$P$14,0)))*IF('Input|Step changes'!$E23="$millions",1000000,IF('Input|Step changes'!$E23="$000",1000,1))/IF($E59="$millions",1000000,IF($E59="$000",1000,1)) -> 0 | M59: ='Input|Step changes'!M23*IF('Input|Step changes'!$F23="nominal",LOOKUP($F59,Nominal_to_Real,'Input|Rate of change'!R$27:R$32),INDEX('Input|Rate of change'!$C$14:$P$22,MATCH('Input|Step changes'!$F23,'Input|Rate of change'!$C$14:$C$22,0),MATCH('Calc|Opex forecast'!$F59,'Input|Rate of change'!$C$14:$P$14,0)))*IF('Input|Step changes'!$E23="$millions",1000000,IF('Input|Step changes'!$E23="$000",1000,1))/IF($E59="$millions",1000000,IF($E59="$000",1000,1)) -> 0 | N59: ='Input|Step changes'!N23*IF('Input|Step changes'!$F23="nominal",LOOKUP($F59,Nominal_to_Real,'Input|Rate of change'!S$27:S$32),INDEX('Input|Rate of change'!$C$14:$P$22,MATCH('Input|Step changes'!$F23,'Input|Rate of change'!$C$14:$C$22,0),MATCH('Calc|Opex forecast'!$F59,'Input|Rate of change'!$C$14:$P$14,0)))*IF('Input|Step changes'!$E23="$millions",1000000,IF('Input|Step changes'!$E23="$000",1000,1))/IF($E59="$millions",1000000,IF($E59="$000",1000,1)) -> 0 | O59: ='Input|Step changes'!O23*IF('Input|Step changes'!$F23="nominal",LOOKUP($F59,Nominal_to_Real,'Input|Rate of change'!T$27:T$32),INDEX('Input|Rate of change'!$C$14:$P$22,MATCH('Input|Step changes'!$F23,'Input|Rate of change'!$C$14:$C$22,0),MATCH('Calc|Opex forecast'!$F59,'Input|Rate of change'!$C$14:$P$14,0)))*IF('Input|Step changes'!$E23="$millions",1000000,IF('Input|Step changes'!$E23="$000",1000,1))/IF($E59="$millions",1000000,IF($E59="$000",1000,1)) -> 3.57905995 | P59: ='Input|Step changes'!P23*IF('Input|Step changes'!$F23="nominal",LOOKUP($F59,Nominal_to_Real,'Input|Rate of change'!U$27:U$32),INDEX('Input|Rate of change'!$C$14:$P$22,MATCH('Input|Step changes'!$F23,'Input|Rate of change'!$C$14:$C$22,0),MATCH('Calc|Opex forecast'!$F59,'Input|Rate of change'!$C$14:$P$14,0)))*IF('Input|Step changes'!$E23="$millions",1000000,IF('Input|Step changes'!$E23="$000",1000,1))/IF($E59="$millions",1000000,IF($E59="$000",1000,1)) -> 0.574359375 | Q59: ='Input|Step changes'!Q23*IF('Input|Step changes'!$F23="nominal",LOOKUP($F59,Nominal_to_Real,'Input|Rate of change'!V$27:V$32),INDEX('Input|Rate of change'!$C$14:$P$22,MATCH('Input|Step changes'!$F23,'Input|Rate of change'!$C$14:$C$22,0),MATCH('Calc|Opex forecast'!$F59,'Input|Rate of change'!$C$14:$P$14,0)))*IF('Input|Step changes'!$E23="$millions",1000000,IF('Input|Step changes'!$E23="$000",1000,1))/IF($E59="$millions",1000000,IF($E59="$000",1000,1)) -> 0.574359375 | R59: ='Input|Step changes'!R23*IF('Input|Step changes'!$F23="nominal",LOOKUP($F59,Nominal_to_Real,'Input|Rate of change'!W$27:W$32),INDEX('Input|Rate of change'!$C$14:$P$22,MATCH('Input|Step changes'!$F23,'Input|Rate of change'!$C$14:$C$22,0),MATCH('Calc|Opex forecast'!$F59,'Input|Rate of change'!$C$14:$P$14,0)))*IF('Input|Step changes'!$E23="$millions",1000000,IF('Input|Step changes'!$E23="$000",1000,1))/IF($E59="$millions",1000000,IF($E59="$000",1000,1)) -> 0.574359375 | S59: ='Input|Step changes'!S23*IF('Input|Step changes'!$F23="nominal",LOOKUP($F59,Nominal_to_Real,'Input|Rate of change'!X$27:X$32),INDEX('Input|Rate of change'!$C$14:$P$22,MATCH('Input|Step changes'!$F23,'Input|Rate of change'!$C$14:$C$22,0),MATCH('Calc|Opex forecast'!$F59,'Input|Rate of change'!$C$14:$P$14,0)))*IF('Input|Step changes'!$E23="$millions",1000000,IF('Input|Step changes'!$E23="$000",1000,1))/IF($E59="$millions",1000000,IF($E59="$000",1000,1)) -> 0.574359375
C60: ='Input|Step changes'!C24 -> Power of choice | D60: Calculated | E60: $millions | F60: 2015 | J60: ='Input|Step changes'!J24*IF('Input|Step changes'!$F24="nominal",LOOKUP($F60,Nominal_to_Real,'Input|Rate of change'!O$27:O$32),INDEX('Input|Rate of change'!$C$14:$P$22,MATCH('Input|Step changes'!$F24,'Input|Rate of change'!$C$14:$C$22,0),MATCH('Calc|Opex forecast'!$F60,'Input|Rate of change'!$C$14:$P$14,0)))*IF('Input|Step changes'!$E24="$millions",1000000,IF('Input|Step changes'!$E24="$000",1000,1))/IF($E60="$millions",1000000,IF($E60="$000",1000,1)) -> 0 | K60: ='Input|Step changes'!K24*IF('Input|Step changes'!$F24="nominal",LOOKUP($F60,Nominal_to_Real,'Input|Rate of change'!P$27:P$32),INDEX('Input|Rate of change'!$C$14:$P$22,MATCH('Input|Step changes'!$F24,'Input|Rate of change'!$C$14:$C$22,0),MATCH('Calc|Opex forecast'!$F60,'Input|Rate of change'!$C$14:$P$14,0)))*IF('Input|Step changes'!$E24="$millions",1000000,IF('Input|Step changes'!$E24="$000",1000,1))/IF($E60="$millions",1000000,IF($E60="$000",1000,1)) -> 0 | L60: ='Input|Step changes'!L24*IF('Input|Step changes'!$F24="nominal",LOOKUP($F60,Nominal_to_Real,'Input|Rate of change'!Q$27:Q$32),INDEX('Input|Rate of change'!$C$14:$P$22,MATCH('Input|Step changes'!$F24,'Input|Rate of change'!$C$14:$C$22,0),MATCH('Calc|Opex forecast'!$F60,'Input|Rate of change'!$C$14:$P$14,0)))*IF('Input|Step changes'!$E24="$millions",1000000,IF('Input|Step changes'!$E24="$000",1000,1))/IF($E60="$millions",1000000,IF($E60="$000",1000,1)) -> 0 | M60: ='Input|Step changes'!M24*IF('Input|Step changes'!$F24="nominal",LOOKUP($F60,Nominal_to_Real,'Input|Rate of change'!R$27:R$32),INDEX('Input|Rate of change'!$C$14:$P$22,MATCH('Input|Step changes'!$F24,'Input|Rate of change'!$C$14:$C$22,0),MATCH('Calc|Opex forecast'!$F60,'Input|Rate of change'!$C$14:$P$14,0)))*IF('Input|Step changes'!$E24="$millions",1000000,IF('Input|Step changes'!$E24="$000",1000,1))/IF($E60="$millions",1000000,IF($E60="$000",1000,1)) -> 0 | N60: ='Input|Step changes'!N24*IF('Input|Step changes'!$F24="nominal",LOOKUP($F60,Nominal_to_Real,'Input|Rate of change'!S$27:S$32),INDEX('Input|Rate of change'!$C$14:$P$22,MATCH('Input|Step changes'!$F24,'Input|Rate of change'!$C$14:$C$22,0),MATCH('Calc|Opex forecast'!$F60,'Input|Rate of change'!$C$14:$P$14,0)))*IF('Input|Step changes'!$E24="$millions",1000000,IF('Input|Step changes'!$E24="$000",1000,1))/IF($E60="$millions",1000000,IF($E60="$000",1000,1)) -> 0 | O60: ='Input|Step changes'!O24*IF('Input|Step changes'!$F24="nominal",LOOKUP($F60,Nominal_to_Real,'Input|Rate of change'!T$27:T$32),INDEX('Input|Rate of change'!$C$14:$P$22,MATCH('Input|Step changes'!$F24,'Input|Rate of change'!$C$14:$C$22,0),MATCH('Calc|Opex forecast'!$F60,'Input|Rate of change'!$C$14:$P$14,0)))*IF('Input|Step changes'!$E24="$millions",1000000,IF('Input|Step changes'!$E24="$000",1000,1))/IF($E60="$millions",1000000,IF($E60="$000",1000,1)) -> 0.3893710225 | P60: ='Input|Step changes'!P24*IF('Input|Step changes'!$F24="nominal",LOOKUP($F60,Nominal_to_Real,'Input|Rate of change'!U$27:U$32),INDEX('Input|Rate of change'!$C$14:$P$22,MATCH('Input|Step changes'!$F24,'Input|Rate of change'!$C$14:$C$22,0),MATCH('Calc|Opex forecast'!$F60,'Input|Rate of change'!$C$14:$P$14,0)))*IF('Input|Step changes'!$E24="$millions",1000000,IF('Input|Step changes'!$E24="$000",1000,1))/IF($E60="$millions",1000000,IF($E60="$000",1000,1)) -> 0.4884289775 | Q60: ='Input|Step changes'!Q24*IF('Input|Step changes'!$F24="nominal",LOOKUP($F60,Nominal_to_Real,'Input|Rate of change'!V$27:V$32),INDEX('Input|Rate of change'!$C$14:$P$22,MATCH('Input|Step changes'!$F24,'Input|Rate of change'!$C$14:$C$22,0),MATCH('Calc|Opex forecast'!$F60,'Input|Rate of change'!$C$14:$P$14,0)))*IF('Input|Step changes'!$E24="$millions",1000000,IF('Input|Step changes'!$E24="$000",1000,1))/IF($E60="$millions",1000000,IF($E60="$000",1000,1)) -> 0 | R60: ='Input|Step changes'!R24*IF('Input|Step changes'!$F24="nominal",LOOKUP($F60,Nominal_to_Real,'Input|Rate of change'!W$27:W$32),INDEX('Input|Rate of change'!$C$14:$P$22,MATCH('Input|Step changes'!$F24,'Input|Rate of change'!$C$14:$C$22,0),MATCH('Calc|Opex forecast'!$F60,'Input|Rate of change'!$C$14:$P$14,0)))*IF('Input|Step changes'!$E24="$millions",1000000,IF('Input|Step changes'!$E24="$000",1000,1))/IF($E60="$millions",1000000,IF($E60="$000",1000,1)) -> 0 | S60: ='Input|Step changes'!S24*IF('Input|Step changes'!$F24="nominal",LOOKUP($F60,Nominal_to_Real,'Input|Rate of change'!X$27:X$32),INDEX('Input|Rate of change'!$C$14:$P$22,MATCH('Input|Step changes'!$F24,'Input|Rate of change'!$C$14:$C$22,0),MATCH('Calc|Opex forecast'!$F60,'Input|Rate of change'!$C$14:$P$14,0)))*IF('Input|Step changes'!$E24="$millions",1000000,IF('Input|Step changes'!$E24="$000",1000,1))/IF($E60="$millions",1000000,IF($E60="$000",1000,1)) -> 0
C61: ='Input|Step changes'!C25 -> Chapter 5A (new obligations) | D61: Calculated | E61: $millions | F61: 2015 | J61: ='Input|Step changes'!J25*IF('Input|Step changes'!$F25="nominal",LOOKUP($F61,Nominal_to_Real,'Input|Rate of change'!O$27:O$32),INDEX('Input|Rate of change'!$C$14:$P$22,MATCH('Input|Step changes'!$F25,'Input|Rate of change'!$C$14:$C$22,0),MATCH('Calc|Opex forecast'!$F61,'Input|Rate of change'!$C$14:$P$14,0)))*IF('Input|Step changes'!$E25="$millions",1000000,IF('Input|Step changes'!$E25="$000",1000,1))/IF($E61="$millions",1000000,IF($E61="$000",1000,1)) -> 0 | K61: ='Input|Step changes'!K25*IF('Input|Step changes'!$F25="nominal",LOOKUP($F61,Nominal_to_Real,'Input|Rate of change'!P$27:P$32),INDEX('Input|Rate of change'!$C$14:$P$22,MATCH('Input|Step changes'!$F25,'Input|Rate of change'!$C$14:$C$22,0),MATCH('Calc|Opex forecast'!$F61,'Input|Rate of change'!$C$14:$P$14,0)))*IF('Input|Step changes'!$E25="$millions",1000000,IF('Input|Step changes'!$E25="$000",1000,1))/IF($E61="$millions",1000000,IF($E61="$000",1000,1)) -> 0 | L61: ='Input|Step changes'!L25*IF('Input|Step changes'!$F25="nominal",LOOKUP($F61,Nominal_to_Real,'Input|Rate of change'!Q$27:Q$32),INDEX('Input|Rate of change'!$C$14:$P$22,MATCH('Input|Step changes'!$F25,'Input|Rate of change'!$C$14:$C$22,0),MATCH('Calc|Opex forecast'!$F61,'Input|Rate of change'!$C$14:$P$14,0)))*IF('Input|Step changes'!$E25="$millions",1000000,IF('Input|Step changes'!$E25="$000",1000,1))/IF($E61="$millions",1000000,IF($E61="$000",1000,1)) -> 0 | M61: ='Input|Step changes'!M25*IF('Input|Step changes'!$F25="nominal",LOOKUP($F61,Nominal_to_Real,'Input|Rate of change'!R$27:R$32),INDEX('Input|Rate of change'!$C$14:$P$22,MATCH('Input|Step changes'!$F25,'Input|Rate of change'!$C$14:$C$22,0),MATCH('Calc|Opex forecast'!$F61,'Input|Rate of change'!$C$14:$P$14,0)))*IF('Input|Step changes'!$E25="$millions",1000000,IF('Input|Step changes'!$E25="$000",1000,1))/IF($E61="$millions",1000000,IF($E61="$000",1000,1)) -> 0 | N61: ='Input|Step changes'!N25*IF('Input|Step changes'!$F25="nominal",LOOKUP($F61,Nominal_to_Real,'Input|Rate of change'!S$27:S$32),INDEX('Input|Rate of change'!$C$14:$P$22,MATCH('Input|Step changes'!$F25,'Input|Rate of change'!$C$14:$C$22,0),MATCH('Calc|Opex forecast'!$F61,'Input|Rate of change'!$C$14:$P$14,0)))*IF('Input|Step changes'!$E25="$millions",1000000,IF('Input|Step changes'!$E25="$000",1000,1))/IF($E61="$millions",1000000,IF($E61="$000",1000,1)) -> 0 | O61: ='Input|Step changes'!O25*IF('Input|Step changes'!$F25="nominal",LOOKUP($F61,Nominal_to_Real,'Input|Rate of change'!T$27:T$32),INDEX('Input|Rate of change'!$C$14:$P$22,MATCH('Input|Step changes'!$F25,'Input|Rate of change'!$C$14:$C$22,0),MATCH('Calc|Opex forecast'!$F61,'Input|Rate of change'!$C$14:$P$14,0)))*IF('Input|Step changes'!$E25="$millions",1000000,IF('Input|Step changes'!$E25="$000",1000,1))/IF($E61="$millions",1000000,IF($E61="$000",1000,1)) -> 0.3044698177 | P61: ='Input|Step changes'!P25*IF('Input|Step changes'!$F25="nominal",LOOKUP($F61,Nominal_to_Real,'Input|Rate of change'!U$27:U$32),INDEX('Input|Rate of change'!$C$14:$P$22,MATCH('Input|Step changes'!$F25,'Input|Rate of change'!$C$14:$C$22,0),MATCH('Calc|Opex forecast'!$F61,'Input|Rate of change'!$C$14:$P$14,0)))*IF('Input|Step changes'!$E25="$millions",1000000,IF('Input|Step changes'!$E25="$000",1000,1))/IF($E61="$millions",1000000,IF($E61="$000",1000,1)) -> 0.10037118 | Q61: ='Input|Step changes'!Q25*IF('Input|Step changes'!$F25="nominal",LOOKUP($F61,Nominal_to_Real,'Input|Rate of change'!V$27:V$32),INDEX('Input|Rate of change'!$C$14:$P$22,MATCH('Input|Step changes'!$F25,'Input|Rate of change'!$C$14:$C$22,0),MATCH('Calc|Opex forecast'!$F61,'Input|Rate of change'!$C$14:$P$14,0)))*IF('Input|Step changes'!$E25="$millions",1000000,IF('Input|Step changes'!$E25="$000",1000,1))/IF($E61="$millions",1000000,IF($E61="$000",1000,1)) -> 0.10037118 | R61: ='Input|Step changes'!R25*IF('Input|Step changes'!$F25="nominal",LOOKUP($F61,Nominal_to_Real,'Input|Rate of change'!W$27:W$32),INDEX('Input|Rate of change'!$C$14:$P$22,MATCH('Input|Step changes'!$F25,'Input|Rate of change'!$C$14:$C$22,0),MATCH('Calc|Opex forecast'!$F61,'Input|Rate of change'!$C$14:$P$14,0)))*IF('Input|Step changes'!$E25="$millions",1000000,IF('Input|Step changes'!$E25="$000",1000,1))/IF($E61="$millions",1000000,IF($E61="$000",1000,1)) -> 0.10037118 | S61: ='Input|Step changes'!S25*IF('Input|Step changes'!$F25="nominal",LOOKUP($F61,Nominal_to_Real,'Input|Rate of change'!X$27:X$32),INDEX('Input|Rate of change'!$C$14:$P$22,MATCH('Input|Step changes'!$F25,'Input|Rate of change'!$C$14:$C$22,0),MATCH('Calc|Opex forecast'!$F61,'Input|Rate of change'!$C$14:$P$14,0)))*IF('Input|Step changes'!$E25="$millions",1000000,IF('Input|Step changes'!$E25="$000",1000,1))/IF($E61="$millions",1000000,IF($E61="$000",1000,1)) -> 0.10037118
C63: Total step changes | D63: Calculated | E63: =$E$8 -> $millions | F63: =$F$8 -> 2015 | J63: =SUM(J48:J62) -> 0 | K63: =SUM(K48:K62) -> 0 | L63: 0 | M63: 0 | N63: 0 | O63: =SUM(O48:O62) -> 9.422116957 | P63: 5.541199453 | Q63: 4.762436583 | R63: 4.762111437 | S63: 3.223596401
B65: Calc | Specific forecasts
C67: Specific forecasts | D67: Source | E67: Unit | F67: Basis | J67: =IF(J$4>='Input|General'!$G$11,IF(J$4<='Input|General'!$G$12,'Input|Reported opex'!L$4,""),"") ->  | K67: =IF(K$4>='Input|General'!$G$11,IF(K$4<='Input|General'!$G$12,'Input|Reported opex'!M$4,""),"") ->  | L67: =IF(L$4>='Input|General'!$G$11,IF(L$4<='Input|General'!$G$12,'Input|Reported opex'!N$4,""),"") ->  | M67: =IF(M$4>='Input|General'!$G$11,IF(M$4<='Input|General'!$G$12,'Input|Reported opex'!O$4,""),"") ->  | N67: =IF(N$4>='Input|General'!$G$11,IF(N$4<='Input|General'!$G$12,'Input|Reported opex'!P$4,""),"") ->  | O67: =IF(O$4>='Input|General'!$G$11,IF(O$4<='Input|General'!$G$12,'Input|Reported opex'!Q$4,""),"") -> 2016 | P67: =IF(P$4>='Input|General'!$G$11,IF(P$4<='Input|General'!$G$12,'Input|Reported opex'!R$4,""),"") -> 2017 | Q67: =IF(Q$4>='Input|General'!$G$11,IF(Q$4<='Input|General'!$G$12,'Input|Reported opex'!S$4,""),"") -> 2018 | R67: =IF(R$4>='Input|General'!$G$11,IF(R$4<='Input|General'!$G$12,'Input|Reported opex'!T$4,""),"") -> 2019 | S67: =IF(S$4>='Input|General'!$G$11,IF(S$4<='Input|General'!$G$12,'Input|Reported opex'!U$4,""),"") -> 2020
C69: ='Input|Step changes'!C31 -> GSL payments (base) | D69: Calculated | E69: =$E$8 -> $millions | F69: =$F$8 -> 2015 | J69: ='Input|Step changes'!J31*IF('Input|Step changes'!$F31="nominal",LOOKUP($F69,Nominal_to_Real,'Input|Rate of change'!O$27:O$32),INDEX('Input|Rate of change'!$C$14:$P$22,MATCH('Input|Step changes'!$F31,'Input|Rate of change'!$C$14:$C$22,0),MATCH('Calc|Opex forecast'!$F69,'Input|Rate of change'!$C$14:$P$14,0)))*IF('Input|Step changes'!$E31="$millions",1000000,IF('Input|Step changes'!$E31="$000",1000,1))/IF($E69="$millions",1000000,IF($E69="$000",1000,1)) -> 0 | K69: ='Input|Step changes'!K31*IF('Input|Step changes'!$F31="nominal",LOOKUP($F69,Nominal_to_Real,'Input|Rate of change'!P$27:P$32),INDEX('Input|Rate of change'!$C$14:$P$22,MATCH('Input|Step changes'!$F31,'Input|Rate of change'!$C$14:$C$22,0),MATCH('Calc|Opex forecast'!$F69,'Input|Rate of change'!$C$14:$P$14,0)))*IF('Input|Step changes'!$E31="$millions",1000000,IF('Input|Step changes'!$E31="$000",1000,1))/IF($E69="$millions",1000000,IF($E69="$000",1000,1)) -> 0 | L69: ='Input|Step changes'!L31*IF('Input|Step changes'!$F31="nominal",LOOKUP($F69,Nominal_to_Real,'Input|Rate of change'!Q$27:Q$32),INDEX('Input|Rate of change'!$C$14:$P$22,MATCH('Input|Step changes'!$F31,'Input|Rate of change'!$C$14:$C$22,0),MATCH('Calc|Opex forecast'!$F69,'Input|Rate of change'!$C$14:$P$14,0)))*IF('Input|Step changes'!$E31="$millions",1000000,IF('Input|Step changes'!$E31="$000",1000,1))/IF($E69="$millions",1000000,IF($E69="$000",1000,1)) -> 0 | M69: ='Input|Step changes'!M31*IF('Input|Step changes'!$F31="nominal",LOOKUP($F69,Nominal_to_Real,'Input|Rate of change'!R$27:R$32),INDEX('Input|Rate of change'!$C$14:$P$22,MATCH('Input|Step changes'!$F31,'Input|Rate of change'!$C$14:$C$22,0),MATCH('Calc|Opex forecast'!$F69,'Input|Rate of change'!$C$14:$P$14,0)))*IF('Input|Step changes'!$E31="$millions",1000000,IF('Input|Step changes'!$E31="$000",1000,1))/IF($E69="$millions",1000000,IF($E69="$000",1000,1)) -> 0 | N69: ='Input|Step changes'!N31*IF('Input|Step changes'!$F31="nominal",LOOKUP($F69,Nominal_to_Real,'Input|Rate of change'!S$27:S$32),INDEX('Input|Rate of change'!$C$14:$P$22,MATCH('Input|Step changes'!$F31,'Input|Rate of change'!$C$14:$C$22,0),MATCH('Calc|Opex forecast'!$F69,'Input|Rate of change'!$C$14:$P$14,0)))*IF('Input|Step changes'!$E31="$millions",1000000,IF('Input|Step changes'!$E31="$000",1000,1))/IF($E69="$millions",1000000,IF($E69="$000",1000,1)) -> 0 | O69: ='Input|Step changes'!O31*IF('Input|Step changes'!$F31="nominal",LOOKUP($F69,Nominal_to_Real,'Input|Rate of change'!T$27:T$32),INDEX('Input|Rate of change'!$C$14:$P$22,MATCH('Input|Step changes'!$F31,'Input|Rate of change'!$C$14:$C$22,0),MATCH('Calc|Opex forecast'!$F69,'Input|Rate of change'!$C$14:$P$14,0)))*IF('Input|Step changes'!$E31="$millions",1000000,IF('Input|Step changes'!$E31="$000",1000,1))/IF($E69="$millions",1000000,IF($E69="$000",1000,1)) -> 0.05255278941 | P69: ='Input|Step changes'!P31*IF('Input|Step changes'!$F31="nominal",LOOKUP($F69,Nominal_to_Real,'Input|Rate of change'!U$27:U$32),INDEX('Input|Rate of change'!$C$14:$P$22,MATCH('Input|Step changes'!$F31,'Input|Rate of change'!$C$14:$C$22,0),MATCH('Calc|Opex forecast'!$F69,'Input|Rate of change'!$C$14:$P$14,0)))*IF('Input|Step changes'!$E31="$millions",1000000,IF('Input|Step changes'!$E31="$000",1000,1))/IF($E69="$millions",1000000,IF($E69="$000",1000,1)) -> 0.05255278941 | Q69: ='Input|Step changes'!Q31*IF('Input|Step changes'!$F31="nominal",LOOKUP($F69,Nominal_to_Real,'Input|Rate of change'!V$27:V$32),INDEX('Input|Rate of change'!$C$14:$P$22,MATCH('Input|Step changes'!$F31,'Input|Rate of change'!$C$14:$C$22,0),MATCH('Calc|Opex forecast'!$F69,'Input|Rate of change'!$C$14:$P$14,0)))*IF('Input|Step changes'!$E31="$millions",1000000,IF('Input|Step changes'!$E31="$000",1000,1))/IF($E69="$millions",1000000,IF($E69="$000",1000,1)) -> 0.05255278941 | R69: ='Input|Step changes'!R31*IF('Input|Step changes'!$F31="nominal",LOOKUP($F69,Nominal_to_Real,'Input|Rate of change'!W$27:W$32),INDEX('Input|Rate of change'!$C$14:$P$22,MATCH('Input|Step changes'!$F31,'Input|Rate of change'!$C$14:$C$22,0),MATCH('Calc|Opex forecast'!$F69,'Input|Rate of change'!$C$14:$P$14,0)))*IF('Input|Step changes'!$E31="$millions",1000000,IF('Input|Step changes'!$E31="$000",1000,1))/IF($E69="$millions",1000000,IF($E69="$000",1000,1)) -> 0.05255278941 | S69: ='Input|Step changes'!S31*IF('Input|Step changes'!$F31="nominal",LOOKUP($F69,Nominal_to_Real,'Input|Rate of change'!X$27:X$32),INDEX('Input|Rate of change'!$C$14:$P$22,MATCH('Input|Step changes'!$F31,'Input|Rate of change'!$C$14:$C$22,0),MATCH('Calc|Opex forecast'!$F69,'Input|Rate of change'!$C$14:$P$14,0)))*IF('Input|Step changes'!$E31="$millions",1000000,IF('Input|Step changes'!$E31="$000",1000,1))/IF($E69="$millions",1000000,IF($E69="$000",1000,1)) -> 0.05255278941
C70: ='Input|Step changes'!C32 -> Debt raising costs | D70: Calculated | E70: $millions | F70: =$F$8 -> 2015 | J70: ='Input|Step changes'!J32*IF('Input|Step changes'!$F32="nominal",LOOKUP($F70,Nominal_to_Real,'Input|Rate of change'!O$27:O$32),INDEX('Input|Rate of change'!$C$14:$P$22,MATCH('Input|Step changes'!$F32,'Input|Rate of change'!$C$14:$C$22,0),MATCH('Calc|Opex forecast'!$F70,'Input|Rate of change'!$C$14:$P$14,0)))*IF('Input|Step changes'!$E32="$millions",1000000,IF('Input|Step changes'!$E32="$000",1000,1))/IF($E70="$millions",1000000,IF($E70="$000",1000,1)) -> 0 | K70: ='Input|Step changes'!K32*IF('Input|Step changes'!$F32="nominal",LOOKUP($F70,Nominal_to_Real,'Input|Rate of change'!P$27:P$32),INDEX('Input|Rate of change'!$C$14:$P$22,MATCH('Input|Step changes'!$F32,'Input|Rate of change'!$C$14:$C$22,0),MATCH('Calc|Opex forecast'!$F70,'Input|Rate of change'!$C$14:$P$14,0)))*IF('Input|Step changes'!$E32="$millions",1000000,IF('Input|Step changes'!$E32="$000",1000,1))/IF($E70="$millions",1000000,IF($E70="$000",1000,1)) -> 0 | L70: ='Input|Step changes'!L32*IF('Input|Step changes'!$F32="nominal",LOOKUP($F70,Nominal_to_Real,'Input|Rate of change'!Q$27:Q$32),INDEX('Input|Rate of change'!$C$14:$P$22,MATCH('Input|Step changes'!$F32,'Input|Rate of change'!$C$14:$C$22,0),MATCH('Calc|Opex forecast'!$F70,'Input|Rate of change'!$C$14:$P$14,0)))*IF('Input|Step changes'!$E32="$millions",1000000,IF('Input|Step changes'!$E32="$000",1000,1))/IF($E70="$millions",1000000,IF($E70="$000",1000,1)) -> 0 | M70: ='Input|Step changes'!M32*IF('Input|Step changes'!$F32="nominal",LOOKUP($F70,Nominal_to_Real,'Input|Rate of change'!R$27:R$32),INDEX('Input|Rate of change'!$C$14:$P$22,MATCH('Input|Step changes'!$F32,'Input|Rate of change'!$C$14:$C$22,0),MATCH('Calc|Opex forecast'!$F70,'Input|Rate of change'!$C$14:$P$14,0)))*IF('Input|Step changes'!$E32="$millions",1000000,IF('Input|Step changes'!$E32="$000",1000,1))/IF($E70="$millions",1000000,IF($E70="$000",1000,1)) -> 0 | N70: ='Input|Step changes'!N32*IF('Input|Step changes'!$F32="nominal",LOOKUP($F70,Nominal_to_Real,'Input|Rate of change'!S$27:S$32),INDEX('Input|Rate of change'!$C$14:$P$22,MATCH('Input|Step changes'!$F32,'Input|Rate of change'!$C$14:$C$22,0),MATCH('Calc|Opex forecast'!$F70,'Input|Rate of change'!$C$14:$P$14,0)))*IF('Input|Step changes'!$E32="$millions",1000000,IF('Input|Step changes'!$E32="$000",1000,1))/IF($E70="$millions",1000000,IF($E70="$000",1000,1)) -> 0 | O70: ='Input|Step changes'!O32*IF('Input|Step changes'!$F32="nominal",LOOKUP($F70,Nominal_to_Real,'Input|Rate of change'!T$27:T$32),INDEX('Input|Rate of change'!$C$14:$P$22,MATCH('Input|Step changes'!$F32,'Input|Rate of change'!$C$14:$C$22,0),MATCH('Calc|Opex forecast'!$F70,'Input|Rate of change'!$C$14:$P$14,0)))*IF('Input|Step changes'!$E32="$millions",1000000,IF('Input|Step changes'!$E32="$000",1000,1))/IF($E70="$millions",1000000,IF($E70="$000",1000,1)) -> 0.6058667849 | P70: ='Input|Step changes'!P32*IF('Input|Step changes'!$F32="nominal",LOOKUP($F70,Nominal_to_Real,'Input|Rate of change'!U$27:U$32),INDEX('Input|Rate of change'!$C$14:$P$22,MATCH('Input|Step changes'!$F32,'Input|Rate of change'!$C$14:$C$22,0),MATCH('Calc|Opex forecast'!$F70,'Input|Rate of change'!$C$14:$P$14,0)))*IF('Input|Step changes'!$E32="$millions",1000000,IF('Input|Step changes'!$E32="$000",1000,1))/IF($E70="$millions",1000000,IF($E70="$000",1000,1)) -> 0.6368810249 | Q70: ='Input|Step changes'!Q32*IF('Input|Step changes'!$F32="nominal",LOOKUP($F70,Nominal_to_Real,'Input|Rate of change'!V$27:V$32),INDEX('Input|Rate of change'!$C$14:$P$22,MATCH('Input|Step changes'!$F32,'Input|Rate of change'!$C$14:$C$22,0),MATCH('Calc|Opex forecast'!$F70,'Input|Rate of change'!$C$14:$P$14,0)))*IF('Input|Step changes'!$E32="$millions",1000000,IF('Input|Step changes'!$E32="$000",1000,1))/IF($E70="$millions",1000000,IF($E70="$000",1000,1)) -> 0.6912150829 | R70: ='Input|Step changes'!R32*IF('Input|Step changes'!$F32="nominal",LOOKUP($F70,Nominal_to_Real,'Input|Rate of change'!W$27:W$32),INDEX('Input|Rate of change'!$C$14:$P$22,MATCH('Input|Step changes'!$F32,'Input|Rate of change'!$C$14:$C$22,0),MATCH('Calc|Opex forecast'!$F70,'Input|Rate of change'!$C$14:$P$14,0)))*IF('Input|Step changes'!$E32="$millions",1000000,IF('Input|Step changes'!$E32="$000",1000,1))/IF($E70="$millions",1000000,IF($E70="$000",1000,1)) -> 0.723562143 | S70: ='Input|Step changes'!S32*IF('Input|Step changes'!$F32="nominal",LOOKUP($F70,Nominal_to_Real,'Input|Rate of change'!X$27:X$32),INDEX('Input|Rate of change'!$C$14:$P$22,MATCH('Input|Step changes'!$F32,'Input|Rate of change'!$C$14:$C$22,0),MATCH('Calc|Opex forecast'!$F70,'Input|Rate of change'!$C$14:$P$14,0)))*IF('Input|Step changes'!$E32="$millions",1000000,IF('Input|Step changes'!$E32="$000",1000,1))/IF($E70="$millions",1000000,IF($E70="$000",1000,1)) -> 0.7543336599
C72: Total specific forecasts | D72: Calculated | E72: =$E$8 -> $millions | F72: =$F$8 -> 2015 | J72: =SUM(J69:J70) -> 0 | K72: 0 | L72: 0 | M72: 0 | N72: 0 | O72: =SUM(O69:O70) -> 0.6584195743 | P72: =SUM(P69:P70) -> 0.6894338143 | Q72: 0.7437678723 | R72: 0.7761149324 | S72: 0.8068864493
B74: Calc | Total forecast operating expenditure
C76: Total forecast opex | D76: Source | E76: Unit | F76: Basis | J76: =IF(RIGHT(J$4,2)>=RIGHT('Input|General'!$G$9,2),IF(RIGHT(J$4,2)<=RIGHT('Input|General'!$G$12,2),J$4,""),"") ->  | K76: =IF(RIGHT(K$4,2)>=RIGHT('Input|General'!$G$9,2),IF(RIGHT(K$4,2)<=RIGHT('Input|General'!$G$12,2),K$4,""),"") ->  | L76: =IF(RIGHT(L$4,2)>=RIGHT('Input|General'!$G$9,2),IF(RIGHT(L$4,2)<=RIGHT('Input|General'!$G$12,2),L$4,""),"") ->  | M76: =IF(RIGHT(M$4,2)>=RIGHT('Input|General'!$G$9,2),IF(RIGHT(M$4,2)<=RIGHT('Input|General'!$G$12,2),M$4,""),"") -> 2014 | N76: =IF(RIGHT(N$4,2)>=RIGHT('Input|General'!$G$9,2),IF(RIGHT(N$4,2)<=RIGHT('Input|General'!$G$12,2),N$4,""),"") -> 2015 | O76: =IF(RIGHT(O$4,2)>=RIGHT('Input|General'!$G$9,2),IF(RIGHT(O$4,2)<=RIGHT('Input|General'!$G$12,2),O$4,""),"") -> 2016 | P76: =IF(RIGHT(P$4,2)>=RIGHT('Input|General'!$G$9,2),IF(RIGHT(P$4,2)<=RIGHT('Input|General'!$G$12,2),P$4,""),"") -> 2017 | Q76: =IF(RIGHT(Q$4,2)>=RIGHT('Input|General'!$G$9,2),IF(RIGHT(Q$4,2)<=RIGHT('Input|General'!$G$12,2),Q$4,""),"") -> 2018 | R76: =IF(RIGHT(R$4,2)>=RIGHT('Input|General'!$G$9,2),IF(RIGHT(R$4,2)<=RIGHT('Input|General'!$G$12,2),R$4,""),"") -> 2019 | S76: =IF(RIGHT(S$4,2)>=RIGHT('Input|General'!$G$9,2),IF(RIGHT(S$4,2)<=RIGHT('Input|General'!$G$12,2),S$4,""),"") -> 2020
C78: Total forecast opex, excluding debt raising costs | D78: Calculated | E78: =$E$8 -> $millions | F78: =$F$8 -> 2015 | J78: =J13 -> 0 | K78: 0 | L78: 0 | M78: =M13 -> 73.73207795 | N78: =N19 -> 72.61962673 | O78: =IF(O$4>='Input|General'!$G$11,IF(O$4<='Input|General'!$G$12,IF(ISBLANK(O76),"",PRODUCT(1+$J42:O42)*SUM($J29:$S29)+O63+O69),""),"") -> 93.1901235 | P78: =IF(P$4>='Input|General'!$G$11,IF(P$4<='Input|General'!$G$12,IF(ISBLANK(P76),"",PRODUCT(1+$J42:P42)*SUM($J29:$S29)+P63+P69),""),"") -> 91.18855488 | Q78: =IF(Q$4>='Input|General'!$G$11,IF(Q$4<='Input|General'!$G$12,IF(ISBLANK(Q76),"",PRODUCT(1+$J42:Q42)*SUM($J29:$S29)+Q63+Q69),""),"") -> 92.58302701 | R78: =IF(R$4>='Input|General'!$G$11,IF(R$4<='Input|General'!$G$12,IF(ISBLANK(R76),"",PRODUCT(1+$J42:R42)*SUM($J29:$S29)+R63+R69),""),"") -> 94.85721032 | S78: =IF(S$4>='Input|General'!$G$11,IF(S$4<='Input|General'!$G$12,IF(ISBLANK(S76),"",PRODUCT(1+$J42:S42)*SUM($J29:$S29)+S63+S69),""),"") -> 95.61501133
C79: Total forecast opex, including debt raising costs | D79: Calculated | E79: =$E$8 -> $millions | F79: =$F$8 -> 2015 | O79: =O78+O70 -> 93.79599029 | P79: =P78+P70 -> 91.82543591 | Q79: 93.27424209 | R79: 95.58077246 | S79: 96.36934499
B81: End

Sheet Calc|EBSS
C1: =Index!$B$1 -> JEN opex model - Distribution services | L1: Back to Index | N1: Key: | O1: Input | P1: External Link | Q1: Internal Link | T1: Worksheet check: | U1: =IF(COUNTA($Y$41:$Y$268)=COUNTIF($Y$41:$Y$268,"OK"),"OK","Check") -> OK | W1: Overall Check: | X1: ='Check|List'!$S$1 -> Ok
C2: =Index!$C$13 -> Calc | EBSS
D4: Source | E4: Unit | F4: Basis | J4: =K4-1 -> 2009 | K4: =L4-1 -> 2010 | L4: ='Input|General'!$G$8 -> 2011 | M4: =IF(OFFSET('Lookup|Tables'!$G$26:$G$43,MATCH('Input|General'!$G$8,'Lookup|Tables'!$G$26:$G$42,0),0,1,1)<='Input|General'!$G$12,OFFSET('Lookup|Tables'!$G$26:$G$43,MATCH('Input|General'!$G$8,'Lookup|Tables'!$G$26:$G$42,0),0,1,1),"") -> 2012 | N4: =IF(OFFSET('Lookup|Tables'!$G$28:$G$43,MATCH('Input|General'!$G$8,'Lookup|Tables'!$G$28:$G$42,0)+1,0,1,1)<='Input|General'!$G$12,OFFSET('Lookup|Tables'!$G$28:$G$43,MATCH('Input|General'!$G$8,'Lookup|Tables'!$G$28:$G$42,0)+1,0,1,1),"") -> 2013 | O4: =IF(OFFSET('Lookup|Tables'!$G$28:$G$43,MATCH('Input|General'!$G$8,'Lookup|Tables'!$G$28:$G$42,0)+2,0,1,1)<='Input|General'!$G$12,OFFSET('Lookup|Tables'!$G$28:$G$43,MATCH('Input|General'!$G$8,'Lookup|Tables'!$G$28:$G$42,0)+2,0,1,1),"") -> 2014 | P4: =IF(OFFSET('Lookup|Tables'!$G$28:$G$43,MATCH('Input|General'!$G$8,'Lookup|Tables'!$G$28:$G$42,0)+3,0,1,1)<='Input|General'!$G$12,OFFSET('Lookup|Tables'!$G$28:$G$43,MATCH('Input|General'!$G$8,'Lookup|Tables'!$G$28:$G$42,0)+3,0,1,1),"") -> 2015 | Q4: =IF(OFFSET('Lookup|Tables'!$G$28:$G$43,MATCH('Input|General'!$G$8,'Lookup|Tables'!$G$28:$G$42,0)+4,0,1,1)<='Input|General'!$G$12,OFFSET('Lookup|Tables'!$G$28:$G$43,MATCH('Input|General'!$G$8,'Lookup|Tables'!$G$28:$G$42,0)+4,0,1,1),"") -> 2016 | R4: =IF(OFFSET('Lookup|Tables'!$G$28:$G$43,MATCH('Input|General'!$G$8,'Lookup|Tables'!$G$28:$G$42,0)+5,0,1,1)<='Input|General'!$G$12,OFFSET('Lookup|Tables'!$G$28:$G$43,MATCH('Input|General'!$G$8,'Lookup|Tables'!$G$28:$G$42,0)+5,0,1,1),"") -> 2017 | S4: =IF(OFFSET('Lookup|Tables'!$G$28:$G$43,MATCH('Input|General'!$G$8,'Lookup|Tables'!$G$28:$G$42,0)+6,0,1,1)<='Input|General'!$G$12,OFFSET('Lookup|Tables'!$G$28:$G$43,MATCH('Input|General'!$G$8,'Lookup|Tables'!$G$28:$G$42,0)+6,0,1,1),"") -> 2018 | T4: =IF(OFFSET('Lookup|Tables'!$G$28:$G$43,MATCH('Input|General'!$G$8,'Lookup|Tables'!$G$28:$G$42,0)+7,0,1,1)<='Input|General'!$G$12,OFFSET('Lookup|Tables'!$G$28:$G$43,MATCH('Input|General'!$G$8,'Lookup|Tables'!$G$28:$G$42,0)+7,0,1,1),"") -> 2019 | U4: =IF(OFFSET('Lookup|Tables'!$G$28:$G$43,MATCH('Input|General'!$G$8,'Lookup|Tables'!$G$28:$G$42,0)+8,0,1,1)<='Input|General'!$G$12,OFFSET('Lookup|Tables'!$G$28:$G$43,MATCH('Input|General'!$G$8,'Lookup|Tables'!$G$28:$G$42,0)+8,0,1,1),"") -> 2020
B8: Input | Opex allowances | E8: $millions | F8: ='Input|General'!$G$10 -> 2015 | J8: Previous period | L8: Current regulatory control period
C10: CPI index | D10: Source | E10: Unit | F10: Basis | J10: =IF(RIGHT(J$4,2)<=RIGHT('Input|General'!$G$10,2),'Calc|EBSS'!J$4,"") -> 2009 | K10: =IF(RIGHT(K$4,2)<=RIGHT('Input|General'!$G$10,2),'Calc|EBSS'!K$4,"") -> 2010 | L10: =IF(RIGHT(L$4,2)<=RIGHT('Input|General'!$G$10,2),'Calc|EBSS'!L$4,"") -> 2011 | M10: =IF(RIGHT(M$4,2)<=RIGHT('Input|General'!$G$10,2),'Calc|EBSS'!M$4,"") -> 2012 | N10: =IF(RIGHT(N$4,2)<=RIGHT('Input|General'!$G$10,2),'Calc|EBSS'!N$4,"") -> 2013 | O10: =IF(RIGHT(O$4,2)<=RIGHT('Input|General'!$G$10,2),'Calc|EBSS'!O$4,"") -> 2014 | P10: =IF(RIGHT(P$4,2)<=RIGHT('Input|General'!$G$10,2),'Calc|EBSS'!P$4,"") -> 2015
C12: ="CPI index convertor - "&'Input|General'!$G$10-5&" to "&'Input|General'!$G$10 -> CPI index convertor - 2010 to 2015 | D12: Input|Inflation | E12: factor | F12: n.m. | J12: ='Input|Inflation'!$E$44/'Input|Inflation'!$E$24 -> 1.119355005 | K12: ='Input|Inflation'!$E$44/'Input|Inflation'!$E$24 -> 1.119355005 | L12: ='Input|Inflation'!$E$44/'Input|Inflation'!$E$24 -> 1.119355005 | M12: ='Input|Inflation'!$E$44/'Input|Inflation'!$E$24 -> 1.119355005 | N12: ='Input|Inflation'!$E$44/'Input|Inflation'!$E$24 -> 1.119355005 | O12: ='Input|Inflation'!$E$44/'Input|Inflation'!$E$24 -> 1.119355005 | P12: ='Input|Inflation'!$E$44/'Input|Inflation'!$E$24 -> 1.119355005
C14: Cost category | D14: Source | E14: Unit | F14: Basis | J14: =IF(RIGHT(J$4,2)<=RIGHT('Input|General'!$G$10,2),'Calc|EBSS'!J$4,"") -> 2009 | K14: =IF(RIGHT(K$4,2)<=RIGHT('Input|General'!$G$10,2),'Calc|EBSS'!K$4,"") -> 2010 | L14: =IF(RIGHT(L$4,2)<=RIGHT('Input|General'!$G$10,2),'Calc|EBSS'!L$4,"") -> 2011 | M14: =IF(RIGHT(M$4,2)<=RIGHT('Input|General'!$G$10,2),'Calc|EBSS'!M$4,"") -> 2012 | N14: =IF(RIGHT(N$4,2)<=RIGHT('Input|General'!$G$10,2),'Calc|EBSS'!N$4,"") -> 2013 | O14: =IF(RIGHT(O$4,2)<=RIGHT('Input|General'!$G$10,2),'Calc|EBSS'!O$4,"") -> 2014 | P14: =IF(RIGHT(P$4,2)<=RIGHT('Input|General'!$G$10,2),'Calc|EBSS'!P$4,"") -> 2015
C17: =IF('Input|Reported opex'!C13="","",'Input|Reported opex'!C13) -> Total opex, excluding DRC and DMIA | D17: Inputs|Reported opex | E17: =$E$8 -> $millions | F17: =$F$8 -> 2015 | J17: ='Input|Reported opex'!J13*J$12 -> 70.43392503 | K17: ='Input|Reported opex'!K13*K$12 -> 72.06587016 | L17: ='Input|Reported opex'!L13*L$12 -> 65.15749927 | M17: ='Input|Reported opex'!M13*M$12 -> 63.93163539 | N17: ='Input|Reported opex'!N13*N$12 -> 64.17819689 | O17: ='Input|Reported opex'!O13*O$12 -> 69.74983361 | P17: ='Input|Reported opex'!P13*P$12 -> 68.66073032
C18: Remove approved excludable costs:
C19: =IF('Input|Reported opex'!C28="","",'Input|Reported opex'!C28) -> Debt raising costs | D19: Inputs|Reported opex | E19: =$E$8 -> $millions | F19: =$F$8 -> 2015 | J19: ='Input|Reported opex'!J28*J$12 -> 0 | K19: ='Input|Reported opex'!K28*K$12 -> 0 | L19: ='Input|Reported opex'!L28*L$12 -> -0.5003605677 | M19: ='Input|Reported opex'!M28*M$12 -> -0.5330625746 | N19: ='Input|Reported opex'!N28*N$12 -> -0.5591532086 | O19: ='Input|Reported opex'!O28*O$12 -> -0.5822422276 | P19: ='Input|Reported opex'!P28*P$12 -> -0.605590164
C20: =IF('Input|Reported opex'!C29="","",'Input|Reported opex'!C29) -> Self insurance | D20: Inputs|Reported opex | E20: $millions | F20: 2015 | J20: ='Input|Reported opex'!J29*J$12 -> 0 | K20: ='Input|Reported opex'!K29*K$12 -> 0 | L20: ='Input|Reported opex'!L29*L$12 -> -0.116748727 | M20: ='Input|Reported opex'!M29*M$12 -> -0.116748727 | N20: ='Input|Reported opex'!N29*N$12 -> -0.116748727 | O20: ='Input|Reported opex'!O29*O$12 -> -0.116748727 | P20: ='Input|Reported opex'!P29*P$12 -> -0.116748727
C21: =IF('Input|Reported opex'!C30="","",'Input|Reported opex'!C30) -> Defined benefit superannuation | D21: Inputs|Reported opex | E21: $millions | F21: 2015 | J21: ='Input|Reported opex'!J30*J$12 -> 0 | K21: ='Input|Reported opex'!K30*K$12 -> 0 | L21: ='Input|Reported opex'!L30*L$12 -> 0 | M21: ='Input|Reported opex'!M30*M$12 -> 0 | N21: ='Input|Reported opex'!N30*N$12 -> 0 | O21: ='Input|Reported opex'!O30*O$12 -> 0 | P21: ='Input|Reported opex'!P30*P$12 -> 0
C22: =IF('Input|Reported opex'!C31="","",'Input|Reported opex'!C31) -> Non-network alternatives | D22: Inputs|Reported opex | E22: $millions | F22: 2015 | J22: ='Input|Reported opex'!J31*J$12 -> 0 | K22: ='Input|Reported opex'!K31*K$12 -> 0 | L22: ='Input|Reported opex'!L31*L$12 -> 0 | M22: ='Input|Reported opex'!M31*M$12 -> 0 | N22: ='Input|Reported opex'!N31*N$12 -> 0 | O22: ='Input|Reported opex'!O31*O$12 -> 0 | P22: ='Input|Reported opex'!P31*P$12 -> 0
C23: =IF('Input|Reported opex'!C32="","",'Input|Reported opex'!C32) -> DMIA | D23: Inputs|Reported opex | E23: $millions | F23: 2015 | J23: ='Input|Reported opex'!J32*J$12 -> 0 | K23: ='Input|Reported opex'!K32*K$12 -> 0 | L23: ='Input|Reported opex'!L32*L$12 -> -0.223871001 | M23: ='Input|Reported opex'!M32*M$12 -> -0.223871001 | N23: ='Input|Reported opex'!N32*N$12 -> -0.223871001 | O23: ='Input|Reported opex'!O32*O$12 -> -0.223871001 | P23: ='Input|Reported opex'!P32*P$12 -> -0.223871001
C24: =IF('Input|Reported opex'!C33="","",'Input|Reported opex'!C33) -> GSL payments | D24: Inputs|Reported opex | E24: $millions | F24: 2015 | J24: ='Input|Reported opex'!J33*J$12 -> 0 | K24: ='Input|Reported opex'!K33*K$12 -> 0 | L24: ='Input|Reported opex'!L33*L$12 -> -0.02061601799 | M24: ='Input|Reported opex'!M33*M$12 -> -0.02009850651 | N24: ='Input|Reported opex'!N33*N$12 -> -0.0195939858 | O24: ='Input|Reported opex'!O33*O$12 -> -0.01910212977 | P24: ='Input|Reported opex'!P33*P$12 -> -0.01862262051
C25: =IF('Input|Reported opex'!C34="","",'Input|Reported opex'!C34) -> Capitalisation policy changes | D25: Inputs|Reported opex | E25: $millions | F25: 2015 | J25: ='Input|Reported opex'!J34*J$12 -> 5.160736141 | K25: ='Input|Reported opex'!K34*K$12 -> 5.160736141 | L25: ='Input|Reported opex'!L34*L$12 -> 0 | M25: ='Input|Reported opex'!M34*M$12 -> 0 | N25: ='Input|Reported opex'!N34*N$12 -> 0 | O25: ='Input|Reported opex'!O34*O$12 -> 0 | P25: ='Input|Reported opex'!P34*P$12 -> 0
C26: =IF('Input|Reported opex'!C35="","",'Input|Reported opex'!C35) -> Network growth adjustment | D26: Inputs|Reported opex | E26: $millions | F26: 2015 | J26: ='Input|Reported opex'!J35*J$12 -> 0.4609951538 | K26: ='Input|Reported opex'!K35*K$12 -> 0.5767751343 | L26: ='Input|Reported opex'!L35*L$12 -> -0.01275839449 | M26: ='Input|Reported opex'!M35*M$12 -> -0.01939275962 | N26: ='Input|Reported opex'!N35*N$12 -> -0.02947699462 | O26: ='Input|Reported opex'!O35*O$12 -> -0.04480503182 | P26: ='Input|Reported opex'!P35*P$12 -> -0.06810364837
C27: =IF('Input|Reported opex'!C36="","",'Input|Reported opex'!C36) -> Other adjustments or exclusions required by the EBSS | D27: Inputs|Reported opex | E27: $millions | F27: 2015 | J27: ='Input|Reported opex'!J36*J$12 -> 0 | K27: ='Input|Reported opex'!K36*K$12 -> 0 | L27: ='Input|Reported opex'!L36*L$12 -> 0 | M27: ='Input|Reported opex'!M36*M$12 -> 0 | N27: ='Input|Reported opex'!N36*N$12 -> 0 | O27: ='Input|Reported opex'!O36*O$12 -> 0 | P27: ='Input|Reported opex'!P36*P$12 -> 0
C28: =IF('Input|Reported opex'!C37="","",'Input|Reported opex'!C37) ->  | D28: Inputs|Reported opex | E28: $millions | F28: 2015 | J28: ='Input|Reported opex'!J37*J$12 -> 0 | K28: ='Input|Reported opex'!K37*K$12 -> 0 | L28: ='Input|Reported opex'!L37*L$12 -> 0 | M28: ='Input|Reported opex'!M37*M$12 -> 0 | N28: ='Input|Reported opex'!N37*N$12 -> 0 | O28: ='Input|Reported opex'!O37*O$12 -> 0 | P28: ='Input|Reported opex'!P37*P$12 -> 0
C29: =IF('Input|Reported opex'!C38="","",'Input|Reported opex'!C38) ->  | D29: Inputs|Reported opex | E29: $millions | F29: 2015 | J29: ='Input|Reported opex'!J38*J$12 -> 0 | K29: ='Input|Reported opex'!K38*K$12 -> 0 | L29: ='Input|Reported opex'!L38*L$12 -> 0 | M29: ='Input|Reported opex'!M38*M$12 -> 0 | N29: ='Input|Reported opex'!N38*N$12 -> 0 | O29: ='Input|Reported opex'!O38*O$12 -> 0 | P29: ='Input|Reported opex'!P38*P$12 -> 0
C31: Total opex allowances - for EBSS | D31: Calculated | E31: $millions | F31: 2015 | J31: =SUM(J17,J19:J29) -> 76.05565632 | K31: 77.80338144 | L31: =SUM(L17,L19:L29) -> 64.28314456 | M31: =SUM(M17,M19:M29) -> 63.01846182 | N31: =SUM(N17,N19:N29) -> 63.22935297 | O31: =SUM(O17,O19:O29) -> 68.76306449 | P31: =SUM(P17,P19:P29) -> 67.62779416
B33: Input | Reported opex | J33: Previous period | L33: Current regulatory control period
C35: CPI index | D35: Source | E35: Unit | F35: Basis | J35: =IF(RIGHT(J$4,2)<=RIGHT('Input|General'!$G$10,2),'Calc|EBSS'!J$4,"") -> 2009 | K35: =IF(RIGHT(K$4,2)<=RIGHT('Input|General'!$G$10,2),'Calc|EBSS'!K$4,"") -> 2010 | L35: =IF(RIGHT(L$4,2)<=RIGHT('Input|General'!$G$10,2),'Calc|EBSS'!L$4,"") -> 2011 | M35: =IF(RIGHT(M$4,2)<=RIGHT('Input|General'!$G$10,2),'Calc|EBSS'!M$4,"") -> 2012 | N35: =IF(RIGHT(N$4,2)<=RIGHT('Input|General'!$G$10,2),'Calc|EBSS'!N$4,"") -> 2013 | O35: =IF(RIGHT(O$4,2)<=RIGHT('Input|General'!$G$10,2),'Calc|EBSS'!O$4,"") -> 2014 | P35: =IF(RIGHT(P$4,2)<=RIGHT('Input|General'!$G$10,2),'Calc|EBSS'!P$4,"") -> 2015
C37: ="CPI index convertor - "&'Lookup|Tables'!$G$25&" to "&'Input|General'!$G$10 -> CPI index convertor - nominal to 2015 | D37: Input|Rate of change | E37: factor | F37: n.m. | J37: =INDEX('Input|Rate of change'!J$26:J$32,MATCH('Input|General'!$G$10,Nominal_to_Real,0)) -> 1.161122922 | K37: =INDEX('Input|Rate of change'!K$26:K$32,MATCH('Input|General'!$G$10,Nominal_to_Real,0)) -> 1.134116368 | L37: =INDEX('Input|Rate of change'!L$26:L$32,MATCH('Input|General'!$G$10,Nominal_to_Real,0)) -> 1.102971939 | M37: =INDEX('Input|Rate of change'!M$26:M$32,MATCH('Input|General'!$G$10,Nominal_to_Real,0)) -> 1.075044065 | N37: =INDEX('Input|Rate of change'!N$26:N$32,MATCH('Input|General'!$G$10,Nominal_to_Real,0)) -> 1.049085526 | O37: =INDEX('Input|Rate of change'!O$26:O$32,MATCH('Input|General'!$G$10,Nominal_to_Real,0)) -> 1.026200871 | P37: =INDEX('Input|Rate of change'!P$26:P$32,MATCH('Input|General'!$G$10,Nominal_to_Real,0)) -> 1.00871205
C39: Cost category | D39: Source | E39: Unit | F39: Basis | J39: =IF(RIGHT(J$4,2)<=RIGHT('Input|General'!$G$10,2),'Calc|EBSS'!J$4,"") -> 2009 | K39: =IF(RIGHT(K$4,2)<=RIGHT('Input|General'!$G$10,2),'Calc|EBSS'!K$4,"") -> 2010 | L39: =IF(RIGHT(L$4,2)<=RIGHT('Input|General'!$G$10,2),'Calc|EBSS'!L$4,"") -> 2011 | M39: =IF(RIGHT(M$4,2)<=RIGHT('Input|General'!$G$10,2),'Calc|EBSS'!M$4,"") -> 2012 | N39: =IF(RIGHT(N$4,2)<=RIGHT('Input|General'!$G$10,2),'Calc|EBSS'!N$4,"") -> 2013 | O39: =IF(RIGHT(O$4,2)<=RIGHT('Input|General'!$G$10,2),'Calc|EBSS'!O$4,"") -> 2014 | P39: =IF(RIGHT(P$4,2)<=RIGHT('Input|General'!$G$10,2),'Calc|EBSS'!P$4,"") -> 2015
C41: =IF('Input|Reported opex'!C47="","",'Input|Reported opex'!C47) -> Total opex (as per RIN) | D41: Inputs|Reported opex | E41: =$E$8 -> $millions | F41: =$F$8 -> 2015 | J41: ='Input|Reported opex'!J47*J$37 -> 58.57228644 | K41: ='Input|Reported opex'!K47*K$37 -> 69.45530619 | L41: ='Input|Reported opex'!L47*L$37 -> 69.06905567 | M41: ='Input|Reported opex'!M47*M$37 -> 79.16864263 | N41: ='Input|Reported opex'!N47*N$37 -> 76.18481747 | O41: ='Input|Reported opex'!O47*O$37 -> 74.27989039
C42: Remove approved excludable costs:
C43: =IF('Input|Reported opex'!C61="","",'Input|Reported opex'!C61) -> Debt raising costs | D43: Inputs|Reported opex | E43: =$E$8 -> $millions | F43: =$F$8 -> 2015 | J43: ='Input|Reported opex'!J61*J$37 -> 0 | K43: ='Input|Reported opex'!K61*K$37 -> 0 | L43: ='Input|Reported opex'!L61*L$37 -> 0 | M43: ='Input|Reported opex'!M61*M$37 -> 0 | N43: ='Input|Reported opex'!N61*N$37 -> 0 | O43: ='Input|Reported opex'!O61*O$37 -> 0
C44: =IF('Input|Reported opex'!C62="","",'Input|Reported opex'!C62) -> Self insurance | D44: Inputs|Reported opex | E44: $millions | F44: 2015 | J44: ='Input|Reported opex'!J62*J$37 -> 0 | K44: ='Input|Reported opex'!K62*K$37 -> 0 | L44: ='Input|Reported opex'!L62*L$37 -> -0.2895749807 | M44: ='Input|Reported opex'!M62*M$37 -> -0.8659966511 | N44: ='Input|Reported opex'!N62*N$37 -> -0.5945712993 | O44: ='Input|Reported opex'!O62*O$37 -> -0.388827705
C45: =IF('Input|Reported opex'!C63="","",'Input|Reported opex'!C63) -> Defined benefit superannuation | D45: Inputs|Reported opex | E45: $millions | F45: 2015 | J45: ='Input|Reported opex'!J63*J$37 -> 0 | K45: ='Input|Reported opex'!K63*K$37 -> 0 | L45: ='Input|Reported opex'!L63*L$37 -> 0 | M45: ='Input|Reported opex'!M63*M$37 -> 0 | N45: ='Input|Reported opex'!N63*N$37 -> 0 | O45: ='Input|Reported opex'!O63*O$37 -> 0
C46: =IF('Input|Reported opex'!C64="","",'Input|Reported opex'!C64) -> Non-network alternatives | D46: Inputs|Reported opex | E46: $millions | F46: 2015 | J46: ='Input|Reported opex'!J64*J$37 -> 0 | K46: ='Input|Reported opex'!K64*K$37 -> 0 | L46: ='Input|Reported opex'!L64*L$37 -> 0 | M46: ='Input|Reported opex'!M64*M$37 -> 0 | N46: ='Input|Reported opex'!N64*N$37 -> 0 | O46: ='Input|Reported opex'!O64*O$37 -> 0
C47: =IF('Input|Reported opex'!C65="","",'Input|Reported opex'!C65) -> DMIA expenditure | D47: Inputs|Reported opex | E47: $millions | F47: 2015 | J47: ='Input|Reported opex'!J65*J$37 -> 0 | K47: ='Input|Reported opex'!K65*K$37 -> 0 | L47: ='Input|Reported opex'!L65*L$37 -> 0 | M47: ='Input|Reported opex'!M65*M$37 -> 0 | N47: ='Input|Reported opex'!N65*N$37 -> -0.05072965315 | O47: ='Input|Reported opex'!O65*O$37 -> -0.06553729242
C48: =IF('Input|Reported opex'!C66="","",'Input|Reported opex'!C66) -> GSL expenditure | D48: Inputs|Reported opex | E48: $millions | F48: 2015 | J48: ='Input|Reported opex'!J66*J$37 -> 0 | K48: ='Input|Reported opex'!K66*K$37 -> 0 | L48: ='Input|Reported opex'!L66*L$37 -> -0.03110380867 | M48: ='Input|Reported opex'!M66*M$37 -> -0.009471138216 | N48: ='Input|Reported opex'!N66*N$37 -> -0.07021529428 | O48: ='Input|Reported opex'!O66*O$37 -> -0.06975560399
C49: =IF('Input|Reported opex'!C67="","",'Input|Reported opex'!C67) -> Opex associated with approved cost pass through | D49: Inputs|Reported opex | E49: $millions | F49: 2015 | J49: ='Input|Reported opex'!J67*J$37 -> 0 | K49: ='Input|Reported opex'!K67*K$37 -> 0 | L49: ='Input|Reported opex'!L67*L$37 -> 0 | M49: ='Input|Reported opex'!M67*M$37 -> 0 | N49: ='Input|Reported opex'!N67*N$37 -> 0 | O49: ='Input|Reported opex'!O67*O$37 -> 0
C50: =IF('Input|Reported opex'!C68="","",'Input|Reported opex'!C68) -> Capitalisation policy changes | D50: Inputs|Reported opex | E50: $millions | F50: 2015 | J50: ='Input|Reported opex'!J68*J$37 -> 0 | K50: ='Input|Reported opex'!K68*K$37 -> 0 | L50: ='Input|Reported opex'!L68*L$37 -> 0 | M50: ='Input|Reported opex'!M68*M$37 -> 0 | N50: ='Input|Reported opex'!N68*N$37 -> 0 | O50: ='Input|Reported opex'!O68*O$37 -> 0
C51: =IF('Input|Reported opex'!C69="","",'Input|Reported opex'!C69) -> Movements in provisions related to opex | D51: Inputs|Reported opex | E51: $millions | F51: 2015 | J51: ='Input|Reported opex'!J69*J$37 -> 0 | K51: ='Input|Reported opex'!K69*K$37 -> 0.3554333513 | L51: ='Input|Reported opex'!L69*L$37 -> 0.004840061461 | M51: ='Input|Reported opex'!M69*M$37 -> -0.265287678 | N51: ='Input|Reported opex'!N69*N$37 -> 0.1840037055 | O51: ='Input|Reported opex'!O69*O$37 -> -0.01230120325
C52: =IF('Input|Reported opex'!C70="","",'Input|Reported opex'!C70) -> Other adjustments or exclusions required by the EBSS | D52: Inputs|Reported opex | E52: $millions | F52: 2015 | J52: ='Input|Reported opex'!J70*J$37 -> 0 | K52: ='Input|Reported opex'!K70*K$37 -> 0 | L52: ='Input|Reported opex'!L70*L$37 -> 0 | M52: ='Input|Reported opex'!M70*M$37 -> 0 | N52: ='Input|Reported opex'!N70*N$37 -> 0 | O52: ='Input|Reported opex'!O70*O$37 -> -0.8219868976
C53: =IF('Input|Reported opex'!C71="","",'Input|Reported opex'!C71) ->  | D53: Inputs|Reported opex | E53: $millions | F53: 2015 | J53: ='Input|Reported opex'!J71*J$37 -> 0 | K53: ='Input|Reported opex'!K71*K$37 -> 0 | L53: ='Input|Reported opex'!L71*L$37 -> 0 | M53: ='Input|Reported opex'!M71*M$37 -> 0 | N53: ='Input|Reported opex'!N71*N$37 -> 0 | O53: ='Input|Reported opex'!O71*O$37 -> 0
C54: =IF('Input|Reported opex'!C72="","",'Input|Reported opex'!C72) ->  | D54: Inputs|Reported opex | E54: $millions | F54: 2015 | J54: ='Input|Reported opex'!J72*J$37 -> 0 | K54: ='Input|Reported opex'!K72*K$37 -> 0 | L54: ='Input|Reported opex'!L72*L$37 -> 0 | M54: ='Input|Reported opex'!M72*M$37 -> 0 | N54: ='Input|Reported opex'!N72*N$37 -> 0 | O54: ='Input|Reported opex'!O72*O$37 -> 0
C55: =IF('Input|Reported opex'!C73="","",'Input|Reported opex'!C73) ->  | D55: Inputs|Reported opex | E55: $millions | F55: 2015 | J55: ='Input|Reported opex'!J73*J$37 -> 0 | K55: ='Input|Reported opex'!K73*K$37 -> 0 | L55: ='Input|Reported opex'!L73*L$37 -> 0 | M55: ='Input|Reported opex'!M73*M$37 -> 0 | N55: ='Input|Reported opex'!N73*N$37 -> 0 | O55: ='Input|Reported opex'!O73*O$37 -> 0
C57: Total reported allowances - for EBSS | D57: Calculated | E57: $millions | F57: 2015 | J57: =SUM(J41,J43:J55) -> 58.57228644 | K57: 69.81073954 | L57: =SUM(L41,L43:L55) -> 68.75321694 | M57: =SUM(M41,M43:M55) -> 78.02788716 | N57: =SUM(N41,N43:N55) -> 75.65330492 | O57: =SUM(O41,O43:O55) -> 72.92148169 | P57: =+P31-(O31-O57) -> 71.78621136
B59: Calc | EBSS
C61: Incremental gain/penalty | D61: Source | E61: Unit | F61: Basis | L61: =IF(RIGHT(L$4,2)<=RIGHT('Input|General'!$G$10,2),'Calc|EBSS'!L$4,"") -> 2011 | M61: =IF(RIGHT(M$4,2)<=RIGHT('Input|General'!$G$10,2),'Calc|EBSS'!M$4,"") -> 2012 | N61: =IF(RIGHT(N$4,2)<=RIGHT('Input|General'!$G$10,2),'Calc|EBSS'!N$4,"") -> 2013 | O61: =IF(RIGHT(O$4,2)<=RIGHT('Input|General'!$G$10,2),'Calc|EBSS'!O$4,"") -> 2014 | P61: =IF(RIGHT(P$4,2)<=RIGHT('Input|General'!$G$10,2),'Calc|EBSS'!P$4,"") -> 2015
C63: Incremental gain/penalty | D63: Calculated | E63: =$E$8 -> $millions | F63: =$F$8 -> 2015 | L63: =(L31-L57)-(K31-K57)+(J31-J57) -> 5.020655603 | M63: =(M31-M57)-(L31-L57) -> -10.53935296 | N63: =(N31-N57)-(M31-M57) -> 2.585473395 | O63: =(O31-O57)-(N31-N57) -> 8.265534749 | P63: =(P31-P57)-(O31-O57) -> 0
C65: EBSS carryover | D65: Source | E65: Unit | F65: Basis | L65: =IF(RIGHT(L$4,2)<=RIGHT('Input|General'!$G$10,2),'Calc|EBSS'!L$4,"") -> 2011 | M65: =IF(RIGHT(M$4,2)<=RIGHT('Input|General'!$G$10,2),'Calc|EBSS'!M$4,"") -> 2012 | N65: =IF(RIGHT(N$4,2)<=RIGHT('Input|General'!$G$10,2),'Calc|EBSS'!N$4,"") -> 2013 | O65: =IF(RIGHT(O$4,2)<=RIGHT('Input|General'!$G$10,2),'Calc|EBSS'!O$4,"") -> 2014 | P65: =IF(RIGHT(P$4,2)<=RIGHT('Input|General'!$G$10,2),'Calc|EBSS'!P$4,"") -> 2015 | Q65: =IF(Q$4>='Input|General'!$G$11,IF(Q$4<='Input|General'!$G$12,'Input|Reported opex'!Q$4,""),"") -> 2016 | R65: =IF(R$4>='Input|General'!$G$11,IF(R$4<='Input|General'!$G$12,'Input|Reported opex'!R$4,""),"") -> 2017 | S65: =IF(S$4>='Input|General'!$G$11,IF(S$4<='Input|General'!$G$12,'Input|Reported opex'!S$4,""),"") -> 2018 | T65: =IF(T$4>='Input|General'!$G$11,IF(T$4<='Input|General'!$G$12,'Input|Reported opex'!T$4,""),"") -> 2019 | U65: =IF(U$4>='Input|General'!$G$11,IF(U$4<='Input|General'!$G$12,'Input|Reported opex'!U$4,""),"") -> 2020
C67: =TRANSPOSE($L$61:$P$61) -> 2011 | D67: Calculated | E67: =$E$8 -> $millions | F67: =$F$8 -> 2015 | M67: =$L$63 -> 5.020655603 | N67: =M67 -> 5.020655603 | O67: =N67 -> 5.020655603 | P67: 5.020655603 | Q67: 5.020655603
C68: 2012 | D68: Calculated | E68: $millions | F68: 2015 | N68: =$M$63 -> -10.53935296 | O68: -10.53935296 | P68: -10.53935296 | Q68: -10.53935296 | R68: =Q68 -> -10.53935296
C69: 2013 | D69: Calculated | E69: $millions | F69: 2015 | O69: =$N$63 -> 2.585473395 | P69: =O69 -> 2.585473395 | Q69: 2.585473395 | R69: 2.585473395 | S69: 2.585473395
C70: 2014 | D70: Calculated | E70: $millions | F70: 2015 | P70: =$O$63 -> 8.265534749 | Q70: =P70 -> 8.265534749 | R70: =Q70 -> 8.265534749 | S70: 8.265534749 | T70: 8.265534749
C71: 2015 | D71: Calculated | E71: $millions | F71: 2015 | Q71: =$P$63 -> 0 | R71: =Q71 -> 0 | S71: =R71 -> 0 | T71: 0 | U71: 0
C73: Total EBSS carryover amount | D73: Calculated | E73: =$E$8 -> $millions | F73: =$F$8 -> 2015 | Q73: =SUM(Q67:Q71) -> 5.332310782 | R73: 0.3116551798 | S73: 10.85100814 | T73: 8.265534749 | U73: 0
B75: End

Sheet Output|Models
B1: =Index!$B$1 -> JEN opex model - Distribution services | J1: Back to Index | L1: Key: | M1: Input | N1: External Link | O1: Internal Link | R1: Worksheet check: | S1: =IF(COUNTA($W$29:$W$65)=COUNTIF($W$29:$W$65,"OK"),"OK","Check") -> OK | U1: Overall Check: | V1: ='Check|List'!$S$1 -> Ok
B2: =Index!$C$14 -> Output | Models
D4: Source | E4: Unit | F4: Basis | J4: ='Input|General'!$G$8 -> 2011 | K4: =IF(OFFSET('Lookup|Tables'!$G$28:$G$43,MATCH('Input|General'!$G$8,'Lookup|Tables'!$G$28:$G$42,0)+1,0,1,1)<='Input|General'!$G$12,OFFSET('Lookup|Tables'!$G$28:$G$43,MATCH('Input|General'!$G$8,'Lookup|Tables'!$G$28:$G$42,0),0,1,1),"") -> 2012 | L4: =IF(OFFSET('Lookup|Tables'!$G$28:$G$43,MATCH('Input|General'!$G$8,'Lookup|Tables'!$G$28:$G$42,0)+1,0,1,1)<='Input|General'!$G$12,OFFSET('Lookup|Tables'!$G$28:$G$43,MATCH('Input|General'!$G$8,'Lookup|Tables'!$G$28:$G$42,0)+1,0,1,1),"") -> 2013 | M4: =IF(OFFSET('Lookup|Tables'!$G$28:$G$43,MATCH('Input|General'!$G$8,'Lookup|Tables'!$G$28:$G$42,0)+2,0,1,1)<='Input|General'!$G$12,OFFSET('Lookup|Tables'!$G$28:$G$43,MATCH('Input|General'!$G$8,'Lookup|Tables'!$G$28:$G$42,0)+2,0,1,1),"") -> 2014 | N4: =IF(OFFSET('Lookup|Tables'!$G$28:$G$43,MATCH('Input|General'!$G$8,'Lookup|Tables'!$G$28:$G$42,0)+3,0,1,1)<='Input|General'!$G$12,OFFSET('Lookup|Tables'!$G$28:$G$43,MATCH('Input|General'!$G$8,'Lookup|Tables'!$G$28:$G$42,0)+3,0,1,1),"") -> 2015 | O4: =IF(OFFSET('Lookup|Tables'!$G$28:$G$43,MATCH('Input|General'!$G$8,'Lookup|Tables'!$G$28:$G$42,0)+4,0,1,1)<='Input|General'!$G$12,OFFSET('Lookup|Tables'!$G$28:$G$43,MATCH('Input|General'!$G$8,'Lookup|Tables'!$G$28:$G$42,0)+4,0,1,1),"") -> 2016 | P4: =IF(OFFSET('Lookup|Tables'!$G$28:$G$43,MATCH('Input|General'!$G$8,'Lookup|Tables'!$G$28:$G$42,0)+5,0,1,1)<='Input|General'!$G$12,OFFSET('Lookup|Tables'!$G$28:$G$43,MATCH('Input|General'!$G$8,'Lookup|Tables'!$G$28:$G$42,0)+5,0,1,1),"") -> 2017 | Q4: =IF(OFFSET('Lookup|Tables'!$G$28:$G$43,MATCH('Input|General'!$G$8,'Lookup|Tables'!$G$28:$G$42,0)+6,0,1,1)<='Input|General'!$G$12,OFFSET('Lookup|Tables'!$G$28:$G$43,MATCH('Input|General'!$G$8,'Lookup|Tables'!$G$28:$G$42,0)+6,0,1,1),"") -> 2018 | R4: =IF(OFFSET('Lookup|Tables'!$G$28:$G$43,MATCH('Input|General'!$G$8,'Lookup|Tables'!$G$28:$G$42,0)+7,0,1,1)<='Input|General'!$G$12,OFFSET('Lookup|Tables'!$G$28:$G$43,MATCH('Input|General'!$G$8,'Lookup|Tables'!$G$28:$G$42,0)+7,0,1,1),"") -> 2019 | S4: =IF(OFFSET('Lookup|Tables'!$G$28:$G$43,MATCH('Input|General'!$G$8,'Lookup|Tables'!$G$28:$G$42,0)+8,0,1,1)<='Input|General'!$G$12,OFFSET('Lookup|Tables'!$G$28:$G$43,MATCH('Input|General'!$G$8,'Lookup|Tables'!$G$28:$G$42,0)+8,0,1,1),"") -> 2020
B8: Inputs for Post Tax Revenue Model | E8: $millions | F8: 2015 | J8: Note. The dollar base should be consistent with the post tax revenue model
C11: Operating expenditure | D11: Source | E11: Unit | F11: Basis | J11: =IF(RIGHT(J$4,2)>=RIGHT('Input|General'!$G$11,2),IF(RIGHT(J$4,2)<=RIGHT('Input|General'!$G$12,2),J$4,""),"") ->  | K11: =IF(RIGHT(K$4,2)>=RIGHT('Input|General'!$G$11,2),IF(RIGHT(K$4,2)<=RIGHT('Input|General'!$G$12,2),K$4,""),"") ->  | L11: =IF(RIGHT(L$4,2)>=RIGHT('Input|General'!$G$11,2),IF(RIGHT(L$4,2)<=RIGHT('Input|General'!$G$12,2),L$4,""),"") ->  | M11: =IF(RIGHT(M$4,2)>=RIGHT('Input|General'!$G$11,2),IF(RIGHT(M$4,2)<=RIGHT('Input|General'!$G$12,2),M$4,""),"") ->  | N11: =IF(RIGHT(N$4,2)>=RIGHT('Input|General'!$G$11,2),IF(RIGHT(N$4,2)<=RIGHT('Input|General'!$G$12,2),N$4,""),"") ->  | O11: =IF(RIGHT(O$4,2)>=RIGHT('Input|General'!$G$11,2),IF(RIGHT(O$4,2)<=RIGHT('Input|General'!$G$12,2),O$4,""),"") -> 2016 | P11: =IF(RIGHT(P$4,2)>=RIGHT('Input|General'!$G$11,2),IF(RIGHT(P$4,2)<=RIGHT('Input|General'!$G$12,2),P$4,""),"") -> 2017 | Q11: =IF(RIGHT(Q$4,2)>=RIGHT('Input|General'!$G$11,2),IF(RIGHT(Q$4,2)<=RIGHT('Input|General'!$G$12,2),Q$4,""),"") -> 2018 | R11: =IF(RIGHT(R$4,2)>=RIGHT('Input|General'!$G$11,2),IF(RIGHT(R$4,2)<=RIGHT('Input|General'!$G$12,2),R$4,""),"") -> 2019 | S11: =IF(RIGHT(S$4,2)>=RIGHT('Input|General'!$G$11,2),IF(RIGHT(S$4,2)<=RIGHT('Input|General'!$G$12,2),S$4,""),"") -> 2020 | U11: Total
C13: Forecast operating expenditure (excl. DRC) | D13: Calc | Opex forecast | E13: =$E$8 -> $millions | F13: =$F$8 -> 2015 | J13: =IF(J11="",0,'Calc|Opex forecast'!J78*IF('Calc|Opex forecast'!$F$78="nominal",LOOKUP($F13,Nominal_to_Real,'Input|Rate of change'!Q$27:Q$32),INDEX('Input|Rate of change'!$C$14:$P$22,MATCH('Calc|Opex forecast'!$F$78,'Input|Rate of change'!$C$14:$C$22,0),MATCH('Output|Models'!$F13,'Input|Rate of change'!$C$14:$P$14,0)))*IF('Calc|Opex forecast'!$E$78="$millions",1000000,IF('Output|Models'!#REF!="$000",1000,1))/IF($E13="$millions",1000000,IF($E13="$000",1000,1))) -> 0 | K13: =IF(K11="",0,'Calc|Opex forecast'!K78*IF('Calc|Opex forecast'!$F$78="nominal",LOOKUP($F13,Nominal_to_Real,'Input|Rate of change'!R$27:R$32),INDEX('Input|Rate of change'!$C$14:$P$22,MATCH('Calc|Opex forecast'!$F$78,'Input|Rate of change'!$C$14:$C$22,0),MATCH('Output|Models'!$F13,'Input|Rate of change'!$C$14:$P$14,0)))*IF('Calc|Opex forecast'!$E$78="$millions",1000000,IF('Output|Models'!#REF!="$000",1000,1))/IF($E13="$millions",1000000,IF($E13="$000",1000,1))) -> 0 | L13: =IF(L11="",0,'Calc|Opex forecast'!L78*IF('Calc|Opex forecast'!$F$78="nominal",LOOKUP($F13,Nominal_to_Real,'Input|Rate of change'!S$27:S$32),INDEX('Input|Rate of change'!$C$14:$P$22,MATCH('Calc|Opex forecast'!$F$78,'Input|Rate of change'!$C$14:$C$22,0),MATCH('Output|Models'!$F13,'Input|Rate of change'!$C$14:$P$14,0)))*IF('Calc|Opex forecast'!$E$78="$millions",1000000,IF('Output|Models'!#REF!="$000",1000,1))/IF($E13="$millions",1000000,IF($E13="$000",1000,1))) -> 0 | M13: =IF(M11="",0,'Calc|Opex forecast'!M78*IF('Calc|Opex forecast'!$F$78="nominal",LOOKUP($F13,Nominal_to_Real,'Input|Rate of change'!T$27:T$32),INDEX('Input|Rate of change'!$C$14:$P$22,MATCH('Calc|Opex forecast'!$F$78,'Input|Rate of change'!$C$14:$C$22,0),MATCH('Output|Models'!$F13,'Input|Rate of change'!$C$14:$P$14,0)))*IF('Calc|Opex forecast'!$E$78="$millions",1000000,IF('Output|Models'!#REF!="$000",1000,1))/IF($E13="$millions",1000000,IF($E13="$000",1000,1))) -> 0 | N13: =IF(N11="",0,'Calc|Opex forecast'!N78*IF('Calc|Opex forecast'!$F$78="nominal",LOOKUP($F13,Nominal_to_Real,'Input|Rate of change'!U$27:U$32),INDEX('Input|Rate of change'!$C$14:$P$22,MATCH('Calc|Opex forecast'!$F$78,'Input|Rate of change'!$C$14:$C$22,0),MATCH('Output|Models'!$F13,'Input|Rate of change'!$C$14:$P$14,0)))*IF('Calc|Opex forecast'!$E$78="$millions",1000000,IF('Output|Models'!#REF!="$000",1000,1))/IF($E13="$millions",1000000,IF($E13="$000",1000,1))) -> 0 | O13: =IF(O11="",0,'Calc|Opex forecast'!O78*IF('Calc|Opex forecast'!$F$78="nominal",LOOKUP($F13,Nominal_to_Real,'Input|Rate of change'!V$27:V$32),INDEX('Input|Rate of change'!$C$14:$P$22,MATCH('Calc|Opex forecast'!$F$78,'Input|Rate of change'!$C$14:$C$22,0),MATCH('Output|Models'!$F13,'Input|Rate of change'!$C$14:$P$14,0)))*IF('Calc|Opex forecast'!$E$78="$millions",1000000,IF('Output|Models'!#REF!="$000",1000,1))/IF($E13="$millions",1000000,IF($E13="$000",1000,1))) -> 93.1901235 | P13: =IF(P11="",0,'Calc|Opex forecast'!P78*IF('Calc|Opex forecast'!$F$78="nominal",LOOKUP($F13,Nominal_to_Real,'Input|Rate of change'!W$27:W$32),INDEX('Input|Rate of change'!$C$14:$P$22,MATCH('Calc|Opex forecast'!$F$78,'Input|Rate of change'!$C$14:$C$22,0),MATCH('Output|Models'!$F13,'Input|Rate of change'!$C$14:$P$14,0)))*IF('Calc|Opex forecast'!$E$78="$millions",1000000,IF('Output|Models'!#REF!="$000",1000,1))/IF($E13="$millions",1000000,IF($E13="$000",1000,1))) -> 91.18855488 | Q13: =IF(Q11="",0,'Calc|Opex forecast'!Q78*IF('Calc|Opex forecast'!$F$78="nominal",LOOKUP($F13,Nominal_to_Real,'Input|Rate of change'!X$27:X$32),INDEX('Input|Rate of change'!$C$14:$P$22,MATCH('Calc|Opex forecast'!$F$78,'Input|Rate of change'!$C$14:$C$22,0),MATCH('Output|Models'!$F13,'Input|Rate of change'!$C$14:$P$14,0)))*IF('Calc|Opex forecast'!$E$78="$millions",1000000,IF('Output|Models'!#REF!="$000",1000,1))/IF($E13="$millions",1000000,IF($E13="$000",1000,1))) -> 92.58302701 | R13: =IF(R11="",0,'Calc|Opex forecast'!R78*IF('Calc|Opex forecast'!$F$78="nominal",LOOKUP($F13,Nominal_to_Real,'Input|Rate of change'!Y$27:Y$32),INDEX('Input|Rate of change'!$C$14:$P$22,MATCH('Calc|Opex forecast'!$F$78,'Input|Rate of change'!$C$14:$C$22,0),MATCH('Output|Models'!$F13,'Input|Rate of change'!$C$14:$P$14,0)))*IF('Calc|Opex forecast'!$E$78="$millions",1000000,IF('Output|Models'!#REF!="$000",1000,1))/IF($E13="$millions",1000000,IF($E13="$000",1000,1))) -> 94.85721032 | S13: =IF(S11="",0,'Calc|Opex forecast'!S78*IF('Calc|Opex forecast'!$F$78="nominal",LOOKUP($F13,Nominal_to_Real,'Input|Rate of change'!Z$27:Z$32),INDEX('Input|Rate of change'!$C$14:$P$22,MATCH('Calc|Opex forecast'!$F$78,'Input|Rate of change'!$C$14:$C$22,0),MATCH('Output|Models'!$F13,'Input|Rate of change'!$C$14:$P$14,0)))*IF('Calc|Opex forecast'!$E$78="$millions",1000000,IF('Output|Models'!#REF!="$000",1000,1))/IF($E13="$millions",1000000,IF($E13="$000",1000,1))) -> 95.61501133 | U13: =SUM(O13:S13) -> 467.433927
C15: Efficiency benefit sharing scheme | D15: Source | E15: Unit | F15: Basis | O15: =IF(RIGHT(O$4,2)>=RIGHT('Input|General'!$G$11,2),IF(RIGHT(O$4,2)<=RIGHT('Input|General'!$G$12,2),O$4,""),"") -> 2016 | P15: =IF(RIGHT(P$4,2)>=RIGHT('Input|General'!$G$11,2),IF(RIGHT(P$4,2)<=RIGHT('Input|General'!$G$12,2),P$4,""),"") -> 2017 | Q15: =IF(RIGHT(Q$4,2)>=RIGHT('Input|General'!$G$11,2),IF(RIGHT(Q$4,2)<=RIGHT('Input|General'!$G$12,2),Q$4,""),"") -> 2018 | R15: =IF(RIGHT(R$4,2)>=RIGHT('Input|General'!$G$11,2),IF(RIGHT(R$4,2)<=RIGHT('Input|General'!$G$12,2),R$4,""),"") -> 2019 | S15: =IF(RIGHT(S$4,2)>=RIGHT('Input|General'!$G$11,2),IF(RIGHT(S$4,2)<=RIGHT('Input|General'!$G$12,2),S$4,""),"") -> 2020 | U15: Total
C17: EBSS increments as per NER 6.4.3(a)(5) & 6.5.8 | D17: Calc | EBSS | E17: =$E$8 -> $millions | F17: =$F$8 -> 2015 | O17: ='Calc|EBSS'!Q$73 -> 5.332310782 | P17: ='Calc|EBSS'!R$73 -> 0.3116551798 | Q17: ='Calc|EBSS'!S$73 -> 10.85100814 | R17: ='Calc|EBSS'!T$73 -> 8.265534749 | S17: ='Calc|EBSS'!U$73 -> 0 | U17: =SUM(O17:S17) -> 24.76050886
B19: Forecast opex for EBSS purposes | E19: $millions | F19: 2015 | J19: Note. The dollar base should be consistent with the post tax revenue model
C22: Operating expenditure | D22: Source | E22: Unit | F22: Basis | O22: =IF(RIGHT(O$4,2)>=RIGHT('Input|General'!$G$11,2),IF(RIGHT(O$4,2)<=RIGHT('Input|General'!$G$12,2),O$4,""),"") -> 2016 | P22: =IF(RIGHT(P$4,2)>=RIGHT('Input|General'!$G$11,2),IF(RIGHT(P$4,2)<=RIGHT('Input|General'!$G$12,2),P$4,""),"") -> 2017 | Q22: =IF(RIGHT(Q$4,2)>=RIGHT('Input|General'!$G$11,2),IF(RIGHT(Q$4,2)<=RIGHT('Input|General'!$G$12,2),Q$4,""),"") -> 2018 | R22: =IF(RIGHT(R$4,2)>=RIGHT('Input|General'!$G$11,2),IF(RIGHT(R$4,2)<=RIGHT('Input|General'!$G$12,2),R$4,""),"") -> 2019 | S22: =IF(RIGHT(S$4,2)>=RIGHT('Input|General'!$G$11,2),IF(RIGHT(S$4,2)<=RIGHT('Input|General'!$G$12,2),S$4,""),"") -> 2020 | U22: Total
C24: Forecast operating expenditure (incl. DRC) | D24: Calc | Opex forecast | E24: =$E$8 -> $millions | F24: =$F$8 -> 2015 | O24: =IF(O22="",0,'Calc|Opex forecast'!O79*IF('Calc|Opex forecast'!$F$79="nominal",LOOKUP($F24,Nominal_to_Real,'Input|Rate of change'!V$27:V$32),INDEX('Input|Rate of change'!$C$14:$P$22,MATCH('Calc|Opex forecast'!$F$78,'Input|Rate of change'!$C$14:$C$22,0),MATCH('Output|Models'!$F24,'Input|Rate of change'!$C$14:$P$14,0)))*IF('Calc|Opex forecast'!$E$79="$millions",1000000,IF('Output|Models'!#REF!="$000",1000,1))/IF($E24="$millions",1000000,IF($E24="$000",1000,1))) -> 93.79599029 | P24: =IF(P22="",0,'Calc|Opex forecast'!P79*IF('Calc|Opex forecast'!$F$79="nominal",LOOKUP($F24,Nominal_to_Real,'Input|Rate of change'!W$27:W$32),INDEX('Input|Rate of change'!$C$14:$P$22,MATCH('Calc|Opex forecast'!$F$78,'Input|Rate of change'!$C$14:$C$22,0),MATCH('Output|Models'!$F24,'Input|Rate of change'!$C$14:$P$14,0)))*IF('Calc|Opex forecast'!$E$79="$millions",1000000,IF('Output|Models'!#REF!="$000",1000,1))/IF($E24="$millions",1000000,IF($E24="$000",1000,1))) -> 91.82543591 | Q24: =IF(Q22="",0,'Calc|Opex forecast'!Q79*IF('Calc|Opex forecast'!$F$79="nominal",LOOKUP($F24,Nominal_to_Real,'Input|Rate of change'!X$27:X$32),INDEX('Input|Rate of change'!$C$14:$P$22,MATCH('Calc|Opex forecast'!$F$78,'Input|Rate of change'!$C$14:$C$22,0),MATCH('Output|Models'!$F24,'Input|Rate of change'!$C$14:$P$14,0)))*IF('Calc|Opex forecast'!$E$79="$millions",1000000,IF('Output|Models'!#REF!="$000",1000,1))/IF($E24="$millions",1000000,IF($E24="$000",1000,1))) -> 93.27424209 | R24: =IF(R22="",0,'Calc|Opex forecast'!R79*IF('Calc|Opex forecast'!$F$79="nominal",LOOKUP($F24,Nominal_to_Real,'Input|Rate of change'!Y$27:Y$32),INDEX('Input|Rate of change'!$C$14:$P$22,MATCH('Calc|Opex forecast'!$F$78,'Input|Rate of change'!$C$14:$C$22,0),MATCH('Output|Models'!$F24,'Input|Rate of change'!$C$14:$P$14,0)))*IF('Calc|Opex forecast'!$E$79="$millions",1000000,IF('Output|Models'!#REF!="$000",1000,1))/IF($E24="$millions",1000000,IF($E24="$000",1000,1))) -> 95.58077246 | S24: =IF(S22="",0,'Calc|Opex forecast'!S79*IF('Calc|Opex forecast'!$F$79="nominal",LOOKUP($F24,Nominal_to_Real,'Input|Rate of change'!Z$27:Z$32),INDEX('Input|Rate of change'!$C$14:$P$22,MATCH('Calc|Opex forecast'!$F$78,'Input|Rate of change'!$C$14:$C$22,0),MATCH('Output|Models'!$F24,'Input|Rate of change'!$C$14:$P$14,0)))*IF('Calc|Opex forecast'!$E$79="$millions",1000000,IF('Output|Models'!#REF!="$000",1000,1))/IF($E24="$millions",1000000,IF($E24="$000",1000,1))) -> 96.36934499 | U24: =SUM(O24:S24) -> 470.8457857
C25: (-) debt raising costs | D25: Calc | Opex forecast | E25: =$E$8 -> $millions | F25: =$F$8 -> 2015 | O25: =IF(O22="",0,'Calc|Opex forecast'!O78*IF('Calc|Opex forecast'!$F$78="nominal",LOOKUP($F25,Nominal_to_Real,'Input|Rate of change'!V$27:V$32),INDEX('Input|Rate of change'!$C$14:$P$22,MATCH('Calc|Opex forecast'!$F$78,'Input|Rate of change'!$C$14:$C$22,0),MATCH('Output|Models'!$F25,'Input|Rate of change'!$C$14:$P$14,0)))*IF('Calc|Opex forecast'!$E$78="$millions",1000000,IF('Output|Models'!#REF!="$000",1000,1))/IF($E25="$millions",1000000,IF($E25="$000",1000,1)))-O24 -> -0.6058667849 | P25: =IF(P22="",0,'Calc|Opex forecast'!P78*IF('Calc|Opex forecast'!$F$78="nominal",LOOKUP($F25,Nominal_to_Real,'Input|Rate of change'!W$27:W$32),INDEX('Input|Rate of change'!$C$14:$P$22,MATCH('Calc|Opex forecast'!$F$78,'Input|Rate of change'!$C$14:$C$22,0),MATCH('Output|Models'!$F25,'Input|Rate of change'!$C$14:$P$14,0)))*IF('Calc|Opex forecast'!$E$78="$millions",1000000,IF('Output|Models'!#REF!="$000",1000,1))/IF($E25="$millions",1000000,IF($E25="$000",1000,1)))-P24 -> -0.6368810249 | Q25: =IF(Q22="",0,'Calc|Opex forecast'!Q78*IF('Calc|Opex forecast'!$F$78="nominal",LOOKUP($F25,Nominal_to_Real,'Input|Rate of change'!X$27:X$32),INDEX('Input|Rate of change'!$C$14:$P$22,MATCH('Calc|Opex forecast'!$F$78,'Input|Rate of change'!$C$14:$C$22,0),MATCH('Output|Models'!$F25,'Input|Rate of change'!$C$14:$P$14,0)))*IF('Calc|Opex forecast'!$E$78="$millions",1000000,IF('Output|Models'!#REF!="$000",1000,1))/IF($E25="$millions",1000000,IF($E25="$000",1000,1)))-Q24 -> -0.6912150829 | R25: =IF(R22="",0,'Calc|Opex forecast'!R78*IF('Calc|Opex forecast'!$F$78="nominal",LOOKUP($F25,Nominal_to_Real,'Input|Rate of change'!Y$27:Y$32),INDEX('Input|Rate of change'!$C$14:$P$22,MATCH('Calc|Opex forecast'!$F$78,'Input|Rate of change'!$C$14:$C$22,0),MATCH('Output|Models'!$F25,'Input|Rate of change'!$C$14:$P$14,0)))*IF('Calc|Opex forecast'!$E$78="$millions",1000000,IF('Output|Models'!#REF!="$000",1000,1))/IF($E25="$millions",1000000,IF($E25="$000",1000,1)))-R24 -> -0.723562143 | S25: =IF(S22="",0,'Calc|Opex forecast'!S78*IF('Calc|Opex forecast'!$F$78="nominal",LOOKUP($F25,Nominal_to_Real,'Input|Rate of change'!Z$27:Z$32),INDEX('Input|Rate of change'!$C$14:$P$22,MATCH('Calc|Opex forecast'!$F$78,'Input|Rate of change'!$C$14:$C$22,0),MATCH('Output|Models'!$F25,'Input|Rate of change'!$C$14:$P$14,0)))*IF('Calc|Opex forecast'!$E$78="$millions",1000000,IF('Output|Models'!#REF!="$000",1000,1))/IF($E25="$millions",1000000,IF($E25="$000",1000,1)))-S24 -> -0.7543336599 | U25: =SUM(O25:S25) -> -3.411858696
C26: (-) GSL payments | D26: Calc | Opex forecast | E26: =$E$8 -> $millions | F26: =$F$8 -> 2015 | O26: =-IF(O22="",0,'Calc|Opex forecast'!O50*IF('Calc|Opex forecast'!$F$50="nominal",LOOKUP($F26,Nominal_to_Real,'Input|Rate of change'!V$27:V$32),INDEX('Input|Rate of change'!$C$14:$P$22,MATCH('Calc|Opex forecast'!$F$78,'Input|Rate of change'!$C$14:$C$22,0),MATCH('Output|Models'!$F26,'Input|Rate of change'!$C$14:$P$14,0)))*IF('Calc|Opex forecast'!$E$50="$millions",1000000,IF('Output|Models'!#REF!="$000",1000,1))/IF($E26="$millions",1000000,IF($E26="$000",1000,1))) -> -0.1783613 | P26: =-IF(P22="",0,'Calc|Opex forecast'!P50*IF('Calc|Opex forecast'!$F$50="nominal",LOOKUP($F26,Nominal_to_Real,'Input|Rate of change'!W$27:W$32),INDEX('Input|Rate of change'!$C$14:$P$22,MATCH('Calc|Opex forecast'!$F$78,'Input|Rate of change'!$C$14:$C$22,0),MATCH('Output|Models'!$F26,'Input|Rate of change'!$C$14:$P$14,0)))*IF('Calc|Opex forecast'!$E$50="$millions",1000000,IF('Output|Models'!#REF!="$000",1000,1))/IF($E26="$millions",1000000,IF($E26="$000",1000,1))) -> -0.1783613 | Q26: =-IF(Q22="",0,'Calc|Opex forecast'!Q50*IF('Calc|Opex forecast'!$F$50="nominal",LOOKUP($F26,Nominal_to_Real,'Input|Rate of change'!X$27:X$32),INDEX('Input|Rate of change'!$C$14:$P$22,MATCH('Calc|Opex forecast'!$F$78,'Input|Rate of change'!$C$14:$C$22,0),MATCH('Output|Models'!$F26,'Input|Rate of change'!$C$14:$P$14,0)))*IF('Calc|Opex forecast'!$E$50="$millions",1000000,IF('Output|Models'!#REF!="$000",1000,1))/IF($E26="$millions",1000000,IF($E26="$000",1000,1))) -> -0.1783613 | R26: =-IF(R22="",0,'Calc|Opex forecast'!R50*IF('Calc|Opex forecast'!$F$50="nominal",LOOKUP($F26,Nominal_to_Real,'Input|Rate of change'!Y$27:Y$32),INDEX('Input|Rate of change'!$C$14:$P$22,MATCH('Calc|Opex forecast'!$F$78,'Input|Rate of change'!$C$14:$C$22,0),MATCH('Output|Models'!$F26,'Input|Rate of change'!$C$14:$P$14,0)))*IF('Calc|Opex forecast'!$E$50="$millions",1000000,IF('Output|Models'!#REF!="$000",1000,1))/IF($E26="$millions",1000000,IF($E26="$000",1000,1))) -> -0.1783613 | S26: =-IF(S22="",0,'Calc|Opex forecast'!S50*IF('Calc|Opex forecast'!$F$50="nominal",LOOKUP($F26,Nominal_to_Real,'Input|Rate of change'!Z$27:Z$32),INDEX('Input|Rate of change'!$C$14:$P$22,MATCH('Calc|Opex forecast'!$F$78,'Input|Rate of change'!$C$14:$C$22,0),MATCH('Output|Models'!$F26,'Input|Rate of change'!$C$14:$P$14,0)))*IF('Calc|Opex forecast'!$E$50="$millions",1000000,IF('Output|Models'!#REF!="$000",1000,1))/IF($E26="$millions",1000000,IF($E26="$000",1000,1))) -> -0.1783613 | U26: -0.8918065
C28: Forecast operating expenditure (for EBSS) | D28: Calculated | E28: =$E$8 -> $millions | F28: =$F$8 -> 2015 | O28: =SUM(O24:O26) -> 93.0117622 | P28: =SUM(P24:P26) -> 91.01019358 | Q28: 92.40466571 | R28: 94.67884902 | S28: 95.43665003 | U28: =SUM(U24:U26) -> 466.5421205
B30: Forecast opex summary | E30: $millions | F30: 2015 | J30: Note. The dollar base should be consistent with the post tax revenue model
C49: Operating expenditure | D49: Source | E49: Unit | F49: Basis | O49: =IF(RIGHT(O$4,2)>=RIGHT('Input|General'!$G$11,2),IF(RIGHT(O$4,2)<=RIGHT('Input|General'!$G$12,2),O$4,""),"") -> 2016 | P49: =IF(RIGHT(P$4,2)>=RIGHT('Input|General'!$G$11,2),IF(RIGHT(P$4,2)<=RIGHT('Input|General'!$G$12,2),P$4,""),"") -> 2017 | Q49: =IF(RIGHT(Q$4,2)>=RIGHT('Input|General'!$G$11,2),IF(RIGHT(Q$4,2)<=RIGHT('Input|General'!$G$12,2),Q$4,""),"") -> 2018 | R49: =IF(RIGHT(R$4,2)>=RIGHT('Input|General'!$G$11,2),IF(RIGHT(R$4,2)<=RIGHT('Input|General'!$G$12,2),R$4,""),"") -> 2019 | S49: =IF(RIGHT(S$4,2)>=RIGHT('Input|General'!$G$11,2),IF(RIGHT(S$4,2)<=RIGHT('Input|General'!$G$12,2),S$4,""),"") -> 2020 | U49: Total | V49: Total (%)
C51: Base year | D51: Calc | Opex forecast | E51: =$E$8 -> $millions | F51: =$F$8 -> 2015 | O51: ='Calc|Opex forecast'!$N$19 -> 72.61962673 | P51: =O51 -> 72.61962673 | Q51: =P51 -> 72.61962673 | R51: 72.61962673 | S51: 72.61962673 | U51: =SUM(O51:S51) -> 363.0981336 | V51: =U51/$U$62 -> 0.7711614814
C52: CAM adjustment | D52: Calc | Opex forecast | E52: $millions | F52: =$F$8 -> 2015 | O52: ='Calc|Opex forecast'!$N$22 -> 0 | P52: =O52 -> 0 | Q52: 0 | R52: 0 | S52: 0 | U52: =SUM(O52:S52) -> 0 | V52: 0
C53: Efficiency adjustment | D53: Calc | Opex forecast | E53: $millions | F53: =$F$8 -> 2015 | O53: ='Calc|Opex forecast'!$N$27 -> 0 | P53: =O53 -> 0 | Q53: 0 | R53: 0 | S53: 0 | U53: 0 | V53: 0
C54: Service reclassification | D54: Calc | Opex forecast | E54: $millions | F54: =$F$8 -> 2015 | O54: ='Calc|Opex forecast'!$N$25 -> 9.198802051 | P54: =O54 -> 9.198802051 | Q54: 9.198802051 | R54: 9.198802051 | S54: 9.198802051 | U54: 45.99401025 | V54: 0.09768380996
C56: Base year (used for trending) | D56: Calculated | E56: =$E$8 -> $millions | F56: =$F$8 -> 2015 | O56: =SUM(O51:O54) -> 81.81842878 | P56: =SUM(P51:P54) -> 81.81842878 | Q56: 81.81842878 | R56: 81.81842878 | S56: 81.81842878 | U56: =SUM(U51:U54) -> 409.0921439 | V56: =U56/$U$62 -> 0.8688452914
C58: Rate of change | D58: Calc | Opex forecast | E58: $millions | F58: 2015 | O58: =O$56*PRODUCT(1+'Calc|Opex forecast'!$O$42:O$42)-O$56 -> 1.897024975 | P58: =P$56*PRODUCT(1+'Calc|Opex forecast'!$O$42:P$42)-P$56 -> 3.776373862 | Q58: =Q$56*PRODUCT(1+'Calc|Opex forecast'!$O$42:Q$42)-Q$56 -> 5.949608855 | R58: =R$56*PRODUCT(1+'Calc|Opex forecast'!$O$42:R$42)-R$56 -> 8.224117315 | S58: =S$56*PRODUCT(1+'Calc|Opex forecast'!$O$42:S$42)-S$56 -> 10.52043336 | U58: =SUM(O58:S58) -> 30.36755837 | V58: =U58/$U$62 -> 0.06449576335
C59: Step changes | D59: Calc | Opex forecast | E59: $millions | F59: 2015 | O59: ='Calc|Opex forecast'!O$63 -> 9.422116957 | P59: ='Calc|Opex forecast'!P$63 -> 5.541199453 | Q59: ='Calc|Opex forecast'!Q$63 -> 4.762436583 | R59: ='Calc|Opex forecast'!R$63 -> 4.762111437 | S59: ='Calc|Opex forecast'!S$63 -> 3.223596401 | U59: 27.71146083 | V59: 0.05885464343
C60: Specific forecasts | D60: Calc | Opex forecast | E60: $millions | F60: 2015 | O60: ='Calc|Opex forecast'!O$72 -> 0.6584195743 | P60: ='Calc|Opex forecast'!P$72 -> 0.6894338143 | Q60: ='Calc|Opex forecast'!Q$72 -> 0.7437678723 | R60: ='Calc|Opex forecast'!R$72 -> 0.7761149324 | S60: ='Calc|Opex forecast'!S$72 -> 0.8068864493 | U60: 3.674622643 | V60: 0.007804301863
C62: Forecast operating expenditure (incl. DRC) | D62: Calculated | E62: =$E$8 -> $millions | F62: =$F$8 -> 2015 | O62: =SUM(O56,O58:O60) -> 93.79599029 | P62: =SUM(P56,P58:P60) -> 91.82543591 | Q62: 93.27424209 | R62: 95.58077246 | S62: 96.36934499 | U62: =SUM(U56,U58:U60) -> 470.8457857 | V62: 1
B64: End

Sheet Lookup|Tables
B1: =Index!$B$1 -> JEN opex model - Distribution services | J1: Back to Index | L1: Key: | M1: Input | N1: External Link | O1: Internal Link | U1: Overall Check: | V1: ='Check|List'!$S$1 -> Ok
B2: =Index!$C$15 -> Lookup | Tables
B7: Unit Denominations
C9: =B7 -> Unit Denominations | D9: Source | G9: Ref
C10: Dollars | D10: AER | G10: $dollars
C11: Thousands | D11: AER | G11: $000
C12: Millions | D12: AER | G12: $millions
C14: Percent | D14: AER | G14: Per cent
C15: Unit | D15: AER | G15: unit
C16: Number | D16: AER | G16: number
C17: Factor | D17: AER | G17: factor
C19: Actual | D19: AER | G19: Actual
C20: Estimate | D20: AER | G20: Estimate
B22: Years
C24: =B22 -> Years | D24: Source | G24: Ref
C25: nominal | D25: AER | G25: nominal
C26: =G26 -> 2008 | D26: AER | G26: 2008
C27: =G27 -> 2009 | D27: AER | G27: 2009
C28: 2010 | D28: AER | G28: 2010
C29: 2011 | D29: AER | G29: 2011
C30: 2012 | D30: AER | G30: 2012
C31: 2013 | D31: AER | G31: 2013
C32: 2014 | D32: AER | G32: 2014
C33: 2015 | D33: AER | G33: 2015
C34: 2016 | D34: AER | G34: 2016
C35: 2017 | D35: AER | G35: 2017
C36: 2018 | D36: AER | G36: 2018
C37: 2019 | D37: AER | G37: 2019
C38: 2020 | D38: AER | G38: 2020
C39: 2021 | D39: AER | G39: 2021
C40: 2022 | D40: AER | G40: 2022
C41: 2023 | D41: AER | G41: 2023
C42: 2024 | D42: AER | G42: 2024
B44: End

Sheet Check|List
B1: =Index!$B$1 -> JEN opex model - Distribution services | J1: Back to Index | L1: Key: | M1: Input | N1: External Link | O1: Internal Link | R1: Overall Check: | S1: =IF(COUNTIF(G10:G15,"Check")=0,"Ok","Check") -> Ok
B2: =Index!$C$16 -> Check | List
B7: Check List
C9: Sheet | D9: Source | E9: Unit | G9: Status
C10: =Index!C7 -> Input | General | D10: =C10 -> Input | General | E10: Ok/Check | G10: ='Input|General'!S1 -> OK
C11: =Index!C9 -> Input | Reported opex | D11: =C11 -> Input | Reported opex | E11: Ok/Check | G11: ='Input|Reported opex'!U1 -> OK
C12: =Index!C10 -> Input | Rate of change | D12: Input | Rate of change | E12: Ok/Check | G12: ='Input|Rate of change'!U1 -> Ok
C13: =Index!C11 -> Input | Step changes | D13: Input | Step changes | E13: Ok/Check | G13: ='Input|Step changes'!S1 -> OK
C14: =Index!C12 -> Calc | Opex Forecast | D14: Calc | Opex Forecast | E14: Ok/Check | G14: ='Calc|Opex forecast'!S1 -> n/a
C15: =Index!C14 -> Output | Models | D15: Output | Models | E15: Ok/Check | G15: ='Output|Models'!S1 -> OK
B17: End
